Service Area,Service Division,Expense Type,Expense Code,Detailed Expense Type,Payment Date,Transaction Number,Amount Exc Vat,Supplier Name
Children and Adult Services,Childrens Services,Third Party Payments,425040,Rendered by Voluntary Organisations,02-Feb-15,2855101-12240,"1,180.00",FOSTER CARES LTD.
Children and Adult Services,Childrens Services,Third Party Payments,425040,Rendered by Voluntary Organisations,02-Feb-15,2855101-12249,730,FOSTER CARES LTD.
Children and Adult Services,Childrens Services,Third Party Payments,425040,Rendered by Voluntary Organisations,02-Feb-15,2855101-12260,730,FOSTER CARES LTD.
Children and Adult Services,Childrens Services,Third Party Payments,425040,Rendered by Voluntary Organisations,02-Feb-15,2855101-12269,820,FOSTER CARES LTD.
Children and Adult Services,Childrens Services,Third Party Payments,425040,Rendered by Voluntary Organisations,02-Feb-15,2855101-12270,730,FOSTER CARES LTD.
Children and Adult Services,Childrens Services,Supplies and Services,384638,Miscellaneous Expenses,02-Feb-15,2855247-0000020061,567,NORTH EAST AUTISM SOCIETY.
Children and Adult Services,Childrens Services,Supplies and Services,384638,Miscellaneous Expenses,02-Feb-15,2855247-0000020062,607.5,NORTH EAST AUTISM SOCIETY.
Children and Adult Services,Childrens Services,Supplies and Services,384638,Miscellaneous Expenses,02-Feb-15,2855247-0000020063,587.25,NORTH EAST AUTISM SOCIETY.
Children and Adult Services,Childrens Services,Supplies and Services,384638,Miscellaneous Expenses,02-Feb-15,2855247-0000020064,"1,093.50",NORTH EAST AUTISM SOCIETY.
Children and Adult Services,Childrens Services,Supplies and Services,384638,Miscellaneous Expenses,02-Feb-15,2855247-0000020066,"1,404.00",NORTH EAST AUTISM SOCIETY.
Children and Adult Services,Childrens Services,Supplies and Services,384638,Miscellaneous Expenses,02-Feb-15,2855247-0000020067,648,NORTH EAST AUTISM SOCIETY.
Children and Adult Services,Childrens Services,Supplies and Services,384638,Miscellaneous Expenses,02-Feb-15,2855247-0000020072,810,NORTH EAST AUTISM SOCIETY.
Children and Adult Services,Childrens Services,Supplies and Services,384638,Miscellaneous Expenses,02-Feb-15,2855247-0000020073,"1,584.00",NORTH EAST AUTISM SOCIETY.
Children and Adult Services,Childrens Services,Supplies and Services,384638,Miscellaneous Expenses,02-Feb-15,2855247-0000020085,751.5,NORTH EAST AUTISM SOCIETY.
Children and Adult Services,Childrens Services,Supplies and Services,384638,Miscellaneous Expenses,02-Feb-15,2855247-0000020086,751.5,NORTH EAST AUTISM SOCIETY.
Children and Adult Services,Childrens Services,Supplies and Services,384638,Miscellaneous Expenses,02-Feb-15,2855247-0000020091,623.25,NORTH EAST AUTISM SOCIETY.
Children and Adult Services,Childrens Services,Supplies and Services,384638,Miscellaneous Expenses,02-Feb-15,2855247-0000020092,"3,926.25",NORTH EAST AUTISM SOCIETY.
Children and Adult Services,Childrens Services,Supplies and Services,384638,Miscellaneous Expenses,02-Feb-15,2855247-0000020093,882,NORTH EAST AUTISM SOCIETY.
Children and Adult Services,Childrens Services,Supplies and Services,384638,Miscellaneous Expenses,02-Feb-15,2855247-0000020095,"1,482.75",NORTH EAST AUTISM SOCIETY.
Children and Adult Services,Childrens Services,Supplies and Services,384638,Miscellaneous Expenses,02-Feb-15,2855247-0000020096,"1,282.50",NORTH EAST AUTISM SOCIETY.
Children and Adult Services,Childrens Services,Supplies and Services,384638,Miscellaneous Expenses,02-Feb-15,2855247-0000020097,"1,161.00",NORTH EAST AUTISM SOCIETY.
Children and Adult Services,Childrens Services,Supplies and Services,384638,Miscellaneous Expenses,02-Feb-15,2855247-0000020099,630,NORTH EAST AUTISM SOCIETY.
Children and Adult Services,Childrens Services,Supplies and Services,384638,Miscellaneous Expenses,02-Feb-15,2855247-0000020100,630,NORTH EAST AUTISM SOCIETY.
Children and Adult Services,Childrens Services,Supplies and Services,384638,Miscellaneous Expenses,02-Feb-15,2855247-0000020103,756,NORTH EAST AUTISM SOCIETY.
Children and Adult Services,Childrens Services,Supplies and Services,384638,Miscellaneous Expenses,02-Feb-15,2855247-0000020106,551.25,NORTH EAST AUTISM SOCIETY.
Children and Adult Services,Childrens Services,Supplies and Services,384638,Miscellaneous Expenses,02-Feb-15,2855247-0000020107,787.5,NORTH EAST AUTISM SOCIETY.
Children and Adult Services,Childrens Services,Supplies and Services,384638,Miscellaneous Expenses,02-Feb-15,2855247-0000020128,590.49,NORTH EAST AUTISM SOCIETY.
Children and Adult Services,Childrens Services,Supplies and Services,384638,Miscellaneous Expenses,02-Feb-15,2855247-0000020129,781.97,NORTH EAST AUTISM SOCIETY.
Children and Adult Services,Childrens Services,Supplies and Services,384871,Miscellaneous Expenses,02-Feb-15,2855252-3610014134,"3,000.00",NORTH TEES & HARTLEPOOL NHS FOUNDATION TRUST.
Children and Adult Services,Childrens Services,Third Party Payments,425040,Rendered by Voluntary Organisations,02-Feb-15,2855302-947,651.42,REACH OUT CARE LTD.
Children and Adult Services,Childrens Services,Third Party Payments,425040,Rendered by Voluntary Organisations,02-Feb-15,2855302-951,"2,714.25",REACH OUT CARE LTD.
Children and Adult Services,Childrens Services,Premises,120009,Energy Costs,02-Feb-15,2855335-34284,"2,658.56",SEAHAM HARBOUR DOCK CO.
Children and Adult Services,Childrens Services,Third Party Payments,425040,Rendered by Voluntary Organisations,02-Feb-15,2855357-1151338,"3,100.00",ST CUTHBERTS CARE.
Children and Adult Services,Childrens Services,Supplies and Services,364352,Grants to Voluntary Organisations,02-Feb-15,2855364-D1IN/00016805,"3,220.58",STONHAM HOUSING ASSOCIATION LTD.
Children and Adult Services,Commissioning inc Supporting People,Third Party Payments,479111,Purchase of Care,02-Feb-15,2854949-129,"13,296.00",ASPIRE LEARNING SUPPORT & WELLING CIC.
Children and Adult Services,Commissioning inc Supporting People,Third Party Payments,472113,Purchase of Care,02-Feb-15,2854949-130,"1,490.00",ASPIRE LEARNING SUPPORT & WELLING CIC.
Children and Adult Services,Commissioning inc Supporting People,Supplies and Services,384700,Miscellaneous Expenses,02-Feb-15,2855175-CAS-01-2015-126,"3,000.00",JUST FOR WOMEN CENTRE.
Dedicated Schools Grant,Dedicated Schools Grant,Supplies and Services,304259,Equipment and Materials,02-Feb-15,2855116-SINV/00009547,"1,839.60",GL ASSESSMENT LTD.
Children and Adult Services,Education,Third Party Payments,440999,Other Third Party Payments,02-Feb-15,2854964-SINV22680,"10,589.14",BISHOP AUCKLAND COLLEGE.
Children and Adult Services,Education,Supplies and Services,304040,Equipment and Materials,02-Feb-15,2854966-SKI20763,"3,565.50",BKSB LTD.
Children and Adult Services,Education,Construction Work,908105,Construction work,02-Feb-15,2855155-DURH/0593,"4,200.00",INSPIREDSPACES DURHAM LTD.
Children and Adult Services,Education,Construction Work,908105,Construction work,02-Feb-15,2855155-DURH/0594,"85,403.87",INSPIREDSPACES DURHAM LTD.
Children and Adult Services,Education,Transport,230008,Contract Hire,02-Feb-15,2855206-DEC-14-E130,660,MA BODDY.
Children and Adult Services,Education,Construction Work,908201,Capital - Public Utilities - Electricity Services,02-Feb-15,2855258-314882460018006,"2,498.42",NORTHUMBRIAN WATER LTD.
Children and Adult Services,Education,Construction Work,908201,Capital - Public Utilities - Electricity Services,02-Feb-15,2855260-NNO7M3T8,778.35,NPOWER.
Children and Adult Services,Education,Construction Work,908105,Construction work,02-Feb-15,2855325-1608,"7,198.53",SAFE STRIP UK LTD.
Children and Adult Services,Education,Supplies and Services,384199,Miscellaneous Expenses,02-Feb-15,2855411-SIGN/00000051,502,UNITE LTD.
Children and Adult Services,Head of Adults,Supplies and Services,324117,Provisions,02-Feb-15,2854947-15,"1,001.30",ASHBARTON CATERING.
Children and Adult Services,Head of Adults,Third Party Payments,473101,Purchase of Care,02-Feb-15,2855303-4123,"1,380.00",REAL CARE LTD.
Children and Adult Services,Head of Adults,Third Party Payments,473101,Purchase of Care,02-Feb-15,2855303-4153,"1,080.00",REAL CARE LTD.
Children and Adult Services,Head of Adults,Third Party Payments,473101,Purchase of Care,02-Feb-15,2855303-4196,"1,200.00",REAL CARE LTD.
Children and Adult Services,Head of Adults,Third Party Payments,479101,Purchase of Care,02-Feb-15,2855384-4810004209,"1,666.67",TEES ESK & WEAR VALLEYS NHS FOUNDATION TRUST.
Children and Adult Services,Planning & Service Strategy,Supplies and Services,338026,Services,02-Feb-15,2855339-4/2014-15,"3,368.75",S CON
Children and Adult Services,Public Health,Third Party Payments,460802,Contract Payments,02-Feb-15,2855015-3980007842,"52,572.00",CO DURHAM & DARLINGTON NHS FOUNDATION TRUST.
Children and Adult Services,Public Health,Third Party Payments,460803,Contract Payments,02-Feb-15,2855015-3980007843,"350,000.00",CO DURHAM & DARLINGTON NHS FOUNDATION TRUST.
Children and Adult Services,Public Health,Third Party Payments,460803,Contract Payments,02-Feb-15,2855194-6231CA/21401,548,LLOYDS PHARMACY.
Children and Adult Services,Public Health,Supplies and Services,384155,Miscellaneous Expenses,02-Feb-15,2855242-1000042915,"60,699.38",NHS BUSINESS SERVICES AUTHORITY.
Children and Adult Services,Public Health,Third Party Payments,460803,Contract Payments,02-Feb-15,2855306-2014106,"30,000.00",RELATE.
Assistant Chief Executive,Partnerships & Community Engagement Div.,Premises,125009,Rents,02-Feb-15,2855006-ACE-01-2015-017,798.4,CITIZENS HOUSE.
Assistant Chief Executive,Partnerships & Community Engagement Div.,Premises,125009,Rents,02-Feb-15,2855201-ACE-01-2015-016,798,LUDWORTH COMMUNITY ASSOCIATION.
Assistant Chief Executive,Partnerships & Community Engagement Div.,Premises,125009,Rents,02-Feb-15,2855284-ACE-01-2015-015,756,PITTINGTON VILLAGE HALL ASSOCIATION.
Assistant Chief Executive,Partnerships & Community Engagement Div.,Supplies and Services,384540,Miscellaneous Expenses,02-Feb-15,2855421-2051,"1,260.00",VISIT COUNTY DURHAM.
Neighbourhood Services,Direct Services,Premises,106082,Centrally Controlled Rep and Maint,02-Feb-15,2854916-90105296,"1,080.44",ABACUS LIGHTING LTD.
Neighbourhood Services,Direct Services,Premises,106082,Centrally Controlled Rep and Maint,02-Feb-15,2854916-90105298,713.1,ABACUS LIGHTING LTD.
Neighbourhood Services,Direct Services,Premises,106082,Centrally Controlled Rep and Maint,02-Feb-15,2854916-90105965,884.84,ABACUS LIGHTING LTD.
Neighbourhood Services,Direct Services,Premises,106082,Centrally Controlled Rep and Maint,02-Feb-15,2854916-90105967,"3,815.53",ABACUS LIGHTING LTD.
Neighbourhood Services,Direct Services,Premises,106082,Centrally Controlled Rep and Maint,02-Feb-15,2854916-90106522,738.11,ABACUS LIGHTING LTD.
Neighbourhood Services,Culture & Sport,Supplies and Services,312017,Newspapers Books and Periodicals,02-Feb-15,2854948-4524244,503.18,ASKEWS & HOLTS LIBRARY SERVICES LTD.
Neighbourhood Services,Technical Services,Supplies and Services,304358,Equipment and Materials,02-Feb-15,2854956-MG04224,636,BAILEY CONCRETE PUMPING LTD.
Neighbourhood Services,Direct Services,Supplies and Services,304221,Equipment and Materials,02-Feb-15,2854987-12644,758,CALDER TRAILER BOARDS.
Neighbourhood Services,Culture & Sport,Premises,120037,Energy Costs,02-Feb-15,2855001-3727170,"1,021.80",CERTAS ENERGY UK LTD.
Neighbourhood Services,Direct Services,Premises,106080,Centrally Controlled Rep and Maint,02-Feb-15,2855012-865,500,CLEARPOWER LTD.
Neighbourhood Services,Technical Services,Stock,926004,Stock,02-Feb-15,2855013-90133714,"6,355.72",CLEVELAND POTASH LTD.
Neighbourhood Services,Culture & Sport,Supplies and Services,384700,Miscellaneous Expenses,02-Feb-15,2855062-NEI-EXP-01-2015-078,600,DURHAM UNIVERSITY & COMMUNITY BOXING CLUB.
Neighbourhood Services,Technical Services,Supplies and Services,304221,Equipment and Materials,02-Feb-15,2855087-3593140910,"3,968.32",EXPRESS REINFORCEMENTS LTD.
Neighbourhood Services,Projects and Business services,Third Party Payments,430120,Rendered by Private Contractors,02-Feb-15,2855091-SINV8676523,"80,454.25",FINNING (UK) LTD.
Neighbourhood Services,Direct Services,Supplies and Services,328041,Clothing Uniforms and Laundry,02-Feb-15,2855096-OP/I286119,"5,821.20",FLEMING & CO (MACHINERY) LTD.
Neighbourhood Services,Culture & Sport,Supplies and Services,338078,Services,02-Feb-15,2855110-S-00000706848-C,685.17,G4S SECURE SOLUTIONS (UK) LTD.
Neighbourhood Services,Technical Services,Supplies and Services,304357,Equipment and Materials,02-Feb-15,2855111-DCC250115,"16,858.78",GAP GROUP LTD.
Neighbourhood Services,Direct Services,Third Party Payments,430101,Rendered by Private Contractors,02-Feb-15,2855140-5067309585,574.26,HI Q TYRESERVICES.
Neighbourhood Services,Direct Services,Third Party Payments,430101,Rendered by Private Contractors,02-Feb-15,2855140-5067313391,635.67,HI Q TYRESERVICES.
Neighbourhood Services,Direct Services,Third Party Payments,430101,Rendered by Private Contractors,02-Feb-15,2855140-5067316141,790,HI Q TYRESERVICES.
Neighbourhood Services,Technical Services,Supplies and Services,304221,Equipment and Materials,02-Feb-15,2855141-IN031705,669.1,HILL & SMITH LTD.
Neighbourhood Services,Technical Services,Employees,40149,Recruitment Instruction and Training,02-Feb-15,2855147-1363,900,HSF TRAINING LTD.
Neighbourhood Services,Projects and Business services,Supplies and Services,338029,Services,02-Feb-15,2855160-B1682500/034/JM,"12,530.20",JACOBS UK LTD.
Neighbourhood Services,Technical Services,Supplies and Services,304221,Equipment and Materials,02-Feb-15,2855167-NI026899,"4,067.46",JOHN MACLEAN & SONS ELECTRICAL (DINGWALL) LTD.
Neighbourhood Services,Technical Services,Supplies and Services,304358,Equipment and Materials,02-Feb-15,2855168-22648,914.2,JOHN R BUTTERFIELD LTD.
Neighbourhood Services,Technical Services,Supplies and Services,304358,Equipment and Materials,02-Feb-15,2855168-22700,740.4,JOHN R BUTTERFIELD LTD.
Neighbourhood Services,Technical Services,Supplies and Services,304358,Equipment and Materials,02-Feb-15,2855168-22771,999.5,JOHN R BUTTERFIELD LTD.
Neighbourhood Services,Technical Services,Supplies and Services,304358,Equipment and Materials,02-Feb-15,2855168-22865,914.2,JOHN R BUTTERFIELD LTD.
Neighbourhood Services,Direct Services,Third Party Payments,430100,Rendered by Private Contractors,02-Feb-15,2855180-INV00582678,965.05,LANES GROUP PLC.
Neighbourhood Services,Direct Services,Third Party Payments,430100,Rendered by Private Contractors,02-Feb-15,2855180-INV00582679,862.9,LANES GROUP PLC.
Neighbourhood Services,Direct Services,Third Party Payments,430100,Rendered by Private Contractors,02-Feb-15,2855180-INV00582680,965.05,LANES GROUP PLC.
Neighbourhood Services,Direct Services,Third Party Payments,430100,Rendered by Private Contractors,02-Feb-15,2855180-INV00582681,862.9,LANES GROUP PLC.
Neighbourhood Services,Culture & Sport,Supplies and Services,384700,Miscellaneous Expenses,02-Feb-15,2855186-NEI-EXP-01-2015-089,"1,180.00",LEISUREWORKS.
Neighbourhood Services,Technical Services,Supplies and Services,304358,Equipment and Materials,02-Feb-15,2855203-15A,"4,085.25",M & E & MR WALTON.
Neighbourhood Services,Technical Services,Supplies and Services,304358,Equipment and Materials,02-Feb-15,2855203-16AB,"2,598.38",M & E & MR WALTON.
Neighbourhood Services,Technical Services,Supplies and Services,304358,Equipment and Materials,02-Feb-15,2855210-1760,798,MARTIN JEWITT PLANT HIRE.
Neighbourhood Services,Technical Services,Supplies and Services,304221,Equipment and Materials,02-Feb-15,2855213-33734,718.37,MAY GURNEY LTD.
Neighbourhood Services,Technical Services,Supplies and Services,304221,Equipment and Materials,02-Feb-15,2855213-33866,511.31,MAY GURNEY LTD.
Neighbourhood Services,Culture & Sport,Supplies and Services,332029,Printing Stationery and Gen Off Exps,02-Feb-15,2855240-6254241,"1,380.79",NEWSQUEST (YORKSHIRE & NORTH EAST) LTD.
Neighbourhood Services,Technical Services,Premises,120009,Energy Costs,02-Feb-15,2855260-NNO7M4NQ,"238,055.11",NPOWER.
Neighbourhood Services,Culture & Sport,Supplies and Services,324117,Provisions,02-Feb-15,2855273-22/2047209,564.24,PALMER & HARVEY MCLANE LTD.
Neighbourhood Services,Technical Services,Stock,926900,Stock in hand-Inventory system,02-Feb-15,2855275-XL133920,"3,095.54",PARK ELECTRICAL DISTRIBUTORS LTD.
Neighbourhood Services,Direct Services,Supplies and Services,304221,Equipment and Materials,02-Feb-15,2855275-XL134323,"5,133.76",PARK ELECTRICAL DISTRIBUTORS LTD.
Neighbourhood Services,Technical Services,Stock,926900,Stock in hand-Inventory system,02-Feb-15,2855275-XL134359,"1,798.00",PARK ELECTRICAL DISTRIBUTORS LTD.
Neighbourhood Services,Culture & Sport,Premises,106080,Centrally Controlled Rep and Maint,02-Feb-15,2855293-RI4670,"8,885.00",PROMANEX (TOTAL FM & ENVIRONMENTAL SERVICES) LTD.
Neighbourhood Services,EnvironmentHealth & Consumer Protection,Supplies and Services,338027,Services,02-Feb-15,2855362-619,850,STM ENVIRONMENTAL LTD.
Neighbourhood Services,Direct Services,Premises,106082,Centrally Controlled Rep and Maint,02-Feb-15,2855363-6546,915.08,STONE TECHNICAL SERVICES LTD.
Neighbourhood Services,Technical Services,Stock,926900,Stock in hand-Inventory system,02-Feb-15,2855371-46/878909,"1,276.10",SUPPLY UK.
Neighbourhood Services,Technical Services,Stock,926900,Stock in hand-Inventory system,02-Feb-15,2855371-46/906462,501,SUPPLY UK.
Neighbourhood Services,Direct Services,Supplies and Services,304221,Equipment and Materials,02-Feb-15,2855373-1418307,"6,043.00",T CROSSLING & CO LTD.
Neighbourhood Services,Technical Services,Stock,926900,Stock in hand-Inventory system,02-Feb-15,2855398-99061,535.5,TOFCO LTD.
Neighbourhood Services,Technical Services,Supplies and Services,342225,Computers and Communications,02-Feb-15,2855402-25282,"4,205.88",TRACKYOU LTD.
Neighbourhood Services,Technical Services,Supplies and Services,342225,Computers and Communications,02-Feb-15,2855402-25284,"1,702.90",TRACKYOU LTD.
Neighbourhood Services,Technical Services,Supplies and Services,338027,Services,02-Feb-15,2855409-000185169,"1,543.75",TURNER & TOWNSEND LLP.
Neighbourhood Services,Technical Services,Third Party Payments,460350,Contract Payments,02-Feb-15,2855427-38601,"5,118.50",W MARLEY AGRICULTURAL CONTRACTORS LTD.
Neighbourhood Services,Technical Services,Stock,926900,Stock in hand-Inventory system,02-Feb-15,2855434-19239669,694.4,WOLSELEY UK LTD.
Neighbourhood Services,Technical Services,Supplies and Services,304358,Equipment and Materials,02-Feb-15,2855441-4605,"1,178.88",YOULL CONSTRUCTION LTD.
RED HRA,HRA Capital,Construction Work,908105,Construction work,02-Feb-15,2854930-526,"1,120.00",ALL SEASONS ARBORISTS.
RED HRA,Housing Revenue Account,Supplies and Services,344014,Telephones,02-Feb-15,2855424-GW93459,"7,440.00",VODAFONE CORPORATE LTD.
Regeneration & Economic Development,Spatial Policy Planning Assets & Environment,Supplies and Services,384540,Miscellaneous Expenses,02-Feb-15,2854925-740,"1,848.00",AHA DISTRIBUTION LTD.
Regeneration & Economic Development,Transport and Contracted Services,Third Party Payments,430106,Rendered by Private Contractors,02-Feb-15,2854944-108171,"49,210.08",ARRIVA NORTH EAST LTD.
Regeneration & Economic Development,Transport and Contracted Services,Third Party Payments,430106,Rendered by Private Contractors,02-Feb-15,2854944-108346,"43,257.10",ARRIVA NORTH EAST LTD.
Regeneration & Economic Development,Transport and Contracted Services,Construction Work,908105,Construction work,02-Feb-15,2854960-30382,"3,580.00",BAYDALE CONTROL SYSTEMS LTD.
Regeneration & Economic Development,Transport and Contracted Services,Third Party Payments,440999,Other Third Party Payments,02-Feb-15,2855059-5595-25,"1,666.67",DTA CONSULTING ENGINEERS.
Regeneration & Economic Development,Transport and Contracted Services,Third Party Payments,440999,Other Third Party Payments,02-Feb-15,2855059-5719-03,937.5,DTA CONSULTING ENGINEERS.
Regeneration & Economic Development,Spatial Policy Planning Assets & Environment,Premises,120021,Energy Costs,02-Feb-15,2855082-H10E68E976A,680.18,EON UK PLC.
Regeneration & Economic Development,Economic Development and Housing,Supplies and Services,340001,Postages,02-Feb-15,2855103-45018081,"2,000.00",FRANCOTYP POSTALIA TELESET.
Regeneration & Economic Development,Strategy Programmes and Performance,Employees,40149,Recruitment Instruction and Training,02-Feb-15,2855149-IAY0513,540,I AM YOU LTD.
Regeneration & Economic Development,Economic Development and Housing,Cap Exp on Grants & Other Financial Assistance (REFCUS),918401,Capital grants,02-Feb-15,2855223-RED-01-2015-209,"5,000.00",REDACTED - PAYMENT TO INDIVIDUAL
Regeneration & Economic Development,Economic Development and Housing,Supplies and Services,384199,Miscellaneous Expenses,02-Feb-15,2855237-NM30161,700,NEW MIND INTERNET CONSULTANCY LTD.
Regeneration & Economic Development,Economic Development and Housing,Construction Work,908105,Construction work,02-Feb-15,2855255-RED-01-2015-197,892.8,NORTHERN GAS NETWORKS LTD.
Regeneration & Economic Development,Economic Development and Housing,Supplies and Services,340001,Postages,02-Feb-15,2855317-9049031954,787,ROYAL MAIL GROUP PLC.
Regeneration & Economic Development,Strategy Programmes and Performance,Supplies and Services,384899,Miscellaneous Expenses,02-Feb-15,2855391-FEDF038/2,"3,661.20",THE WITHAM.
Resources,I.C.T. Services,Supplies and Services,304245,Equipment and Materials,02-Feb-15,2854934-WJ4467035,888,ANTALIS LTD.
Resources,Human Resources,Supplies and Services,338221,Services,02-Feb-15,2855094-6058002323,885.42,FIRSTASSIST SERVICES LTD.
Resources,I.C.T. Services,Stock,926900,Stock in hand-Inventory system,02-Feb-15,2855131-INV0157152,"1,485.00",GV MULTI MEDIA LTD.
Resources,Human Resources,Employees,40149,Recruitment Instruction and Training,02-Feb-15,2855254-9080,"2,200.00",NORTHERN COUNTIES SAFETY GROUP LTD.
Resources,I.C.T. Services,Supplies and Services,332029,Printing Stationery and Gen Off Exps,02-Feb-15,2855353-7858,"6,772.00",SPOT ON DISPLAYS LTD.
Resources,Legal & Democratic Services,Premises,125009,Rents,02-Feb-15,2855396-20141446,"2,484.36",TJD PROPERTIES LTD.
Resources,I.C.T. Services,Stock,926900,Stock in hand-Inventory system,02-Feb-15,2855418-2356196,"1,440.00",VIGLEN LTD.
Resources,I.C.T. Services,Debtors,930168,Debtor - Mobile Telephone Holding Account,02-Feb-15,2855424-74814935,"2,692.75",VODAFONE CORPORATE LTD.
Resources,I.C.T. Services,Debtors,930168,Debtor - Mobile Telephone Holding Account,02-Feb-15,2855424-74815133,"4,130.05",VODAFONE CORPORATE LTD.
Resources,I.C.T. Services,Debtors,930168,Debtor - Mobile Telephone Holding Account,02-Feb-15,2855425-GV94638,600,VODAFONE CORPORATE LTD.
Resources,Human Resources,Supplies and Services,338066,Services,02-Feb-15,2855428-561686,"2,463.00",WARD HADAWAY.
Children and Adult Services,Central Charges (CYPS),Debtors,930062,Debtor-school meals suspense,03-Feb-15,2856458-SI-TSD-1000586,"222,018.80",TAYLOR SHAW LTD.
Children and Adult Services,Childrens Services,Third Party Payments,440036,Other Third Party Payments,03-Feb-15,2855490-1005498,586.4,REDACTED - PAYMENT TO INDIVIDUAL
Children and Adult Services,Childrens Services,Premises,108251,Service Repairs and Maintenance,03-Feb-15,2856072-39536,"1,250.00",ALARM RADIO MONITORING LTD.
Children and Adult Services,Childrens Services,Premises,108301,Service Repairs and Maintenance,03-Feb-15,2856119-CAS-01-2015-138,"3,000.00",BRANDON CARRSIDE YOUTH & COMMUNITY PROJECT.
Children and Adult Services,Childrens Services,Employees,80025,Agency Staff,03-Feb-15,2856167-324630,"145,051.04",DE POEL MANAGED SERVICES LTD.
Children and Adult Services,Childrens Services,Premises,108301,Service Repairs and Maintenance,03-Feb-15,2856176-CAS-01-2015-136,"3,000.00",DJ EVANS YOUTH CLUB.
Children and Adult Services,Childrens Services,Supplies and Services,340001,Postages,03-Feb-15,2856352-CAS-01-2015-127,900,NEOPOST LTD CREDIFON RCB ACCOUNT.
Children and Adult Services,Childrens Services,Supplies and Services,384638,Miscellaneous Expenses,03-Feb-15,2856357-0000020068,607.5,NORTH EAST AUTISM SOCIETY.
Children and Adult Services,Childrens Services,Supplies and Services,384638,Miscellaneous Expenses,03-Feb-15,2856357-0000020069,"1,512.00",NORTH EAST AUTISM SOCIETY.
Children and Adult Services,Childrens Services,Supplies and Services,384638,Miscellaneous Expenses,03-Feb-15,2856357-0000020070,972,NORTH EAST AUTISM SOCIETY.
Children and Adult Services,Childrens Services,Supplies and Services,384638,Miscellaneous Expenses,03-Feb-15,2856357-0000020071,864,NORTH EAST AUTISM SOCIETY.
Children and Adult Services,Childrens Services,Premises,108301,Service Repairs and Maintenance,03-Feb-15,2856384-CAS-01-2015-137,"3,000.00",PELTON COMMUNITY ASSOCIATION.
Children and Adult Services,Childrens Services,Supplies and Services,364352,Grants to Voluntary Organisations,03-Feb-15,2856449-D1/IN00016804,"3,220.58",STONHAM HOUSING ASSOCIATION LTD.
Dedicated Schools Grant,Dedicated Schools Grant,Third Party Payments,440080,Other Third Party Payments,03-Feb-15,2856093-203301999,"34,369.71",BARNARDOS.
Dedicated Schools Grant,Dedicated Schools Grant,Transfer Payments,510034,School Children,03-Feb-15,2856244-RES-01-2015-147,"1,900.00",HUMMERSKNOTT SCHOOL.
Dedicated Schools Grant,Dedicated Schools Grant,Transport,230010,Contract Hire,03-Feb-15,2856263-2014/30,"1,026.00",JM HUMBLE COACH HIRE.
Dedicated Schools Grant,Dedicated Schools Grant,Central Support and Capital,689997,Unclassified,03-Feb-15,2856283-CAS-02-2015-001,"8,837.26",KING JAMES I ACADEMY.
Dedicated Schools Grant,Dedicated Schools Grant,Transfer Payments,510034,School Children,03-Feb-15,2856319-RES-01-2015-149,"3,800.00",MATTHEW ARNOLD SCHOOL.
Dedicated Schools Grant,Dedicated Schools Grant,Transfer Payments,510034,School Children,03-Feb-15,2856365-RES-01-2015-151,"1,900.00",NOTTINGHAM ACADEMY.
Dedicated Schools Grant,Dedicated Schools Grant,Third Party Payments,440080,Other Third Party Payments,03-Feb-15,2856386-23544,"2,842.84",PERCY HEDLEY FOUNDATION.
Dedicated Schools Grant,Dedicated Schools Grant,Third Party Payments,440080,Other Third Party Payments,03-Feb-15,2856386-23545,"3,725.13",PERCY HEDLEY FOUNDATION.
Dedicated Schools Grant,Dedicated Schools Grant,Transfer Payments,510034,School Children,03-Feb-15,2856439-RES-01-2015-150,"1,900.00",ST ANNE`S RC PRIMARY SCHOOL.
Children and Adult Services,Education,Transport,230008,Contract Hire,03-Feb-15,2856136-5.,"1,235.00",CHAPMAN TRAVEL.
Children and Adult Services,Education,Transport,230006,Contract Hire,03-Feb-15,2856163-5000,945.2,CROFT BUSINESS SERVICES (UK) LTD T/A CROFT TAXIS.
Children and Adult Services,Education,Transport,230006,Contract Hire,03-Feb-15,2856163-5004,"1,010.88",CROFT BUSINESS SERVICES (UK) LTD T/A CROFT TAXIS.
Children and Adult Services,Education,Transport,230006,Contract Hire,03-Feb-15,2856163-5006,985.6,CROFT BUSINESS SERVICES (UK) LTD T/A CROFT TAXIS.
Children and Adult Services,Education,Transport,230008,Contract Hire,03-Feb-15,2856242-27,"1,540.00",HENRYS TAXIS.
Children and Adult Services,Education,Transport,230007,Contract Hire,03-Feb-15,2856245-F1283,769.6,HUNTER BROTHERS (TANTOBIE) LTD.
Children and Adult Services,Education,Transport,230008,Contract Hire,03-Feb-15,2856263-2014/31,851.2,JM HUMBLE COACH HIRE.
Children and Adult Services,Education,Transport,230008,Contract Hire,03-Feb-15,2856303-2022,"1,590.00",LOCAL TRANSPORT LTD.
Children and Adult Services,Education,Transport,230008,Contract Hire,03-Feb-15,2856303-2023,"1,760.00",LOCAL TRANSPORT LTD.
Children and Adult Services,Education,Transport,230008,Contract Hire,03-Feb-15,2856303-2024,800,LOCAL TRANSPORT LTD.
Children and Adult Services,Education,Transport,230008,Contract Hire,03-Feb-15,2856310-72,"2,255.00",M BUTCHER.
Children and Adult Services,Education,Transport,230008,Contract Hire,03-Feb-15,2856323-15,"1,400.00",MEDAL TAXI`S.
Children and Adult Services,Education,Transport,230008,Contract Hire,03-Feb-15,2856330-KDC010115,"2,450.00",MJ TIMNEY T/A KDC & C&M TAXIS.
Children and Adult Services,Education,Transport,230006,Contract Hire,03-Feb-15,2856333-151,722,MR DEREK HENDERSON.
Children and Adult Services,Education,Transport,230008,Contract Hire,03-Feb-15,2856335-045A,"1,716.00",MR GN ROBBINS T/A GNR MINIBUS HIRE.
Children and Adult Services,Education,Transport,230008,Contract Hire,03-Feb-15,2856335-046A,"2,085.00",MR GN ROBBINS T/A GNR MINIBUS HIRE.
Children and Adult Services,Education,Transport,230008,Contract Hire,03-Feb-15,2856340-AA300,"2,520.00",MR T GUNN.
Children and Adult Services,Education,Transport,230008,Contract Hire,03-Feb-15,2856351-5,760,NEIL PASSMOOR T/A NEIL`S TAXI.
Children and Adult Services,Education,Transport,230008,Contract Hire,03-Feb-15,2856378-DCC010115-310115,"1,520.00",PAUL`S TAXIS..
Children and Adult Services,Education,Construction Work,908105,Construction work,03-Feb-15,2856420-1620,926.72,SAFE STRIP UK LTD.
Children and Adult Services,Education,Transport,230008,Contract Hire,03-Feb-15,2856456-1176,"2,390.00",TAILORMADE TRAVEL.
Children and Adult Services,Education,Employees,40001,Recruitment Instruction and Training,03-Feb-15,2856462-TARINV/15342956,710.1,TES GLOBAL LTD.
Children and Adult Services,Education,Premises,125009,Rents,03-Feb-15,2856468-3406,"5,838.75",THE WORK PLACE (AYCLIFFE) LTD.
Children and Adult Services,Education,Transport,230008,Contract Hire,03-Feb-15,2856483-27,"1,620.00",TT TAXIS.
Children and Adult Services,Head of Adults,Supplies and Services,304252,Equipment and Materials,03-Feb-15,2856225-FLAT7/8,"1,450.00",GK DECORATING.
Children and Adult Services,Head of Adults,Transport,230005,Contract Hire,03-Feb-15,2856229-42A,619.5,GRAEME AGNEW T/A STREETCARS.
Children and Adult Services,Head of Adults,Supplies and Services,304252,Equipment and Materials,03-Feb-15,2856278-555280,"2,517.00",K CHAP
Children and Adult Services,Head of Adults,Supplies and Services,338365,Services,03-Feb-15,2856304-34835,"1,890.00",LOCKWISE LTD.
Children and Adult Services,Head of Adults,Third Party Payments,473101,Purchase of Care,03-Feb-15,2856408-4173,900,REAL CARE LTD.
Children and Adult Services,Head of Adults,Premises,108099,Service Repairs and Maintenance,03-Feb-15,2856486-2094,"1,282.50",UPNORTH FOODSERVICE EQUIPMENT LTD.
Children and Adult Services,Planning & Service Strategy,Supplies and Services,340001,Postages,03-Feb-15,2856415-9049040202,843.28,ROYAL MAIL GROUP PLC.
Children and Adult Services,Public Health,Third Party Payments,460803,Contract Payments,03-Feb-15,2856082-DTPB/00000005,"1,107.39",ASDA PHARMACY.
Children and Adult Services,Public Health,Third Party Payments,460803,Contract Payments,03-Feb-15,2856083-FPKW/00000007,943.15,ASDA PHARMACY.
Children and Adult Services,Public Health,Third Party Payments,460803,Contract Payments,03-Feb-15,2856086-DPQZ/00000008,891.81,ASDA PHARMACY.
Children and Adult Services,Public Health,Third Party Payments,460803,Contract Payments,03-Feb-15,2856087-LJHY/00000006,607.66,ASHCHEM LTD.
Children and Adult Services,Public Health,Third Party Payments,460803,Contract Payments,03-Feb-15,2856097-DXGC/00000005,"1,069.43",BEWICK PHARMACY.
Children and Adult Services,Public Health,Third Party Payments,460803,Contract Payments,03-Feb-15,2856100-FCPT/00000003,"1,280.18",BOOTS THE CHEMISTS LTD.
Children and Adult Services,Public Health,Third Party Payments,460803,Contract Payments,03-Feb-15,2856101-FMMG/00000001,755.79,BOOTS THE CHEMISTS LTD.
Children and Adult Services,Public Health,Third Party Payments,460803,Contract Payments,03-Feb-15,2856102-FHRN/00000007,646.54,BOOTS THE CHEMISTS LTD.
Children and Adult Services,Public Health,Third Party Payments,460803,Contract Payments,03-Feb-15,2856105-DPWT/00000008,674.36,BOOTS THE CHEMISTS LTD.
Children and Adult Services,Public Health,Third Party Payments,460802,Contract Payments,03-Feb-15,2856108-FGR42/DEC2014/EOHC,522.94,BOOTS THE CHEMISTS LTD.
Children and Adult Services,Public Health,Third Party Payments,460802,Contract Payments,03-Feb-15,2856110-FMG71/DEC2014/EOHC,570.48,BOOTS THE CHEMISTS LTD.
Children and Adult Services,Public Health,Third Party Payments,460803,Contract Payments,03-Feb-15,2856112-DZFC/00000008,628.99,BOOTS THE CHEMISTS LTD.
Children and Adult Services,Public Health,Third Party Payments,460802,Contract Payments,03-Feb-15,2856113-FKP88/DEC2014/EOHC,831.95,BOOTS THE CHEMISTS LTD.
Children and Adult Services,Public Health,Third Party Payments,460802,Contract Payments,03-Feb-15,2856115-FYR53/DEC2014/EOHC,"3,660.58",BOOTS THE CHEMISTS LTD.
Children and Adult Services,Public Health,Third Party Payments,460803,Contract Payments,03-Feb-15,2856117-DXNF/00000001,"1,502.03",BOWBURN PHARMACY.
Children and Adult Services,Public Health,Third Party Payments,460803,Contract Payments,03-Feb-15,2856141-DYJV/00000004,707.68,CHILTON CHEMISTS LTD.
Children and Adult Services,Public Health,Third Party Payments,460802,Contract Payments,03-Feb-15,2856145-7910014068,"2,858.00",CITY HOSPITALS SUNDERLAND NHS FOUNDATION TRUST.
Children and Adult Services,Public Health,Third Party Payments,460802,Contract Payments,03-Feb-15,2856147-A83011/DEC2014HC,500,CLAYPATH & UNIVERSITY MEDICAL GROUP.
Children and Adult Services,Public Health,Third Party Payments,460803,Contract Payments,03-Feb-15,2856155-FKLX/00000007,560.54,CO-OPERATIVE PHARMACY.
Children and Adult Services,Public Health,Third Party Payments,460803,Contract Payments,03-Feb-15,2856174-FPZD/00000008,581.81,DIXON & HALL LTD.
Children and Adult Services,Public Health,Third Party Payments,460802,Contract Payments,03-Feb-15,2856174-FWL23/DEC2014/EOHC,998.34,DIXON & HALL LTD.
Children and Adult Services,Public Health,Third Party Payments,460803,Contract Payments,03-Feb-15,2856184-23/2014,"4,550.00",DR KV REDDY (DENESIDE MEDICAL CENTRE).
Children and Adult Services,Public Health,Third Party Payments,460802,Contract Payments,03-Feb-15,2856186-A83017/DEC2014HC,"1,210.00",DR NK MAHTO.
Children and Adult Services,Public Health,Third Party Payments,460802,Contract Payments,03-Feb-15,2856189-A83018/DEC2014HC,970,DR YOUNG & PARTNERS.
Children and Adult Services,Public Health,Premises,120009,Energy Costs,03-Feb-15,2856201-H10F82246A,"1,029.95",EON UK PLC.
Children and Adult Services,Public Health,Third Party Payments,460803,Contract Payments,03-Feb-15,2856217-FNCW/00000005,"1,605.09",G WHITFIELD LTD.
Children and Adult Services,Public Health,Third Party Payments,460803,Contract Payments,03-Feb-15,2856238-FFFR/00000007,861.47,HANCOCK & AINSLEY CHEMIST LTD.
Children and Adult Services,Public Health,Third Party Payments,460803,Contract Payments,03-Feb-15,2856262-FKG29/NOV,"1,575.09",JF EILBECK CHEMIST LTD.
Children and Adult Services,Public Health,Third Party Payments,460803,Contract Payments,03-Feb-15,2856262-FKG29/OCT,"1,361.57",JF EILBECK CHEMIST LTD.
Children and Adult Services,Public Health,Third Party Payments,460803,Contract Payments,03-Feb-15,2856297-FD810/92014/NRT,614.61,LLOYDS PHARMACY.
Children and Adult Services,Public Health,Third Party Payments,460803,Contract Payments,03-Feb-15,2856297-FRCN/00000004,521.72,LLOYDS PHARMACY.
Children and Adult Services,Public Health,Third Party Payments,460803,Contract Payments,03-Feb-15,2856299-FQVV/00000003,"1,265.19",LLOYDS PHARMACY.
Children and Adult Services,Public Health,Third Party Payments,460803,Contract Payments,03-Feb-15,2856309-LGFQ/00000008,646.37,M & M PHARMACIES LTD.
Children and Adult Services,Public Health,Third Party Payments,460803,Contract Payments,03-Feb-15,2856311-DYMT/00000005,924.02,M WHITFIELD LTD.
Children and Adult Services,Public Health,Third Party Payments,460803,Contract Payments,03-Feb-15,2856314-FMXQ/00000004,629.56,M WHITFIELD LTD.
Children and Adult Services,Public Health,Third Party Payments,460803,Contract Payments,03-Feb-15,2856326-DVTB/00000004,915.73,MILLERS PHARMACY.
Children and Adult Services,Public Health,Third Party Payments,460802,Contract Payments,03-Feb-15,2856382-A83074/DEC2014HC,"1,295.00",PEASEWAY PARTNERSHIP.
Children and Adult Services,Public Health,Third Party Payments,460802,Contract Payments,03-Feb-15,2856402-A83049/DEC2014HC,895,QUEENS ROAD SURGERY.
Children and Adult Services,Public Health,Third Party Payments,460803,Contract Payments,03-Feb-15,2856418-A83026/OCT2014/L2SSS,565,SACRISTON SURGERY.
Children and Adult Services,Public Health,Third Party Payments,460803,Contract Payments,03-Feb-15,2856443-A83023/OCT2014/L2SSS,673.5,STANLEY MEDICAL GROUP.
Children and Adult Services,Public Health,Third Party Payments,460803,Contract Payments,03-Feb-15,2856454-FRK79/JUNE/SEPT,"1,101.44",T & J HEALTHCARE LTD T/A STATION ROAD PHARMACY..
Children and Adult Services,Public Health,Third Party Payments,460803,Contract Payments,03-Feb-15,2856454-LQPJ/00000003,"1,265.31",T & J HEALTHCARE LTD T/A STATION ROAD PHARMACY..
Children and Adult Services,Public Health,Third Party Payments,460802,Contract Payments,03-Feb-15,2856467-A83035/DEC2014HC,730,THE WEARDALE PRACTICE.
Children and Adult Services,Public Health,Third Party Payments,460802,Contract Payments,03-Feb-15,2856498-A83024/DEC2014HC,695,WEST RAINTON SURGERY.
Children and Adult Services,Public Health,Third Party Payments,460802,Contract Payments,03-Feb-15,2856503-A83003/DEC2014HC,"1,400.00",WILLINGTON MEDICAL GROUP.
Neighbourhood Services,Technical Services,Supplies and Services,304221,Equipment and Materials,03-Feb-15,2856068-20877451,562.6,AGGREGATE INDUSTRIES UK LTD.
Neighbourhood Services,Technical Services,Supplies and Services,304221,Equipment and Materials,03-Feb-15,2856068-20882055,759.53,AGGREGATE INDUSTRIES UK LTD.
Neighbourhood Services,Technical Services,Supplies and Services,304221,Equipment and Materials,03-Feb-15,2856068-20895086,567.95,AGGREGATE INDUSTRIES UK LTD.
Neighbourhood Services,Technical Services,Supplies and Services,304221,Equipment and Materials,03-Feb-15,2856068-20900574,800.53,AGGREGATE INDUSTRIES UK LTD.
Neighbourhood Services,Technical Services,Supplies and Services,304221,Equipment and Materials,03-Feb-15,2856068-20914092,755.23,AGGREGATE INDUSTRIES UK LTD.
Neighbourhood Services,Culture & Sport,Supplies and Services,304221,Equipment and Materials,03-Feb-15,2856075-29813,760.4,ANDERSON WHOLESALES.
Neighbourhood Services,Technical Services,Supplies and Services,338027,Services,03-Feb-15,2856089-14047663,"10,920.00",ATKINS GLOBAL.
Neighbourhood Services,Technical Services,Supplies and Services,304358,Equipment and Materials,03-Feb-15,2856091-MG04194,520,BAILEY CONCRETE PUMPING LTD.
Neighbourhood Services,Technical Services,Third Party Payments,430100,Rendered by Private Contractors,03-Feb-15,2856092-IN_21996,"29,681.69",BALFOUR BEATTY LIVING PLACES LTD.
Neighbourhood Services,Direct Services,Transport,210057,Repair and Maintenance of Vehicles,03-Feb-15,2856094-25150235,"4,587.00",BELL TRUCK SALES LTD.
Neighbourhood Services,Direct Services,Transport,210057,Repair and Maintenance of Vehicles,03-Feb-15,2856094-25151150,513.9,BELL TRUCK SALES LTD.
Neighbourhood Services,Direct Services,Transport,210057,Repair and Maintenance of Vehicles,03-Feb-15,2856094-25151269,708.61,BELL TRUCK SALES LTD.
Neighbourhood Services,Direct Services,Third Party Payments,430100,Rendered by Private Contractors,03-Feb-15,2856094-46038044,"2,370.14",BELL TRUCK SALES LTD.
Neighbourhood Services,Direct Services,Transport,210057,Repair and Maintenance of Vehicles,03-Feb-15,2856124-168815,986.13,BUNCE (ASHBURY) LTD.
Neighbourhood Services,Direct Services,Transport,210057,Repair and Maintenance of Vehicles,03-Feb-15,2856124-168836,"4,535.61",BUNCE (ASHBURY) LTD.
Neighbourhood Services,Direct Services,Transport,210057,Repair and Maintenance of Vehicles,03-Feb-15,2856126-INV080296,550,BUS & TRUCK PARTS (NORTH EAST) LTD.
Neighbourhood Services,Direct Services,Transport,210057,Repair and Maintenance of Vehicles,03-Feb-15,2856127-12629,500,CALDER TRAILER BOARDS.
Neighbourhood Services,Culture & Sport,Supplies and Services,324001,Provisions,03-Feb-15,2856130-841109791,"1,038.27",CARLSBERG UK LTD.
Neighbourhood Services,Technical Services,Stock,926004,Stock,03-Feb-15,2856149-90133848,"8,114.33",CLEVELAND POTASH LTD.
Neighbourhood Services,Culture & Sport,Transport,240001,Car Allowances,03-Feb-15,2856152-1351,795.6,CO WHEELS CAR CLUB CIC.
Neighbourhood Services,Direct Services,Third Party Payments,430100,Rendered by Private Contractors,03-Feb-15,2856170-256348,573.03,DENNIS EAGLE LTD.
Neighbourhood Services,Culture & Sport,Supplies and Services,384237,Miscellaneous Expenses,03-Feb-15,2856171-NEI-EXP-01-2015-087,960,DERWENTSIDE COMMUNITY TENNIS PARTNERSHIP.
Neighbourhood Services,Culture & Sport,Supplies and Services,304259,Equipment and Materials,03-Feb-15,2856178-6505,"2,995.00",DMK LEISURE LTD.
Neighbourhood Services,Culture & Sport,Supplies and Services,384700,Miscellaneous Expenses,03-Feb-15,2856192-NEI-EXP-01-2015-086,854,DURHAM DODGERS NETBALL CLUB.
Neighbourhood Services,Direct Services,Transport,210057,Repair and Maintenance of Vehicles,03-Feb-15,2856196-S187422,"1,671.00",ECON ENGINEERING LTD.
Neighbourhood Services,Direct Services,Third Party Payments,430100,Rendered by Private Contractors,03-Feb-15,2856223-B00945,518.65,GEESINK NORBA LTD.
Neighbourhood Services,Direct Services,Transport,210057,Repair and Maintenance of Vehicles,03-Feb-15,2856223-B01013,772.97,GEESINK NORBA LTD.
Neighbourhood Services,Direct Services,Supplies and Services,304221,Equipment and Materials,03-Feb-15,2856239-SI-2454,575.6,HARELAW SAWMILL LTD.
Neighbourhood Services,Direct Services,Supplies and Services,304221,Equipment and Materials,03-Feb-15,2856240-517508,551.02,HARVEST ENERGY LTD.
Neighbourhood Services,Direct Services,Stock,926004,Stock,03-Feb-15,2856240-518908,"17,040.55",HARVEST ENERGY LTD.
Neighbourhood Services,Direct Services,Stock,926004,Stock,03-Feb-15,2856240-518909,"2,106.00",HARVEST ENERGY LTD.
Neighbourhood Services,Direct Services,Supplies and Services,304221,Equipment and Materials,03-Feb-15,2856240-518910,535.01,HARVEST ENERGY LTD.
Neighbourhood Services,Direct Services,Stock,926004,Stock,03-Feb-15,2856240-518911,"1,323.77",HARVEST ENERGY LTD.
Neighbourhood Services,Direct Services,Stock,926004,Stock,03-Feb-15,2856240-519185,"1,275.11",HARVEST ENERGY LTD.
Neighbourhood Services,Culture & Sport,Supplies and Services,304221,Equipment and Materials,03-Feb-15,2856246-14366,"1,363.00",HUSSEY SEATWAY LTD.
Neighbourhood Services,Projects and Business services,Supplies and Services,342033,Computers and Communications,03-Feb-15,2856247-2192044,"1,373.04",INSIGHT DIRECT (UK) LTD.
Neighbourhood Services,Direct Services,Third Party Payments,430100,Rendered by Private Contractors,03-Feb-15,2856259-499,"1,300.00",JDJ (NORTH EAST) LTD.
Neighbourhood Services,Technical Services,Supplies and Services,304358,Equipment and Materials,03-Feb-15,2856265-22736,936,JOHN R BUTTERFIELD LTD.
Neighbourhood Services,Culture & Sport,Supplies and Services,304259,Equipment and Materials,03-Feb-15,2856270-742370,511.92,JP LENNARD LTD.
Neighbourhood Services,Technical Services,Supplies and Services,304221,Equipment and Materials,03-Feb-15,2856272-BII153781,644.33,JT DOVE LTD.
Neighbourhood Services,Direct Services,Supplies and Services,304221,Equipment and Materials,03-Feb-15,2856272-CNI21211/D,652,JT DOVE LTD.
Neighbourhood Services,Technical Services,Supplies and Services,304221,Equipment and Materials,03-Feb-15,2856272-CNI21319/D,"1,001.53",JT DOVE LTD.
Neighbourhood Services,Technical Services,Third Party Payments,430100,Rendered by Private Contractors,03-Feb-15,2856275-5504,"1,007.44",KAEFER C & D - KD SCAFFOLDING DIVISION.
Neighbourhood Services,Technical Services,Supplies and Services,304358,Equipment and Materials,03-Feb-15,2856286-INV00591045,"9,075.00",LANES GROUP PLC.
Neighbourhood Services,Technical Services,Stock,926900,Stock in hand-Inventory system,03-Feb-15,2856306-141218,548.4,LUCY ZODION LTD.
Neighbourhood Services,Technical Services,Stock,926900,Stock in hand-Inventory system,03-Feb-15,2856306-144013,657.6,LUCY ZODION LTD.
Neighbourhood Services,Technical Services,Supplies and Services,304221,Equipment and Materials,03-Feb-15,2856321-33948,"1,639.21",MAY GURNEY LTD.
Neighbourhood Services,Direct Services,Supplies and Services,342053,Computers and Communications,03-Feb-15,2856322-2527,"7,763.36",MCPC SYSTEMS (UK) LLP.
Neighbourhood Services,Technical Services,Supplies and Services,304221,Equipment and Materials,03-Feb-15,2856324-14142,"2,451.08",MEERDINK (UK) LTD.
Neighbourhood Services,Technical Services,Third Party Payments,430100,Rendered by Private Contractors,03-Feb-15,2856325-228,"1,100.80",MICHAEL KELLY.
Neighbourhood Services,Culture & Sport,Supplies and Services,338099,Services,03-Feb-15,2856343-GTSS,770,MRS SHARON KERRIDGE.
Neighbourhood Services,Direct Services,Transport,210057,Repair and Maintenance of Vehicles,03-Feb-15,2856349-INVDUR00311879,768.45,NE TRUCK SPARES LTD.
Neighbourhood Services,Direct Services,Supplies and Services,384194,Miscellaneous Expenses,03-Feb-15,2856355-7454,"2,125.00",NIRAMAX GROUP LTD.
Neighbourhood Services,Projects and Business services,Third Party Payments,430100,Rendered by Private Contractors,03-Feb-15,2856368-CN18897537,686.4,OCS GROUP UK LTD T/A CANNON HYGIENE.
Neighbourhood Services,Direct Services,Supplies and Services,304221,Equipment and Materials,03-Feb-15,2856372-556348,623,P & N ASSOCIATES LTD.
Neighbourhood Services,Culture & Sport,Supplies and Services,304221,Equipment and Materials,03-Feb-15,2856381-2304,750,PEAKBODY FITNESS.
Neighbourhood Services,Direct Services,Supplies and Services,304221,Equipment and Materials,03-Feb-15,2856394-214243,"2,011.75",PLUMBING TRADE SUPPLIES LTD.
Neighbourhood Services,Technical Services,Employees,40149,Recruitment Instruction and Training,03-Feb-15,2856397-16291,"2,085.00",PPL TRAINING LTD.
Neighbourhood Services,Projects and Business services,Construction Work,908105,Construction work,03-Feb-15,2856399-574,775,PROBE INDUSTRIES LTD.
Neighbourhood Services,Technical Services,Third Party Payments,430100,Rendered by Private Contractors,03-Feb-15,2856401-72727,550,PROTECTOR SECURITY GROUP LTD.
Neighbourhood Services,Technical Services,Third Party Payments,430100,Rendered by Private Contractors,03-Feb-15,2856401-72910,550,PROTECTOR SECURITY GROUP LTD.
Neighbourhood Services,Technical Services,Third Party Payments,430100,Rendered by Private Contractors,03-Feb-15,2856401-73847,550,PROTECTOR SECURITY GROUP LTD.
Neighbourhood Services,EnvironmentHealth & Consumer Protection,Third Party Payments,410037,Rendered by Other Local Authorities,03-Feb-15,2856409-440058891,"7,200.00",REDCAR & CLEVELAND BOROUGH COUNCIL.
Neighbourhood Services,Direct Services,Third Party Payments,430100,Rendered by Private Contractors,03-Feb-15,2856413-29496,"4,707.19",RJ UTILITY SERVICES LTD.
Neighbourhood Services,Direct Services,Third Party Payments,430100,Rendered by Private Contractors,03-Feb-15,2856416-JAN05315,609.5,RW CHICKEN (SCAFFOLDING) LTD.
Neighbourhood Services,Direct Services,Third Party Payments,430100,Rendered by Private Contractors,03-Feb-15,2856419-140659,758.75,SAFE & SURE FIRE PROTECTION LTD.
Neighbourhood Services,Direct Services,Third Party Payments,430100,Rendered by Private Contractors,03-Feb-15,2856440-4635,618,ST ASTIER LTD.
Neighbourhood Services,Technical Services,Supplies and Services,304221,Equipment and Materials,03-Feb-15,2856448-068929,"1,279.20",STONEGRAVE AGGREGATES LTD.
Neighbourhood Services,Technical Services,Supplies and Services,304221,Equipment and Materials,03-Feb-15,2856448-068995,"1,108.80",STONEGRAVE AGGREGATES LTD.
Neighbourhood Services,Technical Services,Supplies and Services,304221,Equipment and Materials,03-Feb-15,2856448-069030,"1,376.36",STONEGRAVE AGGREGATES LTD.
Neighbourhood Services,Direct Services,Supplies and Services,304221,Equipment and Materials,03-Feb-15,2856455-1461055,"1,085.00",T CROSSLING & CO LTD.
Neighbourhood Services,Direct Services,Transport,210057,Repair and Maintenance of Vehicles,03-Feb-15,2856457-2396375,"1,313.01",TATA STEEL LTD.
Neighbourhood Services,Direct Services,Transport,210057,Repair and Maintenance of Vehicles,03-Feb-15,2856471-353114,916.33,THOMPSON COMMERCIALS LTD.
Neighbourhood Services,Direct Services,Third Party Payments,430100,Rendered by Private Contractors,03-Feb-15,2856480-24763,"27,488.26",TRACKYOU LTD.
Neighbourhood Services,Direct Services,Supplies and Services,304259,Equipment and Materials,03-Feb-15,2856482-SI016161,"4,637.00",TRITECH INTERNATIONAL LTD.
Neighbourhood Services,Direct Services,Supplies and Services,342033,Computers and Communications,03-Feb-15,2856487-2355415,552,VIGLEN LTD.
Neighbourhood Services,Technical Services,Supplies and Services,304221,Equipment and Materials,03-Feb-15,2856496-201550003,"1,040.00",WEMO TEC UK LTD.
Neighbourhood Services,Culture & Sport,Supplies and Services,312013,Newspapers Books and Periodicals,03-Feb-15,2856499-OrderNo1414201,999.47,WESTERN UNION BUSINESS SOLUTIONS.
Neighbourhood Services,Culture & Sport,Supplies and Services,312013,Newspapers Books and Periodicals,03-Feb-15,2856499-OrderNo1414203,"3,051.33",WESTERN UNION BUSINESS SOLUTIONS.
Neighbourhood Services,Direct Services,Third Party Payments,430100,Rendered by Private Contractors,03-Feb-15,2856504-37559,"4,733.25",WILLOWCRETE MFG CO LTD.
Neighbourhood Services,Direct Services,Supplies and Services,304221,Equipment and Materials,03-Feb-15,2856507-19425318,522.96,WOLSELEY UK LTD.
Neighbourhood Services,Technical Services,Supplies and Services,304358,Equipment and Materials,03-Feb-15,2856509-4616,929.75,YOULL CONSTRUCTION LTD.
Neighbourhood Services,Direct Services,Transport,210057,Repair and Maintenance of Vehicles,03-Feb-15,2856510-SVI30479,"1,062.73",ZOELLER WASTE SYSTEMS LTD.
RED HRA,HRA Capital,Construction Work,908105,Construction work,03-Feb-15,2856129-CHRVW002000,"1,449.21",CARE UK COMMUNITY PARTNERSHIPS LTD.
RED HRA,HRA Capital,Construction Work,908105,Construction work,03-Feb-15,2856168-214545,"36,210.60",DEERNESS FENCING LTD.
RED HRA,HRA Capital,Construction Work,908105,Construction work,03-Feb-15,2856269-213898,"3,796.97",JOINERY & TIMBER CREATIONS (65) LTD.
RED HRA,HRA Capital,Construction Work,908105,Construction work,03-Feb-15,2856395,"1,081.03",POPULARCARE.
RED HRA,HRA Capital,Construction Work,908105,Construction work,03-Feb-15,2856420-1649,"2,067.68",SAFE STRIP UK LTD.
Regeneration & Economic Development,Transport and Contracted Services,Vehicles Equipment Furniture and Fittings,912529,Purchase-equipment,03-Feb-15,2856060-SI15709,"7,650.00",3M UNITED KINGDOM PLC.
Regeneration & Economic Development,Economic Development and Housing,Supplies and Services,304337,Equipment and Materials,03-Feb-15,2856074-533830,541.55,ALBERT HARRISON & CO LTD.
Regeneration & Economic Development,Economic Development and Housing,Cap Exp on Grants & Other Financial Assistance (REFCUS),918401,Capital grants,03-Feb-15,2856162-RED-01-2015-221,"3,815.00",CRAIG PATTERSON T/A LET ME GET YOU WET.
Regeneration & Economic Development,Economic Development and Housing,Supplies and Services,384700,Miscellaneous Expenses,03-Feb-15,2856191-RED-02-2015-002,"1,000.00",DURHAM COUNTY CRICKET CLUB.
Regeneration & Economic Development,Strategy Programmes and Performance,Supplies and Services,384899,Miscellaneous Expenses,03-Feb-15,2856195-FEDF040/1FINAL,"6,313.50",EAST DURHAM COLLEGE.
Regeneration & Economic Development,Transport and Contracted Services,Premises,145051,Cleaning and Domestic Supplies,03-Feb-15,2856216-119509,572,G O`BRIEN & SONS LTD.
Regeneration & Economic Development,Transport and Contracted Services,Premises,145051,Cleaning and Domestic Supplies,03-Feb-15,2856216-119510,572,G O`BRIEN & SONS LTD.
Regeneration & Economic Development,Transport and Contracted Services,Premises,145051,Cleaning and Domestic Supplies,03-Feb-15,2856216-119511,572,G O`BRIEN & SONS LTD.
Regeneration & Economic Development,Economic Development and Housing,Supplies and Services,384199,Miscellaneous Expenses,03-Feb-15,2856219-A105942,"1,105.75",G4S ASSESSMENT SERVICES (UK) LTD T/A QUALITY IN TOURISM.
Regeneration & Economic Development,Economic Development and Housing,Supplies and Services,384199,Miscellaneous Expenses,03-Feb-15,2856219-A105965,"1,996.75",G4S ASSESSMENT SERVICES (UK) LTD T/A QUALITY IN TOURISM.
Regeneration & Economic Development,Economic Development and Housing,Supplies and Services,384199,Miscellaneous Expenses,03-Feb-15,2856219-A105975,785.25,G4S ASSESSMENT SERVICES (UK) LTD T/A QUALITY IN TOURISM.
Regeneration & Economic Development,Transport and Contracted Services,Third Party Payments,430106,Rendered by Private Contractors,03-Feb-15,2856277-PUBLICSERVICE-JAN15,"5,488.30",KEITH HAMMOND T/A FERRYHILL VILLAGE TRAVEL.
Regeneration & Economic Development,Transport and Contracted Services,Third Party Payments,430106,Rendered by Private Contractors,03-Feb-15,2856320-4/1/15-31/1/15,"1,539.40",MAURICE & SONS.
Regeneration & Economic Development,Economic Development and Housing,Cap Exp on Grants & Other Financial Assistance (REFCUS),918401,Capital grants,03-Feb-15,2856327-RED-01-2015-213,"5,285.00",REDACTED - PAYMENT TO INDIVIDUAL
Regeneration & Economic Development,Spatial Policy Planning Assets & Environment,Supplies and Services,342051,Computers and Communications,03-Feb-15,2856362-91307849,"3,873.87",NORTHGATE INFORMATION SOLUTIONS UK LTD.
Regeneration & Economic Development,Economic Development and Housing,Supplies and Services,384700,Miscellaneous Expenses,03-Feb-15,2856380-RED-01-2015-187,"1,000.00",PD PLUMBING & HEATING LTD.
Regeneration & Economic Development,Economic Development and Housing,Cap Exp on Grants & Other Financial Assistance (REFCUS),918401,Capital grants,03-Feb-15,2856387-RED-01-2015-224,"2,470.00",PETER JORDAN.
Regeneration & Economic Development,Economic Development and Housing,Cap Exp on Grants & Other Financial Assistance (REFCUS),918401,Capital grants,03-Feb-15,2856407-RED-01-2015-222,"1,358.00",RAY LAMBERT BUILDING SERVICES LTD.
Regeneration & Economic Development,Economic Development and Housing,Supplies and Services,384999,Miscellaneous Expenses,03-Feb-15,2856437-INVSPRM043,500,SSERTROF PROPERTY RENTALS LTD.
Regeneration & Economic Development,Transport and Contracted Services,Third Party Payments,430106,Rendered by Private Contractors,03-Feb-15,2856444-12376,"12,120.16",STANLEY TRAVEL (NORTH EAST) LTD.
Regeneration & Economic Development,Strategy Programmes and Performance,Supplies and Services,384899,Miscellaneous Expenses,03-Feb-15,2856469-FEDF031/1FINAL,"7,005.00",THE YARD LTD.
Regeneration & Economic Development,Economic Development and Housing,Cap Exp on Grants & Other Financial Assistance (REFCUS),918401,Capital grants,03-Feb-15,2856474-RED-01-2015-214,"1,537.00",THYSSENKRUPP ENCASA A DIVISION OF THYSSENKRUPP ACCESS LTD.
Regeneration & Economic Development,Economic Development and Housing,Cap Exp on Grants & Other Financial Assistance (REFCUS),918401,Capital grants,03-Feb-15,2856474-RED-01-2015-215,"9,140.00",THYSSENKRUPP ENCASA A DIVISION OF THYSSENKRUPP ACCESS LTD.
Regeneration & Economic Development,Economic Development and Housing,Cap Exp on Grants & Other Financial Assistance (REFCUS),918401,Capital grants,03-Feb-15,2856474-RED-01-2015-216,"1,972.00",THYSSENKRUPP ENCASA A DIVISION OF THYSSENKRUPP ACCESS LTD.
Regeneration & Economic Development,Economic Development and Housing,Cap Exp on Grants & Other Financial Assistance (REFCUS),918401,Capital grants,03-Feb-15,2856474-RED-01-2015-217,"1,495.00",THYSSENKRUPP ENCASA A DIVISION OF THYSSENKRUPP ACCESS LTD.
Regeneration & Economic Development,Economic Development and Housing,Cap Exp on Grants & Other Financial Assistance (REFCUS),918401,Capital grants,03-Feb-15,2856474-RED-01-2015-218,"3,125.00",THYSSENKRUPP ENCASA A DIVISION OF THYSSENKRUPP ACCESS LTD.
Regeneration & Economic Development,Economic Development and Housing,Cap Exp on Grants & Other Financial Assistance (REFCUS),918401,Capital grants,03-Feb-15,2856478-RED-01-2015-220,"4,403.00",TORONTO ELECTRICAL SERVICES & TESTING (TEST).
Regeneration & Economic Development,Economic Development and Housing,Cap Exp on Grants & Other Financial Assistance (REFCUS),918401,Capital grants,03-Feb-15,2856485-RED-01-2015-219,"7,000.00",TULLY`S ELECTRICAL ENGINEERS & COMPLETE BUILDING SERVICES LTD.
Regeneration & Economic Development,Economic Development and Housing,Supplies and Services,384999,Miscellaneous Expenses,03-Feb-15,2856499-OrderNo1414191,"1,067.31",WESTERN UNION BUSINESS SOLUTIONS.
Resources,Legal & Democratic Services,Supplies and Services,340001,Postages,03-Feb-15,2856066-S580193,"1,715.75",ADARE INSPIRED COMMUNICATIONS.
Resources,Financial Services,Supplies and Services,384199,Miscellaneous Expenses,03-Feb-15,2856128-90887RI,"3,584.00",CAPACITYGRID.
Resources,I.C.T. Services,Vehicles Equipment Furniture and Fittings,912701,Computer equipment,03-Feb-15,2856169-7402177431,"32,491.80",DELL COMPUTER CORPORATION LTD.
Resources,I.C.T. Services,Supplies and Services,342051,Computers and Communications,03-Feb-15,2856230-113088,"5,580.00",GRAITEC LTD.
Resources,I.C.T. Services,Supplies and Services,342051,Computers and Communications,03-Feb-15,2856230-113090,"12,975.05",GRAITEC LTD.
Resources,I.C.T. Services,Supplies and Services,342051,Computers and Communications,03-Feb-15,2856230-113091,"8,250.00",GRAITEC LTD.
Resources,I.C.T. Services,Supplies and Services,342051,Computers and Communications,03-Feb-15,2856230-113093,"3,420.00",GRAITEC LTD.
Resources,Financial Services,Supplies and Services,384180,Miscellaneous Expenses,03-Feb-15,2856305-0792727,"4,098.60",LOOMIS UK LTD.
Resources,Legal & Democratic Services,Supplies and Services,338042,Services,03-Feb-15,2856328-310617/INVKH59,720,MISS KERRY HOLT.
Resources,Human Resources,Supplies and Services,338064,Services,03-Feb-15,2856359-9449,"12,548.00",NORTH EAST REGIONAL EMPLOYERS ORGANISATION.
Resources,I.C.T. Services,Construction Work,908105,Construction work,03-Feb-15,2856410-INV-0342a,"4,500.00",REDWOOD CABLE PROJECTS.
Resources,I.C.T. Services,Construction Work,908105,Construction work,03-Feb-15,2856410-INV-0363a,"4,500.00",REDWOOD CABLE PROJECTS.
Resources,Financial Services,Supplies and Services,384199,Miscellaneous Expenses,03-Feb-15,2856447-90453084,"2,661.00",STOCKPORT MBC.
Resources,I.C.T. Services,Supplies and Services,342033,Computers and Communications,03-Feb-15,2856453-121099,"2,980.00",SWITCHSHOP LTD.
Children and Adult Services,Central Charges (CYPS),Creditors,952258,Creditor-West Durham Cluster,04-Feb-15,238056-021415,827.48,REDACTED - PAYMENT TO INDIVIDUAL
Children and Adult Services,Childrens Services,Supplies and Services,338045,Services,04-Feb-15,237997-CAS-01-2015-121,507.07,REDACTED - PAYMENT TO INDIVIDUAL
Children and Adult Services,Childrens Services,Supplies and Services,384871,Miscellaneous Expenses,04-Feb-15,238032-3610014135,"3,300.00",NORTH TEES & HARTLEPOOL NHS FOUNDATION TRUST.
Children and Adult Services,Childrens Services,Supplies and Services,338044,Services,04-Feb-15,238039-RFT-JAN15,615.3,RUKHSANA FAROOQI THAKRAR.
Children and Adult Services,Childrens Services,Supplies and Services,304259,Equipment and Materials,04-Feb-15,2856525-13800,"1,854.60",ACEDA LTD.
Children and Adult Services,Childrens Services,Supplies and Services,338045,Services,04-Feb-15,2856554-2448,750,BLACKHAWK LONDON LTD.
Children and Adult Services,Childrens Services,Employees,80025,Agency Staff,04-Feb-15,2856603-324718,"142,640.02",DE POEL MANAGED SERVICES LTD.
Children and Adult Services,Childrens Services,Supplies and Services,364358,Grants to Voluntary Organisations,04-Feb-15,2856688-A384259,"1,612.50",LEEDS BECKETT UNIVERSITY.
Children and Adult Services,Childrens Services,Transport,230008,Contract Hire,04-Feb-15,2856697-18,874,LUMLEY TAXIS.
Children and Adult Services,Childrens Services,Third Party Payments,440013,Other Third Party Payments,04-Feb-15,2856718-1552,800,MOVING MEMORIES LTD.
Children and Adult Services,Childrens Services,Third Party Payments,440013,Other Third Party Payments,04-Feb-15,2856718-1553,800,MOVING MEMORIES LTD.
Children and Adult Services,Childrens Services,Third Party Payments,440013,Other Third Party Payments,04-Feb-15,2856718-1554,"1,505.00",MOVING MEMORIES LTD.
Children and Adult Services,Childrens Services,Third Party Payments,440013,Other Third Party Payments,04-Feb-15,2856718-1556,800,MOVING MEMORIES LTD.
Children and Adult Services,Childrens Services,Transport,230008,Contract Hire,04-Feb-15,2856733-SC0005,"1,083.00",NEV`S CABS.
Children and Adult Services,Childrens Services,Third Party Payments,440999,Other Third Party Payments,04-Feb-15,2856790-FOSTPANELS7-14JAN,848,REDACTED - PAYMENT TO INDIVIDUAL
Children and Adult Services,Childrens Services,Supplies and Services,364352,Grants to Voluntary Organisations,04-Feb-15,2856810-D1IN/00016574,"1,416.58",STONHAM HOUSING ASSOCIATION LTD.
Children and Adult Services,Childrens Services,Third Party Payments,440001,Other Third Party Payments,04-Feb-15,2856813-CAS-01-2015-114,"1,220.00",REDACTED - PAYMENT TO INDIVIDUAL
Children and Adult Services,Childrens Services,Transport,235073,Public Transport,04-Feb-15,2856820-723,"1,623.10",TEESDALE COMMUNITY RESOURCES (TCR) LTD.
Children and Adult Services,Childrens Services,Transport,235073,Public Transport,04-Feb-15,2856820-735,"2,225.21",TEESDALE COMMUNITY RESOURCES (TCR) LTD.
Children and Adult Services,Childrens Services,Transport,235073,Public Transport,04-Feb-15,2856820-771,934.58,TEESDALE COMMUNITY RESOURCES (TCR) LTD.
Children and Adult Services,Childrens Services,Transport,235073,Public Transport,04-Feb-15,2856820-776,776.88,TEESDALE COMMUNITY RESOURCES (TCR) LTD.
Children and Adult Services,Childrens Services,Transport,235073,Public Transport,04-Feb-15,2856820-815,787.08,TEESDALE COMMUNITY RESOURCES (TCR) LTD.
Children and Adult Services,Commissioning inc Supporting People,Supplies and Services,384700,Miscellaneous Expenses,04-Feb-15,238057-CAS-01-2015-111,"2,013.00",YMCA WEARDALE HOUSE.
Dedicated Schools Grant,Dedicated Schools Grant,Transfer Payments,510034,School Children,04-Feb-15,237995-RES-01-2015-148,"1,900.00",KINGSMEADOW COMPREHENSIVE SCHOOL.
Dedicated Schools Grant,Dedicated Schools Grant,Transport,230005,Contract Hire,04-Feb-15,2856613-OCT05-15,900,DUNCAN G CUMMINGS T/A DC TAXIS.
Dedicated Schools Grant,Dedicated Schools Grant,Third Party Payments,410037,Rendered by Other Local Authorities,04-Feb-15,2856649-1000127,"3,000.00",HORIZONS SPECIALIST ACADEMY TRUST.
Dedicated Schools Grant,Dedicated Schools Grant,Transport,230005,Contract Hire,04-Feb-15,2856711-INV-67,992,MICHAEL COBB (T/A HAIL TAXIS).
Dedicated Schools Grant,Dedicated Schools Grant,Third Party Payments,440080,Other Third Party Payments,04-Feb-15,2856738-0000020190,"1,658.41",NORTH EAST AUTISM SOCIETY.
Dedicated Schools Grant,Dedicated Schools Grant,Transfer Payments,510034,School Children,04-Feb-15,2856739-RES-01-2015-146,"2,760.00",NORTH EAST AUTISM SOCIETY.
Dedicated Schools Grant,Dedicated Schools Grant,Third Party Payments,410037,Rendered by Other Local Authorities,04-Feb-15,2856740-NVSI1,"7,249.50",NORTH VIEW ACADEMY.
Dedicated Schools Grant,Dedicated Schools Grant,Transport,230010,Contract Hire,04-Feb-15,2856765-150110,"1,290.40",PRATTS TAXIS.
Dedicated Schools Grant,Dedicated Schools Grant,Transport,230010,Contract Hire,04-Feb-15,2856777-295,597,ROAD RUNNERS (NE) LTD.
Dedicated Schools Grant,Dedicated Schools Grant,Transport,230010,Contract Hire,04-Feb-15,2856818-DCC/2015/02,"1,482.00",TAYLOR`S TAXIS.
Dedicated Schools Grant,Dedicated Schools Grant,Transport,230010,Contract Hire,04-Feb-15,2856818-DCC/2015/03,"1,102.00",TAYLOR`S TAXIS.
Dedicated Schools Grant,Dedicated Schools Grant,Transport,230005,Contract Hire,04-Feb-15,2856831-65JANUARY,"4,070.00",TRIDENT TAXIS.
Dedicated Schools Grant,Dedicated Schools Grant,Transport,230010,Contract Hire,04-Feb-15,2856847-487830,"1,045.00",WENDYS` TAXIS.
Children and Adult Services,Education,Transport,230008,Contract Hire,04-Feb-15,2856519-14,"1,140.00",A & P TAXIS.
Children and Adult Services,Education,Transport,230008,Contract Hire,04-Feb-15,2856520-517JAN,500,A BARKER.
Children and Adult Services,Education,Transport,230006,Contract Hire,04-Feb-15,2856520-520,672,A BARKER.
Children and Adult Services,Education,Transport,230007,Contract Hire,04-Feb-15,2856523-40,"1,160.00",AALPHA TAXIS.
Children and Adult Services,Education,Transport,230006,Contract Hire,04-Feb-15,2856526-F613-JAN2015,"1,334.00",ADAM BARNES T/A PAUL`S TAXIS.
Children and Adult Services,Education,Transport,230008,Contract Hire,04-Feb-15,2856527-1/15,936,ADVANCE TRAVEL.
Children and Adult Services,Education,Transport,230007,Contract Hire,04-Feb-15,2856530-SAS0115ESH,855,AIRPORT CARS DURHAM
Children and Adult Services,Education,Transport,230006,Contract Hire,04-Feb-15,2856531-388030,760,ALAN SOUTHERN T/A ALANS TAXIS PELTON FELL.
Children and Adult Services,Education,Transport,230008,Contract Hire,04-Feb-15,2856531-388130,760,ALAN SOUTHERN T/A ALANS TAXIS PELTON FELL.
Children and Adult Services,Education,Transport,230008,Contract Hire,04-Feb-15,2856531-388230,"1,415.50",ALAN SOUTHERN T/A ALANS TAXIS PELTON FELL.
Children and Adult Services,Education,Transport,230007,Contract Hire,04-Feb-15,2856535-56,532,ANDY CABS.
Children and Adult Services,Education,Transport,230008,Contract Hire,04-Feb-15,2856540-DCC6JAN15,"3,264.00",ATLAS TAXIS BISHOP AUCKLAND.
Children and Adult Services,Education,Transport,230007,Contract Hire,04-Feb-15,2856541-03243,749,ATLAS TAXIS CONSETT.
Children and Adult Services,Education,Transport,230007,Contract Hire,04-Feb-15,2856541-03246,818.4,ATLAS TAXIS CONSETT.
Children and Adult Services,Education,Transport,230008,Contract Hire,04-Feb-15,2856543-3001015,"1,100.00",AVALON TAXIS.
Children and Adult Services,Education,Transport,230007,Contract Hire,04-Feb-15,2856543-30115,570,AVALON TAXIS.
Children and Adult Services,Education,Construction Work,908105,Construction work,04-Feb-15,2856548-27189,"4,496.00",BARR & WRAY LTD.
Children and Adult Services,Education,Transport,230008,Contract Hire,04-Feb-15,2856549-40,"1,710.00",BEELINE TAXIS.
Children and Adult Services,Education,Transport,230008,Contract Hire,04-Feb-15,2856552-110,"1,152.00",BG TAXIS.
Children and Adult Services,Education,Transport,230008,Contract Hire,04-Feb-15,2856553-3,665,BL TAXIS.
Children and Adult Services,Education,Transport,230008,Contract Hire,04-Feb-15,2856556-1370,"2,451.00",BOBBY DOVE.
Children and Adult Services,Education,Transport,230008,Contract Hire,04-Feb-15,2856556-1371,"1,680.00",BOBBY DOVE.
Children and Adult Services,Education,Transport,230008,Contract Hire,04-Feb-15,2856572-BIL0053,"1,520.00",CA MUSGROVE.
Children and Adult Services,Education,Transport,230008,Contract Hire,04-Feb-15,2856583-JAN1610,"1,100.00",CM TAXIS.
Children and Adult Services,Education,Transport,230007,Contract Hire,04-Feb-15,2856583-JAN1611,570,CM TAXIS.
Children and Adult Services,Education,Transport,230008,Contract Hire,04-Feb-15,2856586-237,"1,121.00",COLIN HOLMES.
Children and Adult Services,Education,Transport,230008,Contract Hire,04-Feb-15,2856595-54,"1,080.00",D CROOK T/A CK TAXIS.
Children and Adult Services,Education,Transport,230008,Contract Hire,04-Feb-15,2856596-MEAD005,855,D IRVING T/A BJ TAXIS.
Children and Adult Services,Education,Transport,230008,Contract Hire,04-Feb-15,2856597-1376,"1,080.00",DA TAXIS.
Children and Adult Services,Education,Transport,230008,Contract Hire,04-Feb-15,2856598-105,"1,206.00",DA TRAVEL.
Children and Adult Services,Education,Supplies and Services,304259,Equipment and Materials,04-Feb-15,2856601-0000211557,"1,985.95",DAYDREAM EDUCATION.
Children and Adult Services,Education,Transport,230008,Contract Hire,04-Feb-15,2856602-0115/001,"1,260.00",DCM TAXIS.
Children and Adult Services,Education,Transport,230007,Contract Hire,04-Feb-15,2856614-20366,"2,460.50",DURHAM CITY COACHES.
Children and Adult Services,Education,Transport,230007,Contract Hire,04-Feb-15,2856627-0320,684,FMR SILVA PITA.
Children and Adult Services,Education,Transport,230007,Contract Hire,04-Feb-15,2856628-4293-30/1/15,955,FONACAB.
Children and Adult Services,Education,Transport,230006,Contract Hire,04-Feb-15,2856634-005,811,GAIL MADDISON T/A CENTRAL TAXIS.
Children and Adult Services,Education,Transport,230008,Contract Hire,04-Feb-15,2856637-W084/027,"1,680.00",GMC TAXIS NORTH EAST.
Children and Adult Services,Education,Transport,230007,Contract Hire,04-Feb-15,2856639-00006,550,GP TAXIS.
Children and Adult Services,Education,Transport,230008,Contract Hire,04-Feb-15,2856653-16,"1,140.00",IAN SHEPLEY T/A SHEPPA`S TAXIS.
Children and Adult Services,Education,Transport,230008,Contract Hire,04-Feb-15,2856659-878,988,J YOUNG T/A VIP TAXIS.
Children and Adult Services,Education,Transport,230008,Contract Hire,04-Feb-15,2856659-881,722,J YOUNG T/A VIP TAXIS.
Children and Adult Services,Education,Transport,230007,Contract Hire,04-Feb-15,2856659-882,750,J YOUNG T/A VIP TAXIS.
Children and Adult Services,Education,Transport,230008,Contract Hire,04-Feb-15,2856659-883,950,J YOUNG T/A VIP TAXIS.
Children and Adult Services,Education,Transport,230009,Contract Hire,04-Feb-15,2856659-884,"1,200.00",J YOUNG T/A VIP TAXIS.
Children and Adult Services,Education,Transport,230008,Contract Hire,04-Feb-15,2856659-886,"1,140.00",J YOUNG T/A VIP TAXIS.
Children and Adult Services,Education,Transport,230007,Contract Hire,04-Feb-15,2856659-888,"1,102.00",J YOUNG T/A VIP TAXIS.
Children and Adult Services,Education,Transport,230007,Contract Hire,04-Feb-15,2856659-890,608,J YOUNG T/A VIP TAXIS.
Children and Adult Services,Education,Transport,230008,Contract Hire,04-Feb-15,2856659-892,"1,560.00",J YOUNG T/A VIP TAXIS.
Children and Adult Services,Education,Transport,230008,Contract Hire,04-Feb-15,2856662-74,"1,000.00",JACK`S TAXIS.
Children and Adult Services,Education,Transport,230008,Contract Hire,04-Feb-15,2856664-663,990,JDS PRIVATE HIRE DURHAM.
Children and Adult Services,Education,Transport,230006,Contract Hire,04-Feb-15,2856671-0007,"1,100.00",JOHN WARE T/A J & K TAXIS.
Children and Adult Services,Education,Transport,230008,Contract Hire,04-Feb-15,2856672-74,"2,109.00",JOHNS TAXIS (CHESTER LE STREET).
Children and Adult Services,Education,Transport,230007,Contract Hire,04-Feb-15,2856677-JAN2015,"1,400.00",K & R TAXIS.
Children and Adult Services,Education,Transport,230008,Contract Hire,04-Feb-15,2856678-5-31/1/15,"2,660.00",KD TAXIS.
Children and Adult Services,Education,Transport,230008,Contract Hire,04-Feb-15,2856683-5,"1,480.00",KT TAXIS.
Children and Adult Services,Education,Transport,230006,Contract Hire,04-Feb-15,2856687-1035,"1,480.00",LD TAXIS.
Children and Adult Services,Education,Transport,230008,Contract Hire,04-Feb-15,2856689-102,"1,764.00",LEE`S TAXIS.
Children and Adult Services,Education,Transport,230008,Contract Hire,04-Feb-15,2856689-103,"1,083.00",LEE`S TAXIS.
Children and Adult Services,Education,Transport,230006,Contract Hire,04-Feb-15,2856697-19,624,LUMLEY TAXIS.
Children and Adult Services,Education,Transport,230008,Contract Hire,04-Feb-15,2856699-16,"1,417.50",M BEHAN T/A M & M`S TAXIS.
Children and Adult Services,Education,Transport,230008,Contract Hire,04-Feb-15,2856702-5,"1,400.00",MALCOLM CARR T/A CARLY CABS.
Children and Adult Services,Education,Transport,230008,Contract Hire,04-Feb-15,2856704-380115,"1,292.00",MARK MUSGROVE T/A MARKS TAXIS.
Children and Adult Services,Education,Transport,230008,Contract Hire,04-Feb-15,2856704-480115,920,MARK MUSGROVE T/A MARKS TAXIS.
Children and Adult Services,Education,Transport,230008,Contract Hire,04-Feb-15,2856708-06,"1,260.00",MAURICE & SONS.
Children and Adult Services,Education,Transport,230008,Contract Hire,04-Feb-15,2856708-10,"1,700.00",MAURICE & SONS.
Children and Adult Services,Education,Transport,230008,Contract Hire,04-Feb-15,2856712-00708,"1,620.00",MICHAELS TRAVEL.
Children and Adult Services,Education,Transport,230008,Contract Hire,04-Feb-15,2856713-509,"2,020.00",MOLLYS TAXIS.
Children and Adult Services,Education,Transport,230008,Contract Hire,04-Feb-15,2856713-512,"1,596.00",MOLLYS TAXIS.
Children and Adult Services,Education,Transport,230008,Contract Hire,04-Feb-15,2856713-513,"2,400.00",MOLLYS TAXIS.
Children and Adult Services,Education,Transport,230008,Contract Hire,04-Feb-15,2856713-514,"2,530.00",MOLLYS TAXIS.
Children and Adult Services,Education,Transport,230008,Contract Hire,04-Feb-15,2856713-517,"1,800.00",MOLLYS TAXIS.
Children and Adult Services,Education,Transport,230007,Contract Hire,04-Feb-15,2856719-04,990,MR A MILLWARD T/A SWISS CABS PRIVATE HIRE.
Children and Adult Services,Education,Transport,230008,Contract Hire,04-Feb-15,2856720-701,"1,100.00",MR AD HOWARD.
Children and Adult Services,Education,Transport,230007,Contract Hire,04-Feb-15,2856722-4295-JAN2015,500,MR DAVID KING YIU LI T/A ABA LOCAL TAXIS LTD.
Children and Adult Services,Education,Transport,230008,Contract Hire,04-Feb-15,2856727-2843,900,MR S BOWERS.
Children and Adult Services,Education,Transport,230008,Contract Hire,04-Feb-15,2856727-2844,"1,444.00",MR S BOWERS.
Children and Adult Services,Education,Transport,230008,Contract Hire,04-Feb-15,2856727-2845,"1,710.00",MR S BOWERS.
Children and Adult Services,Education,Transport,230008,Contract Hire,04-Feb-15,2856732-155,"2,720.00",N FORBES.
Children and Adult Services,Education,Transport,230007,Contract Hire,04-Feb-15,2856732-156,720,N FORBES.
Children and Adult Services,Education,Transport,230007,Contract Hire,04-Feb-15,2856755-1402,"2,470.00",PAUL WATSON TRAVEL.
Children and Adult Services,Education,Transport,230007,Contract Hire,04-Feb-15,2856755-1403,"1,026.00",PAUL WATSON TRAVEL.
Children and Adult Services,Education,Transport,230007,Contract Hire,04-Feb-15,2856755-1404,"2,400.00",PAUL WATSON TRAVEL.
Children and Adult Services,Education,Transport,230007,Contract Hire,04-Feb-15,2856757-23A,760,PETER HOLMES T/A PETERS TAXIS.
Children and Adult Services,Education,Transport,230008,Contract Hire,04-Feb-15,2856759-0352,"1,800.00",PETER`S PRIVATE HIRE/PETER BEST.
Children and Adult Services,Education,Transport,230008,Contract Hire,04-Feb-15,2856759-0353,640,PETER`S PRIVATE HIRE/PETER BEST.
Children and Adult Services,Education,Transport,230008,Contract Hire,04-Feb-15,2856759-0354,"1,120.00",PETER`S PRIVATE HIRE/PETER BEST.
Children and Adult Services,Education,Transport,230008,Contract Hire,04-Feb-15,2856765-150106,"1,339.50",PRATTS TAXIS.
Children and Adult Services,Education,Transport,230008,Contract Hire,04-Feb-15,2856765-150107,"1,120.00",PRATTS TAXIS.
Children and Adult Services,Education,Transport,230007,Contract Hire,04-Feb-15,2856765-150108,525,PRATTS TAXIS.
Children and Adult Services,Education,Transport,230008,Contract Hire,04-Feb-15,2856765-150109,"1,520.00",PRATTS TAXIS.
Children and Adult Services,Education,Transport,230008,Contract Hire,04-Feb-15,2856767-B05,"1,497.00",PRESTYS HACKNEY & PRIVATE HIRE TAXIS.
Children and Adult Services,Education,Transport,230008,Contract Hire,04-Feb-15,2856767-G58,920,PRESTYS HACKNEY & PRIVATE HIRE TAXIS.
Children and Adult Services,Education,Transport,230008,Contract Hire,04-Feb-15,2856777-292,"1,520.00",ROAD RUNNERS (NE) LTD.
Children and Adult Services,Education,Transport,230008,Contract Hire,04-Feb-15,2856777-293,620,ROAD RUNNERS (NE) LTD.
Children and Adult Services,Education,Transport,230008,Contract Hire,04-Feb-15,2856777-294,"1,300.00",ROAD RUNNERS (NE) LTD.
Children and Adult Services,Education,Transport,230007,Contract Hire,04-Feb-15,2856779-140260,"5,869.10",ROBERTS TOURS.
Children and Adult Services,Education,Transport,230008,Contract Hire,04-Feb-15,2856781-015,"1,615.00",RONS TAXI.
Children and Adult Services,Education,Transport,230008,Contract Hire,04-Feb-15,2856792-71632,"1,958.00",SHOTTON PRIVATE HIRE.
Children and Adult Services,Education,Transport,230008,Contract Hire,04-Feb-15,2856792-71634,810.6,SHOTTON PRIVATE HIRE.
Children and Adult Services,Education,Transport,230008,Contract Hire,04-Feb-15,2856792-71636,"1,620.00",SHOTTON PRIVATE HIRE.
Children and Adult Services,Education,Transport,230006,Contract Hire,04-Feb-15,2856793-F536-01-15,"1,512.00",SIMON ELLIFF.
Children and Adult Services,Education,Transport,230008,Contract Hire,04-Feb-15,2856793-S027-01-15,"1,882.39",SIMON ELLIFF.
Children and Adult Services,Education,Transport,230008,Contract Hire,04-Feb-15,2856793-W102-01-15,"1,026.00",SIMON ELLIFF.
Children and Adult Services,Education,Transport,230008,Contract Hire,04-Feb-15,2856794-75,"1,529.50",SIMONS TAXIS.
Children and Adult Services,Education,Transport,230007,Contract Hire,04-Feb-15,2856808-5,900,STEVEN DODDS T/A SD TAXIS.
Children and Adult Services,Education,Transport,230006,Contract Hire,04-Feb-15,2856818-DCC/2015/01,"1,102.00",TAYLOR`S TAXIS.
Children and Adult Services,Education,Transport,230008,Contract Hire,04-Feb-15,2856818-DCC/2015/04,"1,242.00",TAYLOR`S TAXIS.
Children and Adult Services,Education,Transport,230008,Contract Hire,04-Feb-15,2856818-DCC/2015/05,"1,140.00",TAYLOR`S TAXIS.
Children and Adult Services,Education,Employees,40001,Recruitment Instruction and Training,04-Feb-15,2856822-TARINV/15345401,710.1,TES GLOBAL LTD.
Children and Adult Services,Education,Employees,40001,Recruitment Instruction and Training,04-Feb-15,2856822-TARINV/15345429,710.1,TES GLOBAL LTD.
Children and Adult Services,Education,Employees,40001,Recruitment Instruction and Training,04-Feb-15,2856822-TARINV/15345747,710.1,TES GLOBAL LTD.
Children and Adult Services,Education,Transport,230008,Contract Hire,04-Feb-15,2856823-144,"1,520.00",THE TAXI COMPANY (MURTON) LTD.
Children and Adult Services,Education,Transport,230008,Contract Hire,04-Feb-15,2856841-000841,"1,584.00",WATSON OF SPENNYMOOR.
Children and Adult Services,Education,Transport,230008,Contract Hire,04-Feb-15,2856842-949,"1,672.00",WAYNE`S TAXIS.
Children and Adult Services,Education,Transport,230008,Contract Hire,04-Feb-15,2856842-950,"1,900.00",WAYNE`S TAXIS.
Children and Adult Services,Education,Transport,230008,Contract Hire,04-Feb-15,2856842-951,"1,620.00",WAYNE`S TAXIS.
Children and Adult Services,Education,Transport,230007,Contract Hire,04-Feb-15,2856846-5151,640,WEARDALE PRIVATE HIRE.
Children and Adult Services,Education,Transport,230007,Contract Hire,04-Feb-15,2856846-5152,"3,860.00",WEARDALE PRIVATE HIRE.
Children and Adult Services,Education,Transport,230007,Contract Hire,04-Feb-15,2856846-5153,"3,679.80",WEARDALE PRIVATE HIRE.
Children and Adult Services,Education,Transport,230006,Contract Hire,04-Feb-15,2856847-429930,840,WENDYS` TAXIS.
Children and Adult Services,Education,Transport,230006,Contract Hire,04-Feb-15,2856848-0115,"2,200.00",WEST AUCKLAND TOWN TRAVEL (WATT).
Children and Adult Services,Head of Adults,Transport,230005,Contract Hire,04-Feb-15,2856521-EA220761,"1,680.00",A MURRAY TRAVEL.
Children and Adult Services,Head of Adults,Transport,230005,Contract Hire,04-Feb-15,2856553-4,520,BL TAXIS.
Children and Adult Services,Head of Adults,Transport,230005,Contract Hire,04-Feb-15,2856563-BZ00137,612,BREZ`S TAXIS.
Children and Adult Services,Head of Adults,Transport,230005,Contract Hire,04-Feb-15,2856637-WV091/022,"1,171.00",GMC TAXIS NORTH EAST.
Children and Adult Services,Head of Adults,Transport,230005,Contract Hire,04-Feb-15,2856679-WV079-011,"1,700.00",KEITH HAMMOND T/A FERRYHILL VILLAGE TRAVEL.
Children and Adult Services,Head of Adults,Transport,230005,Contract Hire,04-Feb-15,2856704-590115,"1,300.00",MARK MUSGROVE T/A MARKS TAXIS.
Children and Adult Services,Head of Adults,Transport,230005,Contract Hire,04-Feb-15,2856712-00709,"2,856.00",MICHAELS TRAVEL.
Children and Adult Services,Head of Adults,Transport,230005,Contract Hire,04-Feb-15,2856713-515,"1,722.00",MOLLYS TAXIS.
Children and Adult Services,Head of Adults,Transport,230005,Contract Hire,04-Feb-15,2856759-0356,782,PETER`S PRIVATE HIRE/PETER BEST.
Children and Adult Services,Head of Adults,Supplies and Services,304516,Equipment and Materials,04-Feb-15,2856760-01164,603.6,PHILLIPS TAXI GROUP LTD.
Children and Adult Services,Head of Adults,Transport,230005,Contract Hire,04-Feb-15,2856765-150102,639,PRATTS TAXIS.
Children and Adult Services,Head of Adults,Transport,230005,Contract Hire,04-Feb-15,2856765-150103,782,PRATTS TAXIS.
Children and Adult Services,Head of Adults,Transport,230005,Contract Hire,04-Feb-15,2856823-145,640,THE TAXI COMPANY (MURTON) LTD.
Children and Adult Services,Planning & Service Strategy,Supplies and Services,384540,Miscellaneous Expenses,04-Feb-15,238043-42127,644,SPECTRUM PLASTICS.
Children and Adult Services,Planning & Service Strategy,Supplies and Services,338089,Services,04-Feb-15,2856577-1521,"1,140.00",CELIA HARBOTTLE.
Children and Adult Services,Planning & Service Strategy,Supplies and Services,338089,Services,04-Feb-15,2856651-1343,900,HSF TRAINING LTD.
Children and Adult Services,Planning & Service Strategy,Supplies and Services,338089,Services,04-Feb-15,2856651-1346,600,HSF TRAINING LTD.
Children and Adult Services,Public Health,Third Party Payments,460803,Contract Payments,04-Feb-15,2856559-DZJM/00000004,"2,447.46",BOOTS THE CHEMISTS LTD.
Assistant Chief Executive,Partnerships & Community Engagement Div.,Transfer Payments,525030,Other,04-Feb-15,2856791-SJ/235,"1,200.00",SHOPJACKET LTD.
Neighbourhood Services,Projects and Business services,Supplies and Services,304252,Equipment and Materials,04-Feb-15,237984-SI/66198,"1,320.00",GEOTECHNICAL INSTRUMENTS (U K) LTD.
Neighbourhood Services,EnvironmentHealth & Consumer Protection,Supplies and Services,332047,Printing Stationery and Gen Off Exps,04-Feb-15,238052-16579,"1,517.22",VIP SYSTEM LTD.
Neighbourhood Services,Technical Services,Supplies and Services,304221,Equipment and Materials,04-Feb-15,2856529-20826057,"5,152.91",AGGREGATE INDUSTRIES UK LTD.
Neighbourhood Services,Technical Services,Supplies and Services,304221,Equipment and Materials,04-Feb-15,2856529-20866223,"1,003.20",AGGREGATE INDUSTRIES UK LTD.
Neighbourhood Services,Technical Services,Supplies and Services,304221,Equipment and Materials,04-Feb-15,2856529-20871956,"1,123.58",AGGREGATE INDUSTRIES UK LTD.
Neighbourhood Services,Technical Services,Supplies and Services,304221,Equipment and Materials,04-Feb-15,2856529-20884806,"1,774.68",AGGREGATE INDUSTRIES UK LTD.
Neighbourhood Services,Technical Services,Supplies and Services,304221,Equipment and Materials,04-Feb-15,2856529-20884807,"1,134.87",AGGREGATE INDUSTRIES UK LTD.
Neighbourhood Services,Technical Services,Supplies and Services,304221,Equipment and Materials,04-Feb-15,2856529-20895082,"1,803.44",AGGREGATE INDUSTRIES UK LTD.
Neighbourhood Services,Technical Services,Supplies and Services,304221,Equipment and Materials,04-Feb-15,2856529-20900568,"1,187.37",AGGREGATE INDUSTRIES UK LTD.
Neighbourhood Services,Technical Services,Supplies and Services,304221,Equipment and Materials,04-Feb-15,2856529-20900571,659.98,AGGREGATE INDUSTRIES UK LTD.
Neighbourhood Services,Technical Services,Supplies and Services,304221,Equipment and Materials,04-Feb-15,2856529-20900572,839.57,AGGREGATE INDUSTRIES UK LTD.
Neighbourhood Services,Technical Services,Supplies and Services,304221,Equipment and Materials,04-Feb-15,2856529-20906936,"1,560.65",AGGREGATE INDUSTRIES UK LTD.
Neighbourhood Services,Projects and Business services,Supplies and Services,338027,Services,04-Feb-15,2856533-HL178246,"1,204.85",ALCONTROL LABORATORIES.
Neighbourhood Services,Culture & Sport,Supplies and Services,312013,Newspapers Books and Periodicals,04-Feb-15,2856539-4547089,593.1,ASKEWS & HOLTS LIBRARY SERVICES LTD.
Neighbourhood Services,Culture & Sport,Supplies and Services,312013,Newspapers Books and Periodicals,04-Feb-15,2856539-4547373,537.65,ASKEWS & HOLTS LIBRARY SERVICES LTD.
Neighbourhood Services,Culture & Sport,Supplies and Services,312013,Newspapers Books and Periodicals,04-Feb-15,2856539-4547462,568.73,ASKEWS & HOLTS LIBRARY SERVICES LTD.
Neighbourhood Services,Culture & Sport,Supplies and Services,312013,Newspapers Books and Periodicals,04-Feb-15,2856539-4547647,502.86,ASKEWS & HOLTS LIBRARY SERVICES LTD.
Neighbourhood Services,Culture & Sport,Supplies and Services,312013,Newspapers Books and Periodicals,04-Feb-15,2856539-4547729,534.42,ASKEWS & HOLTS LIBRARY SERVICES LTD.
Neighbourhood Services,Direct Services,Premises,125009,Rents,04-Feb-15,2856542-18006,"12,500.00",AUCKLAND CASTLE TRUST LTD.
Neighbourhood Services,Technical Services,Supplies and Services,304221,Equipment and Materials,04-Feb-15,2856571-21979,"2,542.78",BUS SHELTERS LTD.
Neighbourhood Services,Direct Services,Third Party Payments,430100,Rendered by Private Contractors,04-Feb-15,2856576-094,547.11,CEILINGS DIRECT LTD.
Neighbourhood Services,Technical Services,Supplies and Services,304221,Equipment and Materials,04-Feb-15,2856580-3132781,"1,534.44",CLEVELAND CABLE CO LTD.
Neighbourhood Services,Technical Services,Stock,926004,Stock,04-Feb-15,2856581-90133889,"7,144.68",CLEVELAND POTASH LTD.
Neighbourhood Services,Culture & Sport,Supplies and Services,384700,Miscellaneous Expenses,04-Feb-15,2856584-NEI-EXP-02-2015-001,"1,320.00",CO DURHAM & DARLINGTON NHS FOUNDATION TRUST.
Neighbourhood Services,Direct Services,Supplies and Services,304221,Equipment and Materials,04-Feb-15,2856625-1502-215916,868.44,FLAME HEATING SPARES LTD.
Neighbourhood Services,Direct Services,Supplies and Services,304221,Equipment and Materials,04-Feb-15,2856626-8844,"2,688.00",FLUID AUTOMATION LTD.
Neighbourhood Services,Technical Services,Supplies and Services,338027,Services,04-Feb-15,2856635-107404534,"1,200.00",GATESHEAD COUNCIL.
Neighbourhood Services,Technical Services,Supplies and Services,338027,Services,04-Feb-15,2856635-107404561,600,GATESHEAD COUNCIL.
Neighbourhood Services,Technical Services,Supplies and Services,338027,Services,04-Feb-15,2856635-107404570,600,GATESHEAD COUNCIL.
Neighbourhood Services,Technical Services,Supplies and Services,338027,Services,04-Feb-15,2856635-107404580,900,GATESHEAD COUNCIL.
Neighbourhood Services,Technical Services,Supplies and Services,338027,Services,04-Feb-15,2856635-107404599,"1,400.00",GATESHEAD COUNCIL.
Neighbourhood Services,Technical Services,Supplies and Services,304221,Equipment and Materials,04-Feb-15,2856647-IN031728,"1,262.00",HILL & SMITH LTD.
Neighbourhood Services,Culture & Sport,Supplies and Services,304221,Equipment and Materials,04-Feb-15,2856650-10785,590.25,HOUSE OF PLAY LTD.
Neighbourhood Services,Technical Services,Stock,926900,Stock in hand-Inventory system,04-Feb-15,2856656-476231,"2,424.80",INSTARMAC GROUP PLC.
Neighbourhood Services,Direct Services,Supplies and Services,304259,Equipment and Materials,04-Feb-15,2856658-115286,903.8,J VAN VLIET GATESHEAD LTD.
Neighbourhood Services,Technical Services,Third Party Payments,460350,Contract Payments,04-Feb-15,2856660-5304833,"2,308.00",JA GILSON (AGRICULTURAL CONTRACTORS) LTD.
Neighbourhood Services,Technical Services,Supplies and Services,304358,Equipment and Materials,04-Feb-15,2856660-5304834,"1,462.27",JA GILSON (AGRICULTURAL CONTRACTORS) LTD.
Neighbourhood Services,Technical Services,Supplies and Services,304358,Equipment and Materials,04-Feb-15,2856660-5304841,"1,462.27",JA GILSON (AGRICULTURAL CONTRACTORS) LTD.
Neighbourhood Services,Technical Services,Third Party Payments,460350,Contract Payments,04-Feb-15,2856660-5304842,"2,102.00",JA GILSON (AGRICULTURAL CONTRACTORS) LTD.
Neighbourhood Services,Technical Services,Third Party Payments,460053,Contract Payments,04-Feb-15,2856661-10964,"1,735.02",JACK COUPE & SONS LTD T/A COUPE LINE.
Neighbourhood Services,Technical Services,Third Party Payments,460053,Contract Payments,04-Feb-15,2856661-10981,"1,545.76",JACK COUPE & SONS LTD T/A COUPE LINE.
Neighbourhood Services,Technical Services,Third Party Payments,460053,Contract Payments,04-Feb-15,2856661-10982,"1,897.88",JACK COUPE & SONS LTD T/A COUPE LINE.
Neighbourhood Services,Technical Services,Third Party Payments,460053,Contract Payments,04-Feb-15,2856661-10983,"1,201.30",JACK COUPE & SONS LTD T/A COUPE LINE.
Neighbourhood Services,Technical Services,Third Party Payments,460053,Contract Payments,04-Feb-15,2856661-10984,904.43,JACK COUPE & SONS LTD T/A COUPE LINE.
Neighbourhood Services,Technical Services,Third Party Payments,460053,Contract Payments,04-Feb-15,2856661-10985,782.68,JACK COUPE & SONS LTD T/A COUPE LINE.
Neighbourhood Services,Technical Services,Stock,926900,Stock in hand-Inventory system,04-Feb-15,2856668-NI026978,"2,960.00",JOHN MACLEAN & SONS ELECTRICAL (DINGWALL) LTD.
Neighbourhood Services,Technical Services,Supplies and Services,304358,Equipment and Materials,04-Feb-15,2856670-22269,"1,092.00",JOHN R BUTTERFIELD LTD.
Neighbourhood Services,Technical Services,Supplies and Services,304358,Equipment and Materials,04-Feb-15,2856670-22412,671,JOHN R BUTTERFIELD LTD.
Neighbourhood Services,Technical Services,Supplies and Services,304358,Equipment and Materials,04-Feb-15,2856670-22691,736.8,JOHN R BUTTERFIELD LTD.
Neighbourhood Services,Direct Services,Supplies and Services,304221,Equipment and Materials,04-Feb-15,2856675-BII154143,"1,718.00",JT DOVE LTD.
Neighbourhood Services,Technical Services,Stock,926900,Stock in hand-Inventory system,04-Feb-15,2856675-STI414246,512.4,JT DOVE LTD.
Neighbourhood Services,Technical Services,Supplies and Services,304221,Equipment and Materials,04-Feb-15,2856684-9032132221,569,LAFARGE TARMAC TRADING LTD.
Neighbourhood Services,Technical Services,Supplies and Services,304221,Equipment and Materials,04-Feb-15,2856684-9032140249,614.95,LAFARGE TARMAC TRADING LTD.
Neighbourhood Services,Technical Services,Supplies and Services,304221,Equipment and Materials,04-Feb-15,2856684-9032140253,522.18,LAFARGE TARMAC TRADING LTD.
Neighbourhood Services,Technical Services,Supplies and Services,304221,Equipment and Materials,04-Feb-15,2856684-9032185328,554.78,LAFARGE TARMAC TRADING LTD.
Neighbourhood Services,Technical Services,Supplies and Services,304358,Equipment and Materials,04-Feb-15,2856686-INV00591044,"8,025.00",LANES GROUP PLC.
Neighbourhood Services,Culture & Sport,Supplies and Services,312013,Newspapers Books and Periodicals,04-Feb-15,2856701-I081377,"1,135.58",MAGNA LARGE PRINT BOOKS.
Neighbourhood Services,Technical Services,Supplies and Services,304221,Equipment and Materials,04-Feb-15,2856705-ZDB0021122,"9,991.42",MARSHALLS MONO LTD.
Neighbourhood Services,Technical Services,Supplies and Services,304358,Equipment and Materials,04-Feb-15,2856706-1763,779,MARTIN JEWITT PLANT HIRE.
Neighbourhood Services,Technical Services,Stock,926900,Stock in hand-Inventory system,04-Feb-15,2856736-132673442,714.62,NEWEY & EYRE LTD.
Neighbourhood Services,Direct Services,Third Party Payments,430100,Rendered by Private Contractors,04-Feb-15,2856745-15010605,"3,166.60",NOVUS PROPERTY SOLUTIONS LTD.
Neighbourhood Services,Technical Services,Stock,926900,Stock in hand-Inventory system,04-Feb-15,2856752-XL133486,"2,530.67",PARK ELECTRICAL DISTRIBUTORS LTD.
Neighbourhood Services,Technical Services,Stock,926900,Stock in hand-Inventory system,04-Feb-15,2856752-XL134200,947.66,PARK ELECTRICAL DISTRIBUTORS LTD.
Neighbourhood Services,Culture & Sport,Supplies and Services,384199,Miscellaneous Expenses,04-Feb-15,2856756-4442666,"1,610.17",PERFORMING RIGHT SOCIETY LTD T/A PRS FOR MUSIC.
Neighbourhood Services,Direct Services,Supplies and Services,304357,Equipment and Materials,04-Feb-15,2856766-132525,"6,240.00",PREMIER TRAFFIC MANAGEMENT LTD.
Neighbourhood Services,EnvironmentHealth & Consumer Protection,Supplies and Services,384199,Miscellaneous Expenses,04-Feb-15,2856770-IN-15-WP-000030,"1,675.00",PUBLIC ANALYST SCIENTIFIC SERVICES LTD.
Neighbourhood Services,Technical Services,Supplies and Services,304358,Equipment and Materials,04-Feb-15,2856774-9138,"2,651.00",RD KEARTON & SONS LTD.
Neighbourhood Services,Direct Services,Supplies and Services,384194,Miscellaneous Expenses,04-Feb-15,2856784-1610,672.36,SAFE STRIP UK LTD.
Neighbourhood Services,Direct Services,Supplies and Services,384194,Miscellaneous Expenses,04-Feb-15,2856784-1611,"1,534.36",SAFE STRIP UK LTD.
Neighbourhood Services,Direct Services,Supplies and Services,384194,Miscellaneous Expenses,04-Feb-15,2856784-1613,772.36,SAFE STRIP UK LTD.
Neighbourhood Services,Culture & Sport,Supplies and Services,384194,Miscellaneous Expenses,04-Feb-15,2856784-1637,679.36,SAFE STRIP UK LTD.
Neighbourhood Services,Technical Services,Stock,926900,Stock in hand-Inventory system,04-Feb-15,2856796-185878,"3,186.49",SNAPFAST.
Neighbourhood Services,Culture & Sport,Fees,901002,Professional fees,04-Feb-15,2856799-732/PJ1471/06,"10,391.00",SOUTHERN GREEN LTD.
Neighbourhood Services,Direct Services,Third Party Payments,430100,Rendered by Private Contractors,04-Feb-15,2856805-4637,"6,567.60",ST ASTIER LTD.
Neighbourhood Services,Direct Services,Supplies and Services,304221,Equipment and Materials,04-Feb-15,2856827-29732,700,TOTAL PUMP SOLUTIONS LTD.
Neighbourhood Services,Technical Services,Third Party Payments,460350,Contract Payments,04-Feb-15,2856828-24440,645.28,TRACKYOU LTD.
Neighbourhood Services,Technical Services,Third Party Payments,460350,Contract Payments,04-Feb-15,2856828-24870,645.28,TRACKYOU LTD.
Neighbourhood Services,Culture & Sport,Supplies and Services,312013,Newspapers Books and Periodicals,04-Feb-15,2856836-I583423,958.38,ULVERSCROFT LARGE PRINT BOOKS LTD.
Neighbourhood Services,Technical Services,Third Party Payments,460350,Contract Payments,04-Feb-15,2856839-38607,"3,858.50",W MARLEY AGRICULTURAL CONTRACTORS LTD.
Neighbourhood Services,Culture & Sport,Supplies and Services,312013,Newspapers Books and Periodicals,04-Feb-15,2856849-799,"10,754.00",WF HOWES LTD.
Neighbourhood Services,Culture & Sport,Supplies and Services,312013,Newspapers Books and Periodicals,04-Feb-15,2856849-800,"6,738.00",WF HOWES LTD.
Neighbourhood Services,Culture & Sport,Supplies and Services,312013,Newspapers Books and Periodicals,04-Feb-15,2856849-806,"1,498.00",WF HOWES LTD.
Neighbourhood Services,Direct Services,Supplies and Services,304259,Equipment and Materials,04-Feb-15,2856850-14-1005,716.37,WM O SILMON LTD.
RED HRA,Housing Revenue Account,Supplies and Services,384071,Miscellaneous Expenses,04-Feb-15,2856616-91105867,"3,237.85",DURHAM MARRIOTT ROYAL COUNTY HOTEL.
RED HRA,Housing Revenue Account,Employees,35001,Allowances,04-Feb-15,2856618-SINV/00003557,"7,465.93",EAST DURHAM HOMES.
RED HRA,Housing Revenue Account,Employees,35001,Allowances,04-Feb-15,2856618-SINV/00003558,"10,871.47",EAST DURHAM HOMES.
RED HRA,HRA Capital,Construction Work,908105,Construction work,04-Feb-15,2856619-212327,"4,713.30",EDMUNDSON ELECTRICAL LTD.
RED HRA,HRA Capital,Construction Work,908105,Construction work,04-Feb-15,2856619-212329,"6,069.60",EDMUNDSON ELECTRICAL LTD.
RED HRA,HRA Capital,Construction Work,908105,Construction work,04-Feb-15,2856619-214328,"5,967.12",EDMUNDSON ELECTRICAL LTD.
RED HRA,HRA Capital,Construction Work,908105,Construction work,04-Feb-15,2856636-214602,"453,802.68",GENTOO CONSTRUCTION LTD.
RED HRA,HRA Capital,Construction Work,908105,Construction work,04-Feb-15,2856636-SIGN/00000499,"1,723.37",GENTOO CONSTRUCTION LTD.
RED HRA,HRA Capital,Construction Work,908105,Construction work,04-Feb-15,2856636-SIGN/00000501,"1,652.40",GENTOO CONSTRUCTION LTD.
RED HRA,HRA Capital,Construction Work,908105,Construction work,04-Feb-15,2856636-SIGN/00000504,"3,272.87",GENTOO CONSTRUCTION LTD.
RED HRA,HRA Capital,Construction Work,908105,Construction work,04-Feb-15,2856636-SIGN/00000505,"1,571.00",GENTOO CONSTRUCTION LTD.
RED HRA,HRA Capital,Construction Work,908105,Construction work,04-Feb-15,2856636-SIGN/00000506,776.6,GENTOO CONSTRUCTION LTD.
RED HRA,HRA Capital,Construction Work,908105,Construction work,04-Feb-15,2856663-17805,956.49,JDP CONTRACTING SERVICES LTD.
RED HRA,HRA Capital,Construction Work,908105,Construction work,04-Feb-15,2856663-17807,796.57,JDP CONTRACTING SERVICES LTD.
RED HRA,Housing Revenue Account,Supplies and Services,338027,Services,04-Feb-15,2856693-IN521619,720,LITEWHITE LTD T/A BLUMILK.
RED HRA,HRA Capital,Construction Work,908105,Construction work,04-Feb-15,2856762-214324,"1,688.87",PLUMBING TRADE SUPPLIES LTD.
RED HRA,HRA Capital,Construction Work,908105,Construction work,04-Feb-15,2856789-81227,700,SGS MIS ENVIRONMENTAL LTD.
RED HRA,HRA Capital,Construction Work,908105,Construction work,04-Feb-15,2856843-2015/1204,"1,798.34",WEARDALE FLOORING.
Regeneration & Economic Development,Transport and Contracted Services,Construction Work,908105,Construction work,04-Feb-15,2856571-21964,"2,542.78",BUS SHELTERS LTD.
Regeneration & Economic Development,Economic Development and Housing,Supplies and Services,384700,Miscellaneous Expenses,04-Feb-15,2856604-RED-01-2015-206,"1,000.00",DERWENTSIDE ENVIRONMENTAL TESTING SERVICES LTD (DETS).
Regeneration & Economic Development,Transport and Contracted Services,Premises,108099,Service Repairs and Maintenance,04-Feb-15,2856607-901122367,653.56,DORMA UK LTD.
Regeneration & Economic Development,Spatial Policy Planning Assets & Environment,Supplies and Services,384199,Miscellaneous Expenses,04-Feb-15,2856635-107404525,"3,720.00",GATESHEAD COUNCIL.
Regeneration & Economic Development,Spatial Policy Planning Assets & Environment,Supplies and Services,384199,Miscellaneous Expenses,04-Feb-15,2856635-107404543,"3,720.00",GATESHEAD COUNCIL.
Regeneration & Economic Development,Spatial Policy Planning Assets & Environment,Supplies and Services,384199,Miscellaneous Expenses,04-Feb-15,2856635-107404552,"3,720.00",GATESHEAD COUNCIL.
Regeneration & Economic Development,Spatial Policy Planning Assets & Environment,Employees,40149,Recruitment Instruction and Training,04-Feb-15,2856688-F00865822,500,LEEDS BECKETT UNIVERSITY.
Regeneration & Economic Development,Economic Development and Housing,Cap Exp on Grants & Other Financial Assistance (REFCUS),918401,Capital grants,04-Feb-15,2856721-RED-02-2015-007,"5,757.42",REDACTED - PAYMENT TO INDIVIDUAL
Regeneration & Economic Development,Economic Development and Housing,Cap Exp on Grants & Other Financial Assistance (REFCUS),918401,Capital grants,04-Feb-15,2856723-RED-02-2015-006,"5,895.84",REDACTED - PAYMENT TO INDIVIDUAL
Regeneration & Economic Development,Economic Development and Housing,Supplies and Services,384700,Miscellaneous Expenses,04-Feb-15,2856728-RED-01-2015-205,"1,000.00",REDACTED - PAYMENT TO INDIVIDUAL
Regeneration & Economic Development,Economic Development and Housing,Cap Exp on Grants & Other Financial Assistance (REFCUS),918401,Capital grants,04-Feb-15,2856730-RED-02-2015-009,"4,119.41",REDACTED - PAYMENT TO INDIVIDUAL
Regeneration & Economic Development,Economic Development and Housing,Construction Work,908105,Construction work,04-Feb-15,2856742-NEI-EXP-01-2015-082,581,NORTHERN POWERGRID (NORTHEAST) LTD.
Regeneration & Economic Development,Economic Development and Housing,Supplies and Services,384700,Miscellaneous Expenses,04-Feb-15,2856754-RED-01-2015-207,"1,000.00",PAUL NEWTON T/A ELVET DENTAL PRACTICE.
Regeneration & Economic Development,Economic Development and Housing,Construction Work,908105,Construction work,04-Feb-15,2856786-DURHAMCITYCOUNCIL,"148,547.00",SCOTTISH GAS T/A WARM UP NORTH.
Resources,I.C.T. Services,Debtors,930168,Debtor - Mobile Telephone Holding Account,04-Feb-15,237981-01158088206,"2,394.42",EE LTD.
Resources,Legal & Democratic Services,Supplies and Services,338042,Services,04-Feb-15,238013-215397,"6,480.00",MR NICHOLAS STONOR.
Resources,Legal & Democratic Services,Supplies and Services,338042,Services,04-Feb-15,238028-311064/INVLW25,600,MS LINDSAY WEBSTER.
Resources,Legal & Democratic Services,Supplies and Services,384960,Miscellaneous Expenses,04-Feb-15,238035-RES-01-2015-134,"1,312.50",RBL POPPY APPEAL FESTIVAL OF REMEMBRANCE.
Resources,Human Resources,Employees,40149,Recruitment Instruction and Training,04-Feb-15,2856515-2T/14044,"1,455.00",2TRAIN LTD.
Resources,Legal & Democratic Services,Supplies and Services,384999,Miscellaneous Expenses,04-Feb-15,2856528-ARIMP/00002292,"3,130.00",ADVANCED LEGAL SOLUTIONS LTD.
Resources,Legal & Democratic Services,Supplies and Services,338057,Services,04-Feb-15,2856585-3980007902,"11,313.00",CO DURHAM & DARLINGTON NHS FOUNDATION TRUST.
Resources,Legal & Democratic Services,Supplies and Services,338057,Services,04-Feb-15,2856610-14DD,"1,452.00",DR SREE MUSSUNOOR.
Resources,Legal & Democratic Services,Supplies and Services,338057,Services,04-Feb-15,2856611-DECEMBER14U,"1,355.20",DR SREE MUSSUNOOR.
Resources,Legal & Democratic Services,Supplies and Services,384954,Miscellaneous Expenses,04-Feb-15,2856691-50366584,949.5,LGC LTD.
Resources,Legal & Democratic Services,Supplies and Services,338057,Services,04-Feb-15,2856735-R0233588,"2,075.00",NEWCASTLE UPON TYNE HOSPITALS NHS FOUNDATION TRUST.
Resources,Legal & Democratic Services,Supplies and Services,338057,Services,04-Feb-15,2856735-R0233597,665,NEWCASTLE UPON TYNE HOSPITALS NHS FOUNDATION TRUST.
Resources,I.C.T. Services,Stock,926900,Stock in hand-Inventory system,04-Feb-15,2856801-OP/L953323,"23,833.50",SPECIALIST COMPUTER CENTRES PLC.
Resources,Financial Services,Supplies and Services,384199,Miscellaneous Expenses,04-Feb-15,2856809-90453085,"1,774.00",STOCKPORT MBC.
Resources,Financial Services,Supplies and Services,384199,Miscellaneous Expenses,04-Feb-15,2856809-90453087,"2,661.00",STOCKPORT MBC.
Resources,I.C.T. Services,Vehicles Equipment Furniture and Fittings,912701,Computer equipment,04-Feb-15,2856817-121049,"1,570.00",SWITCHSHOP LTD.
Children and Adult Services,Central/Other,Debtors,930133,Debtor ISIS Out of Hours - Home Care,05-Feb-15,2857158-DOO11,"8,333.33",HOMECARE SUPPORT LTD T/A THE HUMAN SUPPORT GROUP.
Children and Adult Services,Childrens Services,Supplies and Services,332047,Printing Stationery and Gen Off Exps,05-Feb-15,2856927-SO1112235,533.02,BAKER ROSS LTD.
Children and Adult Services,Childrens Services,Supplies and Services,364353,Grants to Voluntary Organisations,05-Feb-15,2856962-20NIGHTS,500,BROUGH HOUSE.
Children and Adult Services,Childrens Services,Third Party Payments,479101,Purchase of Care,05-Feb-15,2857009-3980008154,"19,383.51",CO DURHAM & DARLINGTON NHS FOUNDATION TRUST.
Children and Adult Services,Childrens Services,Supplies and Services,384199,Miscellaneous Expenses,05-Feb-15,2857074-6896,"2,520.00",EAST DURHAM BUSINESS SERVICE.
Children and Adult Services,Childrens Services,Supplies and Services,336005,Advertising,05-Feb-15,2857100-SINV00040628,"2,785.00",EXTERION MEDIA.
Children and Adult Services,Childrens Services,Supplies and Services,336005,Advertising,05-Feb-15,2857100-SINV00040629,"1,150.00",EXTERION MEDIA.
Children and Adult Services,Childrens Services,Transport,235073,Public Transport,05-Feb-15,2857124-16971,560,GARNETTS LTD (COACHES).
Children and Adult Services,Childrens Services,Supplies and Services,336005,Advertising,05-Feb-15,2857309-6381760,"1,550.00",NEWSQUEST (YORKSHIRE & NORTH EAST) LTD.
Children and Adult Services,Childrens Services,Supplies and Services,336005,Advertising,05-Feb-15,2857309-6382313,600,NEWSQUEST (YORKSHIRE & NORTH EAST) LTD.
Children and Adult Services,Childrens Services,Supplies and Services,336005,Advertising,05-Feb-15,2857309-6382672,"2,150.00",NEWSQUEST (YORKSHIRE & NORTH EAST) LTD.
Children and Adult Services,Childrens Services,Supplies and Services,384871,Miscellaneous Expenses,05-Feb-15,2857324-3610014136,"4,950.00",NORTH TEES & HARTLEPOOL NHS FOUNDATION TRUST.
Children and Adult Services,Childrens Services,Transport,235073,Public Transport,05-Feb-15,2857512-739,"1,328.44",TEESDALE COMMUNITY RESOURCES (TCR) LTD.
Children and Adult Services,Childrens Services,Transport,235073,Public Transport,05-Feb-15,2857512-800,"1,514.43",TEESDALE COMMUNITY RESOURCES (TCR) LTD.
Children and Adult Services,Commissioning inc Supporting People,Third Party Payments,473111,Purchase of Care,05-Feb-15,2856918-D/OP42-Q4,"4,194.50",ASSOCIATION OF TEESDALE DAY CLUBS.
Children and Adult Services,Commissioning inc Supporting People,Third Party Payments,472112,Purchase of Care,05-Feb-15,2857158-DRE10,"2,369.00",HOMECARE SUPPORT LTD T/A THE HUMAN SUPPORT GROUP.
Children and Adult Services,Commissioning inc Supporting People,Third Party Payments,479101,Purchase of Care,05-Feb-15,2857246-5537,"7,897.12",MAIN - TAKING AUTISM PERSONALLY.
Dedicated Schools Grant,Dedicated Schools Grant,Transfer Payments,510032,School Children,05-Feb-15,2856955-CAS-02-2015-013,"1,790.58",BRANDON HAPPYTIMES DAYCARE.
Dedicated Schools Grant,Dedicated Schools Grant,Third Party Payments,440080,Other Third Party Payments,05-Feb-15,2857046-C02007,"65,629.32",DERWENTSIDE COLLEGE.
Dedicated Schools Grant,Dedicated Schools Grant,Transport,230010,Contract Hire,05-Feb-15,2857185-L0026E,"1,100.00",JAFFAS TAXIS.
Dedicated Schools Grant,Dedicated Schools Grant,Third Party Payments,440080,Other Third Party Payments,05-Feb-15,2857318-0000020210,"4,580.00",NORTH EAST AUTISM SOCIETY.
Dedicated Schools Grant,Dedicated Schools Grant,Third Party Payments,440080,Other Third Party Payments,05-Feb-15,2857318-0000020212,747.75,NORTH EAST AUTISM SOCIETY.
Dedicated Schools Grant,Dedicated Schools Grant,Third Party Payments,440080,Other Third Party Payments,05-Feb-15,2857318-0000020213,747.75,NORTH EAST AUTISM SOCIETY.
Dedicated Schools Grant,Dedicated Schools Grant,Transfer Payments,510032,School Children,05-Feb-15,2857530-CAS-02-2015-023,"5,810.87",TILLY MINTS CHERUBS DAY NURSERY.
Children and Adult Services,Education,Transport,230008,Contract Hire,05-Feb-15,2856874-A220760,"1,444.00",A MURRAY TRAVEL.
Children and Adult Services,Education,Transport,230006,Contract Hire,05-Feb-15,2856920-03245,"1,107.60",ATLAS TAXIS CONSETT.
Children and Adult Services,Education,Transport,230008,Contract Hire,05-Feb-15,2856933-462,"1,474.40",BEELINE MINI BUSES.
Children and Adult Services,Education,Transport,230008,Contract Hire,05-Feb-15,2856933-463,"1,425.00",BEELINE MINI BUSES.
Children and Adult Services,Education,Transport,230008,Contract Hire,05-Feb-15,2856934-9JANUARY15,"1,045.00",BEELINE PRIVATE HIRE.
Children and Adult Services,Education,Transport,230008,Contract Hire,05-Feb-15,2856958-BZ00135,"1,560.00",BREZ`S TAXIS.
Children and Adult Services,Education,Transport,230008,Contract Hire,05-Feb-15,2856969-31012015,"1,200.80",BURNDALE PRIVATE HIRE.
Children and Adult Services,Education,Construction Work,908105,Construction work,05-Feb-15,2857058-4848,"2,480.00",DUNELM GEOTECHNICAL & ENVIRONMENTAL LTD.
Children and Adult Services,Education,Transport,230006,Contract Hire,05-Feb-15,2857101-053,"1,272.00",EXTREME TAXI`S.
Children and Adult Services,Education,Third Party Payments,440999,Other Third Party Payments,05-Feb-15,2857157-D1IN/00017474,"6,480.00",HOME GROUP LTD.
Children and Adult Services,Education,Third Party Payments,440999,Other Third Party Payments,05-Feb-15,2857157-D1IN/00017475,"3,000.00",HOME GROUP LTD.
Children and Adult Services,Education,Third Party Payments,440999,Other Third Party Payments,05-Feb-15,2857157-D1IN/00017476,"7,470.00",HOME GROUP LTD.
Children and Adult Services,Education,Third Party Payments,440999,Other Third Party Payments,05-Feb-15,2857157-D1IN/00017477,"15,124.49",HOME GROUP LTD.
Children and Adult Services,Education,Transport,230008,Contract Hire,05-Feb-15,2857167-0143,"1,400.00",I CLYDESDALE T/A BURNOPFIELD TAXIS.
Children and Adult Services,Education,Transport,230007,Contract Hire,05-Feb-15,2857185-4300E,632,JAFFAS TAXIS.
Children and Adult Services,Education,Transport,230008,Contract Hire,05-Feb-15,2857190-657,"2,600.00",JDS PRIVATE HIRE DURHAM.
Children and Adult Services,Education,Supplies and Services,384199,Miscellaneous Expenses,05-Feb-15,2857225-21515,740,LEE`S COACHES LTD.
Children and Adult Services,Education,Transport,230006,Contract Hire,05-Feb-15,2857259-MCD2013,848,MCDONALD TRAVEL.
Children and Adult Services,Education,Transport,230008,Contract Hire,05-Feb-15,2857259-MCD2015,"1,782.00",MCDONALD TRAVEL.
Children and Adult Services,Education,Transport,230007,Contract Hire,05-Feb-15,2857272-060115-300115,760,MR A CHAPMAN T/A ALAN`S TAXIS CHESTER LE ST.
Children and Adult Services,Education,Transport,230006,Contract Hire,05-Feb-15,2857276-75A,"1,608.00",MR DAVID CULLEN.
Children and Adult Services,Education,Third Party Payments,440999,Other Third Party Payments,05-Feb-15,2857330-2602198,"20,949.52",NOVA PAYROLL MANAGEMENT SERVICES LTD T/A PIN POINT RECRUITMENT.
Children and Adult Services,Education,Employees,40001,Recruitment Instruction and Training,05-Feb-15,2857515-TARINV/15345405,710.1,TES GLOBAL LTD.
Children and Adult Services,Education,Supplies and Services,338091,Services,05-Feb-15,2857557-10242302-008,"3,900.00",UNIVERSITY OF TEESSIDE.
Children and Adult Services,Education,Supplies and Services,338091,Services,05-Feb-15,2857557-14244038-001,"4,500.00",UNIVERSITY OF TEESSIDE.
Children and Adult Services,Education,Supplies and Services,338091,Services,05-Feb-15,2857558-12209086-006,"3,900.00",UNIVERSITY OF TEESSIDE.
Children and Adult Services,Education,Vehicles Equipment Furniture and Fittings,912529,Purchase-equipment,05-Feb-15,2857559-1839,530.8,UPNORTH FOODSERVICE EQUIPMENT LTD.
Children and Adult Services,Education,Vehicles Equipment Furniture and Fittings,912529,Purchase-equipment,05-Feb-15,2857559-1876,"4,500.00",UPNORTH FOODSERVICE EQUIPMENT LTD.
Children and Adult Services,Education,Vehicles Equipment Furniture and Fittings,912529,Purchase-equipment,05-Feb-15,2857559-2640,785,UPNORTH FOODSERVICE EQUIPMENT LTD.
Children and Adult Services,Education,Vehicles Equipment Furniture and Fittings,912529,Purchase-equipment,05-Feb-15,2857559-2659,"4,382.10",UPNORTH FOODSERVICE EQUIPMENT LTD.
Children and Adult Services,Head of Adults,Transfer Payments,515201,Social Services Clients,05-Feb-15,2856879-CAS-02-2015-007,511.38,REDACTED - PAYMENT TO INDIVIDUAL
Children and Adult Services,Head of Adults,Transport,230005,Contract Hire,05-Feb-15,2857195-2014/32,516,JM HUMBLE COACH HIRE.
Children and Adult Services,Head of Adults,Transport,230005,Contract Hire,05-Feb-15,2857243-73,780,M BUTCHER.
Children and Adult Services,Head of Adults,Transport,230005,Contract Hire,05-Feb-15,2857259-MCD2011,"1,029.00",MCDONALD TRAVEL.
Children and Adult Services,Head of Adults,Transport,230005,Contract Hire,05-Feb-15,2857273-SLD010-JAN2015,600,MR D DONNELLY.
Children and Adult Services,Head of Adults,Transfer Payments,515205,Social Services Clients,05-Feb-15,2857291-CAS-01-2015-113,"7,920.00",REDACTED - PAYMENT TO INDIVIDUAL
Children and Adult Services,Head of Adults,Transport,230005,Contract Hire,05-Feb-15,2857415-291,980,ROAD RUNNERS (NE) LTD.
Children and Adult Services,Head of Adults,Transport,230005,Contract Hire,05-Feb-15,2857575-952,"1,267.50",WAYNE`S TAXIS.
Children and Adult Services,Head of Adults,Transport,230005,Contract Hire,05-Feb-15,2857575-953,"3,521.70",WAYNE`S TAXIS.
Children and Adult Services,Head of Adults,Transport,230005,Contract Hire,05-Feb-15,2857575-955,"1,260.00",WAYNE`S TAXIS.
Children and Adult Services,Planning & Service Strategy,Supplies and Services,338026,Services,05-Feb-15,2856985-KMCGANDIS,"4,838.75",CL INV OFFICER.
Children and Adult Services,Planning & Service Strategy,Supplies and Services,338026,Services,05-Feb-15,2857497-008,"3,093.13",SWIPHT SOCIAL WORK CONSULTANCY.
Children and Adult Services,Planning & Service Strategy,Supplies and Services,338026,Services,05-Feb-15,2857497-009,533.75,SWIPHT SOCIAL WORK CONSULTANCY.
Children and Adult Services,Public Health,Employees,10001,Other Pay,05-Feb-15,2856987-8010000522,543.4,CDDFT - LET WATERFRONT 4.
Children and Adult Services,Public Health,Third Party Payments,460803,Contract Payments,05-Feb-15,2857033-SINV3173,"4,166.66",CSV COMMUNITY SERVICE VOLUNTEERS.
Neighbourhood Services,Technical Services,Supplies and Services,304221,Equipment and Materials,05-Feb-15,2856888-20866221,"1,255.25",AGGREGATE INDUSTRIES UK LTD.
Neighbourhood Services,Technical Services,Supplies and Services,304221,Equipment and Materials,05-Feb-15,2856888-20871957,"1,237.70",AGGREGATE INDUSTRIES UK LTD.
Neighbourhood Services,Technical Services,Supplies and Services,304221,Equipment and Materials,05-Feb-15,2856888-20884808,"1,028.08",AGGREGATE INDUSTRIES UK LTD.
Neighbourhood Services,Technical Services,Supplies and Services,304221,Equipment and Materials,05-Feb-15,2856888-20884809,590.63,AGGREGATE INDUSTRIES UK LTD.
Neighbourhood Services,Technical Services,Supplies and Services,304221,Equipment and Materials,05-Feb-15,2856888-20890175,568.29,AGGREGATE INDUSTRIES UK LTD.
Neighbourhood Services,Technical Services,Supplies and Services,304221,Equipment and Materials,05-Feb-15,2856888-20895085,568.19,AGGREGATE INDUSTRIES UK LTD.
Neighbourhood Services,Technical Services,Supplies and Services,304221,Equipment and Materials,05-Feb-15,2856888-20895087,"1,025.00",AGGREGATE INDUSTRIES UK LTD.
Neighbourhood Services,Technical Services,Supplies and Services,304221,Equipment and Materials,05-Feb-15,2856888-20914088,"1,482.59",AGGREGATE INDUSTRIES UK LTD.
Neighbourhood Services,Technical Services,Supplies and Services,304221,Equipment and Materials,05-Feb-15,2856888-20914089,"1,150.71",AGGREGATE INDUSTRIES UK LTD.
Neighbourhood Services,Technical Services,Supplies and Services,304221,Equipment and Materials,05-Feb-15,2856888-20919743,"1,759.35",AGGREGATE INDUSTRIES UK LTD.
Neighbourhood Services,Technical Services,Supplies and Services,304221,Equipment and Materials,05-Feb-15,2856888-20926203,"1,072.09",AGGREGATE INDUSTRIES UK LTD.
Neighbourhood Services,Technical Services,Supplies and Services,304221,Equipment and Materials,05-Feb-15,2856888-20926204,"1,160.19",AGGREGATE INDUSTRIES UK LTD.
Neighbourhood Services,Technical Services,Supplies and Services,304221,Equipment and Materials,05-Feb-15,2856888-20937258,"1,726.39",AGGREGATE INDUSTRIES UK LTD.
Neighbourhood Services,Technical Services,Supplies and Services,304221,Equipment and Materials,05-Feb-15,2856888-20939160,964.33,AGGREGATE INDUSTRIES UK LTD.
Neighbourhood Services,Culture & Sport,Vehicles Equipment Furniture and Fittings,912521,Purchase-furniture and fittings,05-Feb-15,2856893-150618,"7,210.00",ALBANY CONTRACT FURNITURE.
Neighbourhood Services,Projects and Business services,Supplies and Services,338027,Services,05-Feb-15,2856894-HL177904,673.53,ALCONTROL LABORATORIES.
Neighbourhood Services,Culture & Sport,Supplies and Services,384700,Miscellaneous Expenses,05-Feb-15,2856938-NEI-EXP-02-2015-004,"1,320.00",BISHOP AUCKLAND TABLE TENNIS CLUB.
Neighbourhood Services,Culture & Sport,Supplies and Services,384199,Miscellaneous Expenses,05-Feb-15,2856970-50217544,"2,413.00",BURNLEY BOROUGH COUNCIL.
Neighbourhood Services,Technical Services,Stock,926900,Stock in hand-Inventory system,05-Feb-15,2856990-0369422,"4,200.00",CHAMBERLAIN DOORS LTD.
Neighbourhood Services,Technical Services,Stock,926900,Stock in hand-Inventory system,05-Feb-15,2856990-5368904,"2,800.00",CHAMBERLAIN DOORS LTD.
Neighbourhood Services,EnvironmentHealth & Consumer Protection,Employees,40001,Recruitment Instruction and Training,05-Feb-15,2856992-INV502435,700,CHARTERED INSTITUTE OF ENVIRONMENTAL HEALTH.
Neighbourhood Services,Technical Services,Third Party Payments,430100,Rendered by Private Contractors,05-Feb-15,2857004-3666,"3,469.99",CLASSIC MASONRY LTD.
Neighbourhood Services,Direct Services,Third Party Payments,430100,Rendered by Private Contractors,05-Feb-15,2857052-9100698530,500,DORMA UK LTD.
Neighbourhood Services,EnvironmentHealth & Consumer Protection,Supplies and Services,338027,Services,05-Feb-15,2857091-20398,"2,431.95",ENVIRO TECHNOLOGY SERVICES PLC.
Neighbourhood Services,Technical Services,Third Party Payments,460350,Contract Payments,05-Feb-15,2857102-147,578,F WARD FARM.
Neighbourhood Services,Technical Services,Stock,926900,Stock in hand-Inventory system,05-Feb-15,2857107-OP/I286180,608.5,FLEMING & CO (MACHINERY) LTD.
Neighbourhood Services,Technical Services,Stock,926900,Stock in hand-Inventory system,05-Feb-15,2857139-06/541820,732.26,GREENHAM TRADING LTD.
Neighbourhood Services,Technical Services,Supplies and Services,338027,Services,05-Feb-15,2857148-0000069943,"9,000.00",HARVARD ENGINEERING PLC.
Neighbourhood Services,Technical Services,Supplies and Services,338027,Services,05-Feb-15,2857148-0000078815,"9,000.00",HARVARD ENGINEERING PLC.
Neighbourhood Services,Technical Services,Supplies and Services,338027,Services,05-Feb-15,2857148-0000083655,"9,000.00",HARVARD ENGINEERING PLC.
Neighbourhood Services,Technical Services,Supplies and Services,338027,Services,05-Feb-15,2857148-0000086752,"9,000.00",HARVARD ENGINEERING PLC.
Neighbourhood Services,Technical Services,Supplies and Services,338027,Services,05-Feb-15,2857148-0000092425,"9,000.00",HARVARD ENGINEERING PLC.
Neighbourhood Services,Technical Services,Supplies and Services,338027,Services,05-Feb-15,2857148-0000093821,"9,000.00",HARVARD ENGINEERING PLC.
Neighbourhood Services,Technical Services,Third Party Payments,460053,Contract Payments,05-Feb-15,2857183-10963,707.03,JACK COUPE & SONS LTD T/A COUPE LINE.
Neighbourhood Services,Technical Services,Supplies and Services,304221,Equipment and Materials,05-Feb-15,2857204-BII154145,595.79,JT DOVE LTD.
Neighbourhood Services,Technical Services,Supplies and Services,304221,Equipment and Materials,05-Feb-15,2857204-BII154236,520.08,JT DOVE LTD.
Neighbourhood Services,Technical Services,Supplies and Services,304221,Equipment and Materials,05-Feb-15,2857219-9032120576,621.08,LAFARGE TARMAC TRADING LTD.
Neighbourhood Services,Technical Services,Supplies and Services,304221,Equipment and Materials,05-Feb-15,2857219-9032120586,874.7,LAFARGE TARMAC TRADING LTD.
Neighbourhood Services,Technical Services,Supplies and Services,304221,Equipment and Materials,05-Feb-15,2857219-9032158527,"1,619.95",LAFARGE TARMAC TRADING LTD.
Neighbourhood Services,Technical Services,Supplies and Services,304221,Equipment and Materials,05-Feb-15,2857219-9032170161,"7,426.05",LAFARGE TARMAC TRADING LTD.
Neighbourhood Services,Technical Services,Supplies and Services,304221,Equipment and Materials,05-Feb-15,2857219-9032170177,"1,179.20",LAFARGE TARMAC TRADING LTD.
Neighbourhood Services,Technical Services,Supplies and Services,304221,Equipment and Materials,05-Feb-15,2857257-33960,688.98,MAY GURNEY LTD.
Neighbourhood Services,Technical Services,Stock,926900,Stock in hand-Inventory system,05-Feb-15,2857327-1463383,"1,247.73",NORTHERN TOOLS & ACCESSORIES.
Neighbourhood Services,Direct Services,Supplies and Services,304221,Equipment and Materials,05-Feb-15,2857354-XL134440,"1,801.79",PARK ELECTRICAL DISTRIBUTORS LTD.
Neighbourhood Services,Direct Services,Supplies and Services,304221,Equipment and Materials,05-Feb-15,2857369-214246,863.49,PLUMBING TRADE SUPPLIES LTD.
Neighbourhood Services,EnvironmentHealth & Consumer Protection,Supplies and Services,384199,Miscellaneous Expenses,05-Feb-15,2857385-IN-15-WP-000017,510,PUBLIC ANALYST SCIENTIFIC SERVICES LTD.
Neighbourhood Services,Technical Services,Supplies and Services,304221,Equipment and Materials,05-Feb-15,2857456-218769,"1,040.97",SIGNPOST SOLUTIONS LTD.
Neighbourhood Services,Culture & Sport,Premises,115125,Repairs to Grounds,05-Feb-15,2857500-0000075387,"1,926.00",TA PLASTIC SUPPLIES LTD.
Neighbourhood Services,Direct Services,Vehicles Equipment Furniture and Fittings,912541,Purchase-vehicles,05-Feb-15,2857506-528847,"77,448.73",TC HARRISON JCB.
Neighbourhood Services,Technical Services,Supplies and Services,304221,Equipment and Materials,05-Feb-15,2857547-145028,578.14,TYNEDALE ROADSTONE LTD.
Neighbourhood Services,Technical Services,Supplies and Services,304221,Equipment and Materials,05-Feb-15,2857547-145227,606.9,TYNEDALE ROADSTONE LTD.
Neighbourhood Services,Culture & Sport,Third Party Payments,430100,Rendered by Private Contractors,05-Feb-15,2857558-10476974,"2,455.32",UNIVERSITY OF TEESSIDE.
Neighbourhood Services,Technical Services,Supplies and Services,304357,Equipment and Materials,05-Feb-15,2857587-N77892,"7,589.83",WILLIAMSON CONSTRUCTION EQUIPMENT LTD.
Neighbourhood Services,Technical Services,Supplies and Services,304357,Equipment and Materials,05-Feb-15,2857587-N77893,"11,660.17",WILLIAMSON CONSTRUCTION EQUIPMENT LTD.
Neighbourhood Services,Technical Services,Third Party Payments,430100,Rendered by Private Contractors,05-Feb-15,2857588-37647,"3,605.00",WILLOWCRETE MFG CO LTD.
Neighbourhood Services,Technical Services,Stock,926900,Stock in hand-Inventory system,05-Feb-15,2857592-19239668,967.31,WOLSELEY UK LTD.
Neighbourhood Services,Technical Services,Stock,926900,Stock in hand-Inventory system,05-Feb-15,2857592-19383868,"6,195.00",WOLSELEY UK LTD.
RED HRA,HRA Capital,Construction Work,908105,Construction work,05-Feb-15,2857076-SINV/00003559,876.18,EAST DURHAM HOMES.
RED HRA,HRA Capital,Construction Work,908105,Construction work,05-Feb-15,2857076-SINV/00003560,"5,838.11",EAST DURHAM HOMES.
RED HRA,HRA Capital,Construction Work,908105,Construction work,05-Feb-15,2857076-SINV/00003561,"4,422.22",EAST DURHAM HOMES.
RED HRA,HRA Capital,Construction Work,908105,Construction work,05-Feb-15,2857076-SINV/00003562,"29,961.84",EAST DURHAM HOMES.
RED HRA,HRA Capital,Construction Work,908105,Construction work,05-Feb-15,2857076-SINV/00003563,"42,059.29",EAST DURHAM HOMES.
RED HRA,HRA Capital,Construction Work,908105,Construction work,05-Feb-15,2857076-SINV/00003564,"3,991.38",EAST DURHAM HOMES.
RED HRA,HRA Capital,Construction Work,908105,Construction work,05-Feb-15,2857076-SINV/00003565,"10,759.23",EAST DURHAM HOMES.
RED HRA,HRA Capital,Construction Work,908105,Construction work,05-Feb-15,2857076-SINV/00003566,"7,619.60",EAST DURHAM HOMES.
RED HRA,HRA Capital,Construction Work,908105,Construction work,05-Feb-15,2857080-214375,"23,349.27",EDENDENE CONSTRUCTION SERVICES LTD.
RED HRA,HRA Capital,Construction Work,908105,Construction work,05-Feb-15,2857207-B50365-11,"56,803.56",KEEPMOAT HOMES LTD.
RED HRA,HRA Capital,Construction Work,908105,Construction work,05-Feb-15,2857207-B50366-11,"176,083.61",KEEPMOAT HOMES LTD.
RED HRA,HRA Capital,Construction Work,908105,Construction work,05-Feb-15,2857207-B50404-5,"62,667.77",KEEPMOAT HOMES LTD.
RED HRA,HRA Capital,Construction Work,908105,Construction work,05-Feb-15,2857207-B50406-4,"88,453.37",KEEPMOAT HOMES LTD.
RED HRA,Housing Revenue Account,Supplies and Services,338066,Services,05-Feb-15,2857302,"126,723.36",NEPRO LTD.
RED HRA,Housing Revenue Account,Supplies and Services,336005,Advertising,05-Feb-15,2857309-6381607,808.38,NEWSQUEST (YORKSHIRE & NORTH EAST) LTD.
RED HRA,Housing Revenue Account,Supplies and Services,342033,Computers and Communications,05-Feb-15,2857468-INV73531,"5,454.44",SOFTWARE BOX LTD.
RED HRA,HRA Capital,Construction Work,908105,Construction work,05-Feb-15,2857573-B50370-6,"55,266.02",WATES CONSTRUCTION LTD.
RED HRA,HRA Capital,Construction Work,908105,Construction work,05-Feb-15,2857573-B50371-7,"7,189.59",WATES CONSTRUCTION LTD.
RED HRA,HRA Capital,Construction Work,908105,Construction work,05-Feb-15,2857573-B50390-3,"119,335.84",WATES CONSTRUCTION LTD.
RED HRA,HRA Capital,Construction Work,908105,Construction work,05-Feb-15,2857573-B50399-8,"18,446.48",WATES CONSTRUCTION LTD.
RED HRA,HRA Capital,Construction Work,908105,Construction work,05-Feb-15,2857573-B50400-4,"26,523.57",WATES CONSTRUCTION LTD.
RED HRA,HRA Capital,Construction Work,908105,Construction work,05-Feb-15,2857574-214275,"241,600.87",WATES CONSTRUCTION LTD.
RED HRA,Housing Revenue Account,Debtors,930106,Debtor-furnished tenancy scheme,05-Feb-15,2857600-1800007301691,"28,663.23",YOUR HOMES NEWCASTLE.
Regeneration & Economic Development,Economic Development and Housing,Supplies and Services,324117,Provisions,05-Feb-15,2856868-60022329,642.86,3663
Regeneration & Economic Development,Economic Development and Housing,Supplies and Services,384700,Miscellaneous Expenses,05-Feb-15,2856882-RED-02-2015-001,"1,000.00",ADAM YEWS JOINERY.
Regeneration & Economic Development,Economic Development and Housing,Supplies and Services,384199,Miscellaneous Expenses,05-Feb-15,2856889-703,"11,155.00",AHA DISTRIBUTION LTD.
Regeneration & Economic Development,Economic Development and Housing,Supplies and Services,384700,Miscellaneous Expenses,05-Feb-15,2856928-RED-02-2015-010,"2,500.00",BARNARD CASTLE VISION CIC T/A NEST.
Regeneration & Economic Development,Economic Development and Housing,Supplies and Services,377015,County Durham Development,05-Feb-15,2856971-SI-105162,"8,000.00",BUSINESS & ENTERPRISE COMMERCIAL LTD T/A BE GROUP.
Regeneration & Economic Development,Spatial Policy Planning Assets & Environment,Supplies and Services,384964,Miscellaneous Expenses,05-Feb-15,2857050-1462,"6,072.50",DIFFERENTIA LTD.
Regeneration & Economic Development,Spatial Policy Planning Assets & Environment,Supplies and Services,377015,County Durham Development,05-Feb-15,2857073-4100466373,"1,050.00",EAST DURHAM ARTISTS NETWORK.
Regeneration & Economic Development,Transport and Contracted Services,Third Party Payments,430100,Rendered by Private Contractors,05-Feb-15,2857090-1881,"1,068.00",EMERGENCY MEDICAL SERVICES (UK) LTD (EMS).
Regeneration & Economic Development,Transport and Contracted Services,Third Party Payments,430100,Rendered by Private Contractors,05-Feb-15,2857090-1893,"1,068.00",EMERGENCY MEDICAL SERVICES (UK) LTD (EMS).
Regeneration & Economic Development,Transport and Contracted Services,Third Party Payments,440999,Other Third Party Payments,05-Feb-15,2857164-690-15,500,HSA GROUP.
Regeneration & Economic Development,Economic Development and Housing,Supplies and Services,384700,Miscellaneous Expenses,05-Feb-15,2857165-RED-02-2015-004,"1,000.00",HSH MANAGEMENT LTD.
Regeneration & Economic Development,Economic Development and Housing,Supplies and Services,384700,Miscellaneous Expenses,05-Feb-15,2857214-RED-02-2015-003,"1,000.00",KINGSGATE DENTAL PRACTICE LTD.
Regeneration & Economic Development,Economic Development and Housing,Supplies and Services,384540,Miscellaneous Expenses,05-Feb-15,2857224-018,560,LEC CONSULTANCY LTD.
Regeneration & Economic Development,Transport and Contracted Services,Supplies and Services,384199,Miscellaneous Expenses,05-Feb-15,2857234-3353,"218,220.00",LIVING STREETS.
Regeneration & Economic Development,Spatial Policy Planning Assets & Environment,Third Party Payments,440999,Other Third Party Payments,05-Feb-15,2857263-3690,"3,335.56",MICROCOPY SYSTEMS LTD.
Regeneration & Economic Development,Spatial Policy Planning Assets & Environment,Third Party Payments,440999,Other Third Party Payments,05-Feb-15,2857263-3698,"2,955.46",MICROCOPY SYSTEMS LTD.
Regeneration & Economic Development,Economic Development and Housing,Supplies and Services,384700,Miscellaneous Expenses,05-Feb-15,2857283-RED-02-2015-005,"1,000.00",REDACTED - PAYMENT TO INDIVIDUAL
Regeneration & Economic Development,Spatial Policy Planning Assets & Environment,Supplies and Services,336005,Advertising,05-Feb-15,2857309-6360231,"1,062.47",NEWSQUEST (YORKSHIRE & NORTH EAST) LTD.
Regeneration & Economic Development,Spatial Policy Planning Assets & Environment,Supplies and Services,336005,Advertising,05-Feb-15,2857309-6382305,"1,073.20",NEWSQUEST (YORKSHIRE & NORTH EAST) LTD.
Regeneration & Economic Development,Spatial Policy Planning Assets & Environment,Supplies and Services,336005,Advertising,05-Feb-15,2857309-6405445,869.29,NEWSQUEST (YORKSHIRE & NORTH EAST) LTD.
Regeneration & Economic Development,Spatial Policy Planning Assets & Environment,Supplies and Services,336005,Advertising,05-Feb-15,2857309-6431342,965.88,NEWSQUEST (YORKSHIRE & NORTH EAST) LTD.
Regeneration & Economic Development,Economic Development and Housing,Cap Exp on Grants & Other Financial Assistance (REFCUS),918401,Capital grants,05-Feb-15,2857339-RED-02-2015-014,719.09,OLD SHILDON CLUB & INSTITUTE.
Regeneration & Economic Development,Economic Development and Housing,Supplies and Services,338078,Services,05-Feb-15,2857390-4725,"4,788.91",QW SECURITY LTD.
Regeneration & Economic Development,Economic Development and Housing,Premises,106099,Centrally Controlled Rep and Maint,05-Feb-15,2857429-3715,503.74,SAFEGUARD SECURITY (NE) LTD.
Regeneration & Economic Development,Transport and Contracted Services,Third Party Payments,430106,Rendered by Private Contractors,05-Feb-15,2857433-98,"3,523.66",SB TRAVEL.
Regeneration & Economic Development,Transport and Contracted Services,Third Party Payments,430106,Rendered by Private Contractors,05-Feb-15,2857479-12458,"13,655.56",STANLEY TRAVEL (NORTH EAST) LTD.
Regeneration & Economic Development,Transport and Contracted Services,Supplies and Services,328041,Clothing Uniforms and Laundry,05-Feb-15,2857496-416334,"1,236.90",SWIFT INDUSTRIAL SUPPLIES LTD.
Regeneration & Economic Development,Economic Development and Housing,Supplies and Services,384871,Miscellaneous Expenses,05-Feb-15,2857538-150164,925,TRAINING SUPPORT FOR INDUSTRY LTD.
Resources,I.C.T. Services,Supplies and Services,342215,Computers and Communications,05-Feb-15,2856923-11465357,"1,224.50",AZZURRI COMMUNICATIONS LTD.
Resources,Internal Audit and Insurance,Employees,40149,Recruitment Instruction and Training,05-Feb-15,2856997-WES25/15,585,CIPFA AUDIT GROUP.
Resources,I.C.T. Services,Vehicles Equipment Furniture and Fittings,912701,Computer equipment,05-Feb-15,2857045-7402175240,"36,256.00",DELL COMPUTER CORPORATION LTD.
Resources,I.C.T. Services,Supplies and Services,372009,Subscriptions,05-Feb-15,2857070-INV-0003,850,DYNAMO NORTH EAST CIC.
Resources,Centrally Administered Costs,Supplies and Services,338013,Services,05-Feb-15,2857258-1020439,"33,318.00",MAZARS LLP.
Resources,I.C.T. Services,Supplies and Services,342051,Computers and Communications,05-Feb-15,2857342-1468181,"2,227.89",ORACLE CORPORATION UK LTD.
Resources,I.C.T. Services,Construction Work,908105,Construction work,05-Feb-15,2857404-INV-0354,"4,846.00",REDWOOD CABLE PROJECTS.
Resources,I.C.T. Services,Stock,926900,Stock in hand-Inventory system,05-Feb-15,2857470-OP/L954514,"1,385.00",SPECIALIST COMPUTER CENTRES PLC.
Children and Adult Services,Central/Other,Supplies and Services,338094,Services,06-Feb-15,2857894-2956,"1,042.00",THE DURHAM CENTRE LTD.
Children and Adult Services,Childrens Services,Transport,230005,Contract Hire,06-Feb-15,2857635-12/JANUARY15,520,BEELINE PRIVATE HIRE.
Children and Adult Services,Childrens Services,Transport,230005,Contract Hire,06-Feb-15,2857637-06644,"1,160.00",BIRDS TAXIS.
Children and Adult Services,Childrens Services,Transport,230005,Contract Hire,06-Feb-15,2857637-06656,812,BIRDS TAXIS.
Children and Adult Services,Childrens Services,Third Party Payments,486023,Service Level Agreements,06-Feb-15,2857643-FEBHALFTERM,"1,000.00",BRANDON CARRSIDE YOUTH & COMMUNITY PROJECT.
Children and Adult Services,Childrens Services,Third Party Payments,486044,Service Level Agreements,06-Feb-15,2857672-3980008146,"2,429.00",CO DURHAM & DARLINGTON NHS FOUNDATION TRUST.
Children and Adult Services,Childrens Services,Supplies and Services,336005,Advertising,06-Feb-15,2857677-SNE009815,"3,567.00",COMMUNICORP UK.
Children and Adult Services,Childrens Services,Third Party Payments,486023,Service Level Agreements,06-Feb-15,2857698-24122014,"5,610.87",DERIC YOUTH BUS PROJECT.
Children and Adult Services,Childrens Services,Supplies and Services,384638,Miscellaneous Expenses,06-Feb-15,2857699-004,"5,625.00",DURHAM AREA DISABILITY LEISURE GROUP.
Children and Adult Services,Childrens Services,Third Party Payments,425040,Rendered by Voluntary Organisations,06-Feb-15,2857712-0000054019,"2,920.12",FIVE RIVERS CHILD CARE LTD.
Children and Adult Services,Childrens Services,Third Party Payments,486022,Service Level Agreements,06-Feb-15,2857714-4984,"4,517.24",FLEXIBLE SUPPORT OPTIONS UK (DOMICILARY) LTD.
Children and Adult Services,Childrens Services,Third Party Payments,425040,Rendered by Voluntary Organisations,06-Feb-15,2857715-630142435,"3,776.01",FOSTER CARE ASSOCIATES LTD.
Children and Adult Services,Childrens Services,Third Party Payments,425040,Rendered by Voluntary Organisations,06-Feb-15,2857715-630142594,"3,684.64",FOSTER CARE ASSOCIATES LTD.
Children and Adult Services,Childrens Services,Third Party Payments,425040,Rendered by Voluntary Organisations,06-Feb-15,2857715-630142723,"3,684.64",FOSTER CARE ASSOCIATES LTD.
Children and Adult Services,Childrens Services,Third Party Payments,425040,Rendered by Voluntary Organisations,06-Feb-15,2857715-630142752,"3,684.64",FOSTER CARE ASSOCIATES LTD.
Children and Adult Services,Childrens Services,Third Party Payments,425040,Rendered by Voluntary Organisations,06-Feb-15,2857715-630142832,"3,684.64",FOSTER CARE ASSOCIATES LTD.
Children and Adult Services,Childrens Services,Third Party Payments,425040,Rendered by Voluntary Organisations,06-Feb-15,2857715-630143032,"3,684.64",FOSTER CARE ASSOCIATES LTD.
Children and Adult Services,Childrens Services,Third Party Payments,425040,Rendered by Voluntary Organisations,06-Feb-15,2857715-630143118,"3,684.64",FOSTER CARE ASSOCIATES LTD.
Children and Adult Services,Childrens Services,Third Party Payments,425040,Rendered by Voluntary Organisations,06-Feb-15,2857715-630143183,"3,684.64",FOSTER CARE ASSOCIATES LTD.
Children and Adult Services,Childrens Services,Third Party Payments,425040,Rendered by Voluntary Organisations,06-Feb-15,2857715-630143202,"3,684.64",FOSTER CARE ASSOCIATES LTD.
Children and Adult Services,Childrens Services,Third Party Payments,425040,Rendered by Voluntary Organisations,06-Feb-15,2857715-630143465,"3,684.64",FOSTER CARE ASSOCIATES LTD.
Children and Adult Services,Childrens Services,Third Party Payments,425040,Rendered by Voluntary Organisations,06-Feb-15,2857715-630143485,"3,684.64",FOSTER CARE ASSOCIATES LTD.
Children and Adult Services,Childrens Services,Third Party Payments,425040,Rendered by Voluntary Organisations,06-Feb-15,2857716-3479,"3,232.68",FOSTER CARE SOLUTIONS LTD.
Children and Adult Services,Childrens Services,Third Party Payments,425040,Rendered by Voluntary Organisations,06-Feb-15,2857716-3480,"3,232.68",FOSTER CARE SOLUTIONS LTD.
Children and Adult Services,Childrens Services,Third Party Payments,425040,Rendered by Voluntary Organisations,06-Feb-15,2857717-12130,730,FOSTER CARES LTD.
Children and Adult Services,Childrens Services,Third Party Payments,425040,Rendered by Voluntary Organisations,06-Feb-15,2857717-12165,730,FOSTER CARES LTD.
Children and Adult Services,Childrens Services,Third Party Payments,425040,Rendered by Voluntary Organisations,06-Feb-15,2857717-12235,730,FOSTER CARES LTD.
Children and Adult Services,Childrens Services,Third Party Payments,425040,Rendered by Voluntary Organisations,06-Feb-15,2857717-12245,820,FOSTER CARES LTD.
Children and Adult Services,Childrens Services,Third Party Payments,425040,Rendered by Voluntary Organisations,06-Feb-15,2857717-12248,760,FOSTER CARES LTD.
Children and Adult Services,Childrens Services,Third Party Payments,425040,Rendered by Voluntary Organisations,06-Feb-15,2857717-12263,730,FOSTER CARES LTD.
Children and Adult Services,Childrens Services,Third Party Payments,425040,Rendered by Voluntary Organisations,06-Feb-15,2857717-12289,730,FOSTER CARES LTD.
Children and Adult Services,Childrens Services,Third Party Payments,425040,Rendered by Voluntary Organisations,06-Feb-15,2857717-12294,"1,180.00",FOSTER CARES LTD.
Children and Adult Services,Childrens Services,Third Party Payments,425040,Rendered by Voluntary Organisations,06-Feb-15,2857717-12300,760,FOSTER CARES LTD.
Children and Adult Services,Childrens Services,Third Party Payments,425040,Rendered by Voluntary Organisations,06-Feb-15,2857717-12301,730,FOSTER CARES LTD.
Children and Adult Services,Childrens Services,Third Party Payments,425040,Rendered by Voluntary Organisations,06-Feb-15,2857717-12312,730,FOSTER CARES LTD.
Children and Adult Services,Childrens Services,Third Party Payments,425040,Rendered by Voluntary Organisations,06-Feb-15,2857717-12321,820,FOSTER CARES LTD.
Children and Adult Services,Childrens Services,Third Party Payments,425040,Rendered by Voluntary Organisations,06-Feb-15,2857717-12322,730,FOSTER CARES LTD.
Children and Adult Services,Childrens Services,Transport,230007,Contract Hire,06-Feb-15,2857723-1627,"1,330.00",GEM TRAVEL.
Children and Adult Services,Childrens Services,Supplies and Services,384638,Miscellaneous Expenses,06-Feb-15,2857749-2014-15/IC/004,"6,231.75",INTEGRATING CHILDREN.
Children and Adult Services,Childrens Services,Supplies and Services,384638,Miscellaneous Expenses,06-Feb-15,2857749-2014-15/IC/005,"6,231.75",INTEGRATING CHILDREN.
Children and Adult Services,Childrens Services,Third Party Payments,425018,Rendered by Voluntary Organisations,06-Feb-15,2857750-INV-0334,"14,596.96",INTERACT CARE LTD.
Children and Adult Services,Childrens Services,Third Party Payments,425017,Rendered by Voluntary Organisations,06-Feb-15,2857750-INV-0340,"8,213.40",INTERACT CARE LTD.
Children and Adult Services,Childrens Services,Third Party Payments,440061,Other Third Party Payments,06-Feb-15,2857763-622,671.45,JIGSAW THERAPY SERVICES.
Children and Adult Services,Childrens Services,Transport,230005,Contract Hire,06-Feb-15,2857785-2005,"1,984.00",LOCAL TRANSPORT LTD.
Children and Adult Services,Childrens Services,Transport,230005,Contract Hire,06-Feb-15,2857802-516,616,MOLLYS TAXIS.
Children and Adult Services,Childrens Services,Third Party Payments,425020,Rendered by Voluntary Organisations,06-Feb-15,2857844-251014,"12,688.88",PEARTREE PROJECTS LTD.
Children and Adult Services,Childrens Services,Third Party Payments,440061,Other Third Party Payments,06-Feb-15,2857847-12901,"1,729.02",PHYSIOTHERAPY FOR YOU.
Children and Adult Services,Childrens Services,Third Party Payments,486021,Service Level Agreements,06-Feb-15,2857853-3178,876.58,REACH OUT CARE SUPPORT SERVICES LTD.
Children and Adult Services,Childrens Services,Transport,230005,Contract Hire,06-Feb-15,2857858-300,"1,640.00",ROAD RUNNERS (NE) LTD.
Children and Adult Services,Childrens Services,Transport,230005,Contract Hire,06-Feb-15,2857858-301,517,ROAD RUNNERS (NE) LTD.
Children and Adult Services,Childrens Services,Third Party Payments,486023,Service Level Agreements,06-Feb-15,2857862-FEBHALFTERM,"1,000.00",SACRISTON YOUTH PROJECT.
Children and Adult Services,Childrens Services,Supplies and Services,384638,Miscellaneous Expenses,06-Feb-15,2857878-SI-453,"7,214.02",SPORT WORKS LTD.
Children and Adult Services,Childrens Services,Third Party Payments,425017,Rendered by Voluntary Organisations,06-Feb-15,2857881-1151358,"3,367.50",ST CUTHBERTS CARE.
Children and Adult Services,Childrens Services,Third Party Payments,425017,Rendered by Voluntary Organisations,06-Feb-15,2857881-1151360,"1,583.25",ST CUTHBERTS CARE.
Children and Adult Services,Childrens Services,Supplies and Services,364352,Grants to Voluntary Organisations,06-Feb-15,2857885-D1IN/00017451,515,STONHAM HOUSING ASSOCIATION LTD.
Children and Adult Services,Childrens Services,Third Party Payments,425040,Rendered by Voluntary Organisations,06-Feb-15,2857889-158373,891.9,SWIIS FOSTER CARE LTD.
Children and Adult Services,Childrens Services,Third Party Payments,425040,Rendered by Voluntary Organisations,06-Feb-15,2857889-158706,910,SWIIS FOSTER CARE LTD.
Children and Adult Services,Childrens Services,Third Party Payments,425040,Rendered by Voluntary Organisations,06-Feb-15,2857889-158708,"1,075.00",SWIIS FOSTER CARE LTD.
Children and Adult Services,Childrens Services,Third Party Payments,425040,Rendered by Voluntary Organisations,06-Feb-15,2857889-158709,891.9,SWIIS FOSTER CARE LTD.
Children and Adult Services,Childrens Services,Third Party Payments,425040,Rendered by Voluntary Organisations,06-Feb-15,2857889-158710,"1,208.00",SWIIS FOSTER CARE LTD.
Children and Adult Services,Childrens Services,Third Party Payments,425040,Rendered by Voluntary Organisations,06-Feb-15,2857893-23987,"3,631.43",TEAM FOSTERING.
Children and Adult Services,Childrens Services,Third Party Payments,425040,Rendered by Voluntary Organisations,06-Feb-15,2857893-24020,"3,232.68",TEAM FOSTERING.
Children and Adult Services,Childrens Services,Third Party Payments,425040,Rendered by Voluntary Organisations,06-Feb-15,2857893-24206,"3,280.00",TEAM FOSTERING.
Children and Adult Services,Childrens Services,Third Party Payments,425040,Rendered by Voluntary Organisations,06-Feb-15,2857893-24210,"2,920.00",TEAM FOSTERING.
Children and Adult Services,Childrens Services,Third Party Payments,425040,Rendered by Voluntary Organisations,06-Feb-15,2857893-24234,"5,720.12",TEAM FOSTERING.
Children and Adult Services,Childrens Services,Third Party Payments,425040,Rendered by Voluntary Organisations,06-Feb-15,2857893-24239,"3,232.86",TEAM FOSTERING.
Children and Adult Services,Childrens Services,Third Party Payments,425040,Rendered by Voluntary Organisations,06-Feb-15,2857893-24261,"3,280.00",TEAM FOSTERING.
Children and Adult Services,Childrens Services,Third Party Payments,425040,Rendered by Voluntary Organisations,06-Feb-15,2857893-24284,"2,920.00",TEAM FOSTERING.
Children and Adult Services,Childrens Services,Third Party Payments,425040,Rendered by Voluntary Organisations,06-Feb-15,2857893-24286,"3,631.43",TEAM FOSTERING.
Children and Adult Services,Childrens Services,Third Party Payments,425040,Rendered by Voluntary Organisations,06-Feb-15,2857893-24292,"2,920.00",TEAM FOSTERING.
Children and Adult Services,Childrens Services,Third Party Payments,425040,Rendered by Voluntary Organisations,06-Feb-15,2857893-24293,"2,920.00",TEAM FOSTERING.
Children and Adult Services,Childrens Services,Third Party Payments,425040,Rendered by Voluntary Organisations,06-Feb-15,2857893-24306,"2,800.00",TEAM FOSTERING.
Children and Adult Services,Childrens Services,Third Party Payments,425040,Rendered by Voluntary Organisations,06-Feb-15,2857895-000140,"6,758.00",THE FOSTERING COMPANY NE LTD.
Dedicated Schools Grant,Dedicated Schools Grant,Transport,230010,Contract Hire,06-Feb-15,2857650-P04805A,950,C & R TAXIS.
Dedicated Schools Grant,Dedicated Schools Grant,Transport,230010,Contract Hire,06-Feb-15,2857743-PRU031,"1,500.00",IAN SOULSBY.
Dedicated Schools Grant,Dedicated Schools Grant,Supplies and Services,304259,Equipment and Materials,06-Feb-15,2857760-00118829,"2,296.00",JENX LTD.
Dedicated Schools Grant,Dedicated Schools Grant,Transport,230010,Contract Hire,06-Feb-15,2857792-011502,"2,052.00",MARK & JOHN CHISHOLM T/A (CHEVRON).
Dedicated Schools Grant,Dedicated Schools Grant,Transport,230010,Contract Hire,06-Feb-15,2857792-011504,"2,080.00",MARK & JOHN CHISHOLM T/A (CHEVRON).
Dedicated Schools Grant,Dedicated Schools Grant,Transport,230010,Contract Hire,06-Feb-15,2857792-011508,"1,900.00",MARK & JOHN CHISHOLM T/A (CHEVRON).
Dedicated Schools Grant,Dedicated Schools Grant,Transport,230010,Contract Hire,06-Feb-15,2857792-011511,"1,140.00",MARK & JOHN CHISHOLM T/A (CHEVRON).
Dedicated Schools Grant,Dedicated Schools Grant,Transport,230010,Contract Hire,06-Feb-15,2857884-007A,"1,444.00",STEPHEN REED T/A STEVE`S TAXIS.
Children and Adult Services,Education,Transport,230006,Contract Hire,06-Feb-15,2857628-03247,"1,436.00",ATLAS TAXIS CONSETT.
Children and Adult Services,Education,Transport,230006,Contract Hire,06-Feb-15,2857650-F56805A,654,C & R TAXIS.
Children and Adult Services,Education,Transport,230008,Contract Hire,06-Feb-15,2857650-W01105,906.5,C & R TAXIS.
Children and Adult Services,Education,Transport,230008,Contract Hire,06-Feb-15,2857658-89,"1,425.00",CASTLE CARS.
Children and Adult Services,Education,Transport,230008,Contract Hire,06-Feb-15,2857664-5,"1,309.20",CHEAPLINE TAXIS.
Children and Adult Services,Education,Transport,230008,Contract Hire,06-Feb-15,2857666-KJ026,"1,643.00",CHIPPERS TAXIS.
Children and Adult Services,Education,Transport,230008,Contract Hire,06-Feb-15,2857667-21/2015,"1,680.00",CHRIS`S TAXI.
Children and Adult Services,Education,Transport,230007,Contract Hire,06-Feb-15,2857668-44719,"4,712.00",CJ GRIERSON.
Children and Adult Services,Education,Transport,230007,Contract Hire,06-Feb-15,2857668-44720,"1,995.00",CJ GRIERSON.
Children and Adult Services,Education,Transport,230007,Contract Hire,06-Feb-15,2857668-44721,"1,980.00",CJ GRIERSON.
Children and Adult Services,Education,Transport,230007,Contract Hire,06-Feb-15,2857668-44722,"1,780.00",CJ GRIERSON.
Children and Adult Services,Education,Transport,230007,Contract Hire,06-Feb-15,2857668-44723,"1,980.00",CJ GRIERSON.
Children and Adult Services,Education,Transport,230007,Contract Hire,06-Feb-15,2857668-44724,"1,400.00",CJ GRIERSON.
Children and Adult Services,Education,Transport,230007,Contract Hire,06-Feb-15,2857668-44725,"4,800.00",CJ GRIERSON.
Children and Adult Services,Education,Transport,230008,Contract Hire,06-Feb-15,2857670-14-SC16,"1,520.00",CLUBMAN CABS.
Children and Adult Services,Education,Transport,230007,Contract Hire,06-Feb-15,2857674-C/8509,"6,340.00",COCHRANES T/A KELVIN TRAVEL.
Children and Adult Services,Education,Transport,230007,Contract Hire,06-Feb-15,2857674-C/8510,"2,570.00",COCHRANES T/A KELVIN TRAVEL.
Children and Adult Services,Education,Transport,230007,Contract Hire,06-Feb-15,2857674-C/8511,"2,770.00",COCHRANES T/A KELVIN TRAVEL.
Children and Adult Services,Education,Transport,230007,Contract Hire,06-Feb-15,2857674-C/8512,"4,960.00",COCHRANES T/A KELVIN TRAVEL.
Children and Adult Services,Education,Transport,230007,Contract Hire,06-Feb-15,2857676-0001399,"1,330.00",COLORS TAXIS LTD.
Children and Adult Services,Education,Transport,230006,Contract Hire,06-Feb-15,2857676-0001400,"1,138.00",COLORS TAXIS LTD.
Children and Adult Services,Education,Transport,230008,Contract Hire,06-Feb-15,2857676-0001405,"1,450.00",COLORS TAXIS LTD.
Children and Adult Services,Education,Transport,230008,Contract Hire,06-Feb-15,2857679-542,"1,568.00",CONNORS MINI BUSES.
Children and Adult Services,Education,Transport,230008,Contract Hire,06-Feb-15,2857679-543,"1,254.00",CONNORS MINI BUSES.
Children and Adult Services,Education,Transport,230008,Contract Hire,06-Feb-15,2857679-544,"1,652.00",CONNORS MINI BUSES.
Children and Adult Services,Education,Transport,230008,Contract Hire,06-Feb-15,2857679-545,"1,406.00",CONNORS MINI BUSES.
Children and Adult Services,Education,Transport,230007,Contract Hire,06-Feb-15,2857682-DCC/4029/JAN15,"1,980.00",COUNTY COACHES.
Children and Adult Services,Education,Transport,230007,Contract Hire,06-Feb-15,2857684-4299/JAN/15,540,CRAIG`S CABS.
Children and Adult Services,Education,Transport,230008,Contract Hire,06-Feb-15,2857686-7,798,CUTHBERT CABS.
Children and Adult Services,Education,Transport,230008,Contract Hire,06-Feb-15,2857688-G/HEAD001,750,D IRVING T/A BJ TAXIS.
Children and Adult Services,Education,Transport,230008,Contract Hire,06-Feb-15,2857690-DI201501,792,D&I TAXIS.
Children and Adult Services,Education,Transport,230008,Contract Hire,06-Feb-15,2857691-1377,"1,180.00",DA TAXIS.
Children and Adult Services,Education,Transport,230008,Contract Hire,06-Feb-15,2857691-1378,"1,045.00",DA TAXIS.
Children and Adult Services,Education,Transport,230008,Contract Hire,06-Feb-15,2857691-1379,"1,577.00",DA TAXIS.
Children and Adult Services,Education,Transport,230008,Contract Hire,06-Feb-15,2857692-101,"1,197.00",DA TRAVEL.
Children and Adult Services,Education,Transport,230008,Contract Hire,06-Feb-15,2857692-102,"1,045.00",DA TRAVEL.
Children and Adult Services,Education,Transport,230008,Contract Hire,06-Feb-15,2857692-103,"1,500.00",DA TRAVEL.
Children and Adult Services,Education,Transport,230008,Contract Hire,06-Feb-15,2857692-104,923,DA TRAVEL.
Children and Adult Services,Education,Transport,230006,Contract Hire,06-Feb-15,2857692-106,990,DA TRAVEL.
Children and Adult Services,Education,Transport,230008,Contract Hire,06-Feb-15,2857693-ITSJAN1501,"1,800.00",DALELINK PRIVATE HIRE.
Children and Adult Services,Education,Transport,230008,Contract Hire,06-Feb-15,2857694-2398,"1,425.00",DAVES MINIBUSES.
Children and Adult Services,Education,Transport,230008,Contract Hire,06-Feb-15,2857694-2399,"1,900.00",DAVES MINIBUSES.
Children and Adult Services,Education,Transport,230008,Contract Hire,06-Feb-15,2857694-2401,"1,444.00",DAVES MINIBUSES.
Children and Adult Services,Education,Transport,230008,Contract Hire,06-Feb-15,2857694-2403,"1,615.00",DAVES MINIBUSES.
Children and Adult Services,Education,Transport,230008,Contract Hire,06-Feb-15,2857694-2404,807.5,DAVES MINIBUSES.
Children and Adult Services,Education,Transport,230008,Contract Hire,06-Feb-15,2857694-2405,720,DAVES MINIBUSES.
Children and Adult Services,Education,Transport,230008,Contract Hire,06-Feb-15,2857695-68,"2,500.00",DAVES TAXIS.
Children and Adult Services,Education,Transport,230008,Contract Hire,06-Feb-15,2857695-69,"1,520.00",DAVES TAXIS.
Children and Adult Services,Education,Transport,230008,Contract Hire,06-Feb-15,2857704-A072/0115,854.4,ELLIOTTS OF TRIMDON.
Children and Adult Services,Education,Transport,230008,Contract Hire,06-Feb-15,2857704-N0E052/0115,"1,061.40",ELLIOTTS OF TRIMDON.
Children and Adult Services,Education,Transport,230007,Contract Hire,06-Feb-15,2857705-0636,900,EN ROUTE TRAVEL.
Children and Adult Services,Education,Transport,230008,Contract Hire,06-Feb-15,2857705-0637,"1,600.00",EN ROUTE TRAVEL.
Children and Adult Services,Education,Transport,230007,Contract Hire,06-Feb-15,2857722-16986,"2,641.00",GARNETTS LTD (COACHES).
Children and Adult Services,Education,Transport,230007,Contract Hire,06-Feb-15,2857722-16987,"3,924.00",GARNETTS LTD (COACHES).
Children and Adult Services,Education,Transport,230007,Contract Hire,06-Feb-15,2857722-16988,"11,900.00",GARNETTS LTD (COACHES).
Children and Adult Services,Education,Transport,230007,Contract Hire,06-Feb-15,2857722-16989,"7,353.00",GARNETTS LTD (COACHES).
Children and Adult Services,Education,Transport,230007,Contract Hire,06-Feb-15,2857722-16990,"17,027.00",GARNETTS LTD (COACHES).
Children and Adult Services,Education,Transport,230007,Contract Hire,06-Feb-15,2857722-16991,"2,580.00",GARNETTS LTD (COACHES).
Children and Adult Services,Education,Transport,230007,Contract Hire,06-Feb-15,2857722-16992,"3,021.00",GARNETTS LTD (COACHES).
Children and Adult Services,Education,Transport,230007,Contract Hire,06-Feb-15,2857722-17024,"25,698.64",GARNETTS LTD (COACHES).
Children and Adult Services,Education,Transport,230007,Contract Hire,06-Feb-15,2857723-1628,"2,437.32",GEM TRAVEL.
Children and Adult Services,Education,Transport,230008,Contract Hire,06-Feb-15,2857732-016A,"1,160.00",GS PEARSON.
Children and Adult Services,Education,Transport,230007,Contract Hire,06-Feb-15,2857734-HT156,800,HARRY`S TAXI`S.
Children and Adult Services,Education,Transport,230008,Contract Hire,06-Feb-15,2857742-INV54,"1,615.00",HORNDALE AJ`S TAXIS.
Children and Adult Services,Education,Transport,230008,Contract Hire,06-Feb-15,2857758-652,"1,444.00",JDS PRIVATE HIRE DURHAM.
Children and Adult Services,Education,Transport,230008,Contract Hire,06-Feb-15,2857758-653,"1,216.00",JDS PRIVATE HIRE DURHAM.
Children and Adult Services,Education,Transport,230008,Contract Hire,06-Feb-15,2857758-654,"1,356.60",JDS PRIVATE HIRE DURHAM.
Children and Adult Services,Education,Transport,230007,Contract Hire,06-Feb-15,2857759-2355,"1,889.80",JEFF ANDERSON COACHES LTD.
Children and Adult Services,Education,Transport,230008,Contract Hire,06-Feb-15,2857764-30/01/15A,"2,000.00",JL EBDON.
Children and Adult Services,Education,Transport,230008,Contract Hire,06-Feb-15,2857764-30/01/15B,"1,440.00",JL EBDON.
Children and Adult Services,Education,Transport,230008,Contract Hire,06-Feb-15,2857764-30/01/15C,"1,080.00",JL EBDON.
Children and Adult Services,Education,Transport,230008,Contract Hire,06-Feb-15,2857764-30/01/15D,"1,400.00",JL EBDON.
Children and Adult Services,Education,Transport,230008,Contract Hire,06-Feb-15,2857764-30/01/15E,900,JL EBDON.
Children and Adult Services,Education,Transport,230008,Contract Hire,06-Feb-15,2857764-30/01/15F,"1,560.00",JL EBDON.
Children and Adult Services,Education,Transport,230006,Contract Hire,06-Feb-15,2857764-30/01/15G,712,JL EBDON.
Children and Adult Services,Education,Transport,230008,Contract Hire,06-Feb-15,2857775-S00727,"1,892.00",KEITH HAMMOND T/A FERRYHILL VILLAGE TRAVEL.
Children and Adult Services,Education,Transport,230008,Contract Hire,06-Feb-15,2857775-W131005,826.5,KEITH HAMMOND T/A FERRYHILL VILLAGE TRAVEL.
Children and Adult Services,Education,Transport,230008,Contract Hire,06-Feb-15,2857792-011501,"2,400.00",MARK & JOHN CHISHOLM T/A (CHEVRON).
Children and Adult Services,Education,Transport,230008,Contract Hire,06-Feb-15,2857792-011503,"1,470.00",MARK & JOHN CHISHOLM T/A (CHEVRON).
Children and Adult Services,Education,Transport,230008,Contract Hire,06-Feb-15,2857792-011505,"1,167.00",MARK & JOHN CHISHOLM T/A (CHEVRON).
Children and Adult Services,Education,Transport,230008,Contract Hire,06-Feb-15,2857792-011506,902.5,MARK & JOHN CHISHOLM T/A (CHEVRON).
Children and Adult Services,Education,Transport,230008,Contract Hire,06-Feb-15,2857800-A060005,617.5,MISS KA SUTHERLAND T/A FERRYHILL TRAVEL TAXI & MINIBUS HIRE.
Children and Adult Services,Education,Transport,230008,Contract Hire,06-Feb-15,2857800-E046005,"2,240.00",MISS KA SUTHERLAND T/A FERRYHILL TRAVEL TAXI & MINIBUS HIRE.
Children and Adult Services,Education,Transport,230008,Contract Hire,06-Feb-15,2857800-N071016,"2,564.50",MISS KA SUTHERLAND T/A FERRYHILL TRAVEL TAXI & MINIBUS HIRE.
Children and Adult Services,Education,Transport,230007,Contract Hire,06-Feb-15,2857806-5,800,MR BW YOUNG T/A ESH TAXIS.
Children and Adult Services,Education,Transport,230006,Contract Hire,06-Feb-15,2857808-CMX01-15,"1,532.00",MR CT WALKER T/A COLIN`S TAXIS.
Children and Adult Services,Education,Transport,230008,Contract Hire,06-Feb-15,2857808-MEAD01-15,"2,109.50",MR CT WALKER T/A COLIN`S TAXIS.
Children and Adult Services,Education,Transport,230008,Contract Hire,06-Feb-15,2857808-THPK01-15,619.92,MR CT WALKER T/A COLIN`S TAXIS.
Children and Adult Services,Education,Transport,230008,Contract Hire,06-Feb-15,2857808-WAL101-15,"2,397.60",MR CT WALKER T/A COLIN`S TAXIS.
Children and Adult Services,Education,Transport,230008,Contract Hire,06-Feb-15,2857808-WAL201-15,"2,280.00",MR CT WALKER T/A COLIN`S TAXIS.
Children and Adult Services,Education,Transport,230008,Contract Hire,06-Feb-15,2857808-WINDS01-15,"2,912.35",MR CT WALKER T/A COLIN`S TAXIS.
Children and Adult Services,Education,Transport,230008,Contract Hire,06-Feb-15,2857812-80-W-27-53,"1,340.00",MR GS ANDERSON.
Children and Adult Services,Education,Transport,230006,Contract Hire,06-Feb-15,2857812-81-Z-28-54,882,MR GS ANDERSON.
Children and Adult Services,Education,Transport,230008,Contract Hire,06-Feb-15,2857816-251,"1,260.00",MR LEE ANDERSON.
Children and Adult Services,Education,Transport,230008,Contract Hire,06-Feb-15,2857870-29,"1,600.00",SHARON`S TAXI.
Children and Adult Services,Education,Transport,230008,Contract Hire,06-Feb-15,2857872-71633,"2,256.00",SHOTTON PRIVATE HIRE.
Children and Adult Services,Education,Transport,230008,Contract Hire,06-Feb-15,2857907-044045046,782,TRUDY`S.
Children and Adult Services,Head of Adults,Transport,230005,Contract Hire,06-Feb-15,2857679-559,728,CONNORS MINI BUSES.
Children and Adult Services,Head of Adults,Transport,230005,Contract Hire,06-Feb-15,2857679-560,"1,050.00",CONNORS MINI BUSES.
Children and Adult Services,Head of Adults,Transport,230005,Contract Hire,06-Feb-15,2857758-649,"1,069.00",JDS PRIVATE HIRE DURHAM.
Children and Adult Services,Head of Adults,Transport,230005,Contract Hire,06-Feb-15,2857808-EDB01-15,"1,140.00",MR CT WALKER T/A COLIN`S TAXIS.
Children and Adult Services,Head of Adults,Transport,230008,Contract Hire,06-Feb-15,2857874-76,648,SIMONS TAXIS.
Children and Adult Services,Head of Adults,Transport,230005,Contract Hire,06-Feb-15,2857905-48.14,918,TRANSPORT.ADVENTURE.XI.
Children and Adult Services,Head of Adults,Transport,230005,Contract Hire,06-Feb-15,2857905-49.14,"1,330.80",TRANSPORT.ADVENTURE.XI.
Children and Adult Services,Head of Adults,Transport,230005,Contract Hire,06-Feb-15,2857906-5,520,TREVOR GARDNER T/A TCG TAXIS.
Children and Adult Services,Planning & Service Strategy,Supplies and Services,384071,Miscellaneous Expenses,06-Feb-15,2857622-ARCAREDCC01,783.43,AR CARE CONSULTANCY LTD.
Children and Adult Services,Public Health,Supplies and Services,384899,Miscellaneous Expenses,06-Feb-15,2857701-20012788,"16,000.00",DURHAM POLICE & CRIME COMMISSIONER.
Children and Adult Services,Public Health,Third Party Payments,460802,Contract Payments,06-Feb-15,2857773-A83066/DEC2014HC,570,JUBILEE MEDICAL GROUP.
Assistant Chief Executive,Planning & Performance Division,Supplies and Services,342225,Computers and Communications,06-Feb-15,2857744-105332308,"2,022.00",IBM UNITED KINGDOM LTD.
Assistant Chief Executive,Partnerships & Community Engagement Div.,Transfer Payments,525030,Other,06-Feb-15,2857880-ACE-02-2015-001,"4,950.00",ST CHAD`S COLLEGE.
Neighbourhood Services,Technical Services,Supplies and Services,304221,Equipment and Materials,06-Feb-15,2857610-20840684,551.03,AGGREGATE INDUSTRIES UK LTD.
Neighbourhood Services,Technical Services,Supplies and Services,304221,Equipment and Materials,06-Feb-15,2857610-20845262,"1,108.85",AGGREGATE INDUSTRIES UK LTD.
Neighbourhood Services,Technical Services,Supplies and Services,304221,Equipment and Materials,06-Feb-15,2857610-20882057,"1,034.23",AGGREGATE INDUSTRIES UK LTD.
Neighbourhood Services,Technical Services,Supplies and Services,304221,Equipment and Materials,06-Feb-15,2857610-20884810,738.69,AGGREGATE INDUSTRIES UK LTD.
Neighbourhood Services,Technical Services,Supplies and Services,304221,Equipment and Materials,06-Feb-15,2857610-20919746,"1,323.58",AGGREGATE INDUSTRIES UK LTD.
Neighbourhood Services,Projects and Business services,Fees,901002,Professional fees,06-Feb-15,2857627-14047623,"53,182.50",ATKINS GLOBAL.
Neighbourhood Services,Direct Services,Premises,106082,Centrally Controlled Rep and Maint,06-Feb-15,2857633-27187,"7,872.00",BARR & WRAY LTD.
Neighbourhood Services,Culture & Sport,Employees,80025,Agency Staff,06-Feb-15,2857634-SIN018199,"9,250.00",BEAMISH MUSEUM LTD.
Neighbourhood Services,Culture & Sport,Supplies and Services,338047,Services,06-Feb-15,2857636-10303,"2,000.00",BIG BEAR MUSIC GROUP.
Neighbourhood Services,Direct Services,Supplies and Services,304221,Equipment and Materials,06-Feb-15,2857646-1650/0231790,"1,904.61",BSS GROUP PLC.
Neighbourhood Services,Direct Services,Supplies and Services,304259,Equipment and Materials,06-Feb-15,2857652-1122475683,"3,857.00",CANFORD AUDIO PLC.
Neighbourhood Services,Technical Services,Stock,926900,Stock in hand-Inventory system,06-Feb-15,2857654-851500193,"2,636.00",CARLISLE CONSTRUCTION MATERIALS LTD.
Neighbourhood Services,Technical Services,Stock,926900,Stock in hand-Inventory system,06-Feb-15,2857654-851500281,"2,616.00",CARLISLE CONSTRUCTION MATERIALS LTD.
Neighbourhood Services,Technical Services,Supplies and Services,304358,Equipment and Materials,06-Feb-15,2857663-1616,"9,217.31",CG SIMPSON & SON.
Neighbourhood Services,Technical Services,Stock,926004,Stock,06-Feb-15,2857669-90134026,"3,472.03",CLEVELAND POTASH LTD.
Neighbourhood Services,Culture & Sport,Supplies and Services,338099,Services,06-Feb-15,2857683-3/2/15,656.01,CRAIG WILLIAM DAVIDSON.
Neighbourhood Services,Technical Services,Stock,926900,Stock in hand-Inventory system,06-Feb-15,2857702-059-158686,"1,985.20",EDMUNDSON ELECTRICAL LTD.
Neighbourhood Services,Technical Services,Third Party Payments,460350,Contract Payments,06-Feb-15,2857711-150,892,F WARD FARM.
Neighbourhood Services,Technical Services,Supplies and Services,304358,Equipment and Materials,06-Feb-15,2857724-9948,"1,520.00",GEORGE VARDY HAULAGE.
Neighbourhood Services,Technical Services,Supplies and Services,304358,Equipment and Materials,06-Feb-15,2857724-9954,"1,439.50",GEORGE VARDY HAULAGE.
Neighbourhood Services,Technical Services,Supplies and Services,304358,Equipment and Materials,06-Feb-15,2857724-9955,690,GEORGE VARDY HAULAGE.
Neighbourhood Services,Technical Services,Supplies and Services,304358,Equipment and Materials,06-Feb-15,2857724-9956,690,GEORGE VARDY HAULAGE.
Neighbourhood Services,Technical Services,Supplies and Services,304358,Equipment and Materials,06-Feb-15,2857724-9960,"1,100.00",GEORGE VARDY HAULAGE.
Neighbourhood Services,Technical Services,Supplies and Services,304358,Equipment and Materials,06-Feb-15,2857724-9961,690,GEORGE VARDY HAULAGE.
Neighbourhood Services,Technical Services,Supplies and Services,304358,Equipment and Materials,06-Feb-15,2857724-9967,882,GEORGE VARDY HAULAGE.
Neighbourhood Services,Technical Services,Supplies and Services,304358,Equipment and Materials,06-Feb-15,2857724-9968,557.5,GEORGE VARDY HAULAGE.
Neighbourhood Services,Technical Services,Third Party Payments,430100,Rendered by Private Contractors,06-Feb-15,2857727-27825,600,GRAB & DELIVER LTD.
Neighbourhood Services,Technical Services,Third Party Payments,430100,Rendered by Private Contractors,06-Feb-15,2857727-27859,800,GRAB & DELIVER LTD.
Neighbourhood Services,Direct Services,Premises,145023,Cleaning and Domestic Supplies,06-Feb-15,2857729-06/544005,522,GREENHAM TRADING LTD.
Neighbourhood Services,Culture & Sport,Supplies and Services,338047,Services,06-Feb-15,2857731-FBC685,600,GROWLING CLOWN.
Neighbourhood Services,Technical Services,Third Party Payments,430100,Rendered by Private Contractors,06-Feb-15,2857739-2353,"8,910.90",HIGHWAY CONSTRUCTION SERVICES LTD.
Neighbourhood Services,Technical Services,Third Party Payments,430100,Rendered by Private Contractors,06-Feb-15,2857739-2354,"8,049.53",HIGHWAY CONSTRUCTION SERVICES LTD.
Neighbourhood Services,Technical Services,Third Party Payments,430100,Rendered by Private Contractors,06-Feb-15,2857739-2355,"3,452.40",HIGHWAY CONSTRUCTION SERVICES LTD.
Neighbourhood Services,Direct Services,Supplies and Services,304221,Equipment and Materials,06-Feb-15,2857761-3307/0179156,968.8,JEWSON LTD.
Neighbourhood Services,Culture & Sport,Supplies and Services,328041,Clothing Uniforms and Laundry,06-Feb-15,2857762-7024,834.3,JG UNIFORMS.
Neighbourhood Services,Technical Services,Supplies and Services,304221,Equipment and Materials,06-Feb-15,2857769-NI027010,"2,259.70",JOHN MACLEAN & SONS ELECTRICAL (DINGWALL) LTD.
Neighbourhood Services,Technical Services,Supplies and Services,304221,Equipment and Materials,06-Feb-15,2857772-CNI21244/D,"2,710.40",JT DOVE LTD.
Neighbourhood Services,Technical Services,Supplies and Services,304221,Equipment and Materials,06-Feb-15,2857772-CNI21369/D,"1,550.00",JT DOVE LTD.
Neighbourhood Services,Technical Services,Stock,926900,Stock in hand-Inventory system,06-Feb-15,2857772-STI414350,616,JT DOVE LTD.
Neighbourhood Services,Culture & Sport,Supplies and Services,384700,Miscellaneous Expenses,06-Feb-15,2857778-NEI-EXP-02-2015-005,"1,120.00",LANCHESTER TABLE TENNIS CLUB.
Neighbourhood Services,Culture & Sport,Premises,106082,Centrally Controlled Rep and Maint,06-Feb-15,2857779-599944,"1,550.00",LANES GROUP PLC.
Neighbourhood Services,Technical Services,Third Party Payments,430100,Rendered by Private Contractors,06-Feb-15,2857779-INV00597186,"2,250.00",LANES GROUP PLC.
Neighbourhood Services,Technical Services,Supplies and Services,372009,Subscriptions,06-Feb-15,2857781-6482,880,LIGHTING REALITY LTD.
Neighbourhood Services,Direct Services,Supplies and Services,304221,Equipment and Materials,06-Feb-15,2857784-INV-5113768,751.4,LINDAB LTD.
Neighbourhood Services,Direct Services,Supplies and Services,304221,Equipment and Materials,06-Feb-15,2857786-3482835,"3,046.31",LONDON GENERAL SALES LTD.
Neighbourhood Services,Direct Services,Supplies and Services,304221,Equipment and Materials,06-Feb-15,2857791-827/036363,773.26,MAGNET LTD.
Neighbourhood Services,Culture & Sport,Supplies and Services,338047,Services,06-Feb-15,2857794-520,"6,272.41",MASTERS ENTERTAINMENT CORPORATION LTD.
Neighbourhood Services,Direct Services,Transport,230005,Contract Hire,06-Feb-15,2857826-98415,741,ND BROWN LTD.
Neighbourhood Services,Direct Services,Transport,230005,Contract Hire,06-Feb-15,2857826-98416,"2,382.15",ND BROWN LTD.
Neighbourhood Services,Direct Services,Supplies and Services,304259,Equipment and Materials,06-Feb-15,2857836-1466121,859,NORTHERN TOOLS & ACCESSORIES.
Neighbourhood Services,Direct Services,Supplies and Services,304259,Equipment and Materials,06-Feb-15,2857836-1466278,"1,160.00",NORTHERN TOOLS & ACCESSORIES.
Neighbourhood Services,Direct Services,Supplies and Services,304999,Equipment and Materials,06-Feb-15,2857836-1470839,"1,557.00",NORTHERN TOOLS & ACCESSORIES.
Neighbourhood Services,Direct Services,Third Party Payments,430100,Rendered by Private Contractors,06-Feb-15,2857843-INV448,"10,000.00",PASSFM LTD.
Neighbourhood Services,Culture & Sport,Supplies and Services,384237,Miscellaneous Expenses,06-Feb-15,2857845-5384,"1,358.34",PETERLEE TOWN COUNCIL.
Neighbourhood Services,Culture & Sport,Supplies and Services,338047,Services,06-Feb-15,2857848-PHENT111383,881.63,PICTUREHOUSE ENTERTAINMENT LTD.
Neighbourhood Services,Culture & Sport,Premises,115125,Repairs to Grounds,06-Feb-15,2857851-25821,"1,178.00",R PARKER WALL & FLOOR TILING CONTRACTOR.
Neighbourhood Services,Projects and Business services,Supplies and Services,340001,Postages,06-Feb-15,2857859-9049047144,"1,489.29",ROYAL MAIL GROUP PLC.
Neighbourhood Services,Direct Services,Third Party Payments,430100,Rendered by Private Contractors,06-Feb-15,2857861-JAN05615,571.41,RW CHICKEN (SCAFFOLDING) LTD.
Neighbourhood Services,Technical Services,Supplies and Services,304358,Equipment and Materials,06-Feb-15,2857871-2015005,"1,333.40",SHIREHAVEN LTD.
Neighbourhood Services,Direct Services,Supplies and Services,304259,Equipment and Materials,06-Feb-15,2857886-7237295,"1,042.62",SUPPLIES TEAM LTD.
Neighbourhood Services,Technical Services,Stock,926900,Stock in hand-Inventory system,06-Feb-15,2857887-46/908201,"3,100.00",SUPPLY UK.
Neighbourhood Services,Technical Services,Stock,926900,Stock in hand-Inventory system,06-Feb-15,2857887-46/908202,"1,160.00",SUPPLY UK.
Neighbourhood Services,Culture & Sport,Supplies and Services,338047,Services,06-Feb-15,2857891-04112014,500,TAP TAP THEATRE.
Neighbourhood Services,Technical Services,Stock,926900,Stock in hand-Inventory system,06-Feb-15,2857899-N/IN139208,"1,372.60",THOMAS OWEN & SONS (NEWCASTLE) LTD.
Neighbourhood Services,Technical Services,Supplies and Services,304221,Equipment and Materials,06-Feb-15,2857901-25540,"1,181.50",TODDS HIGHWAY MAINTENANCE LTD.
Neighbourhood Services,Technical Services,Supplies and Services,304221,Equipment and Materials,06-Feb-15,2857910-140576,872.8,TYNEDALE ROADSTONE LTD.
Neighbourhood Services,Technical Services,Supplies and Services,304221,Equipment and Materials,06-Feb-15,2857910-140812,"1,344.40",TYNEDALE ROADSTONE LTD.
Neighbourhood Services,Technical Services,Supplies and Services,304221,Equipment and Materials,06-Feb-15,2857910-143529,"1,045.27",TYNEDALE ROADSTONE LTD.
Neighbourhood Services,Technical Services,Supplies and Services,304221,Equipment and Materials,06-Feb-15,2857910-143778,606.02,TYNEDALE ROADSTONE LTD.
Neighbourhood Services,Technical Services,Supplies and Services,304221,Equipment and Materials,06-Feb-15,2857910-144088,"1,170.00",TYNEDALE ROADSTONE LTD.
Neighbourhood Services,Technical Services,Supplies and Services,304221,Equipment and Materials,06-Feb-15,2857910-144090,"1,179.36",TYNEDALE ROADSTONE LTD.
Neighbourhood Services,Technical Services,Supplies and Services,304221,Equipment and Materials,06-Feb-15,2857910-144091,"1,174.68",TYNEDALE ROADSTONE LTD.
Neighbourhood Services,Direct Services,Supplies and Services,384974,Miscellaneous Expenses,06-Feb-15,2857911-NEI-EXP-02-2015-015,"30,000.00",VEHICLE & OPERATOR SERVICES AGENCY (VOSA).
Neighbourhood Services,Direct Services,Supplies and Services,304221,Equipment and Materials,06-Feb-15,2857913-6890181692,"4,452.19",VIESSMANN LTD.
Neighbourhood Services,Direct Services,Supplies and Services,304221,Equipment and Materials,06-Feb-15,2857913-6890181792,610,VIESSMANN LTD.
Neighbourhood Services,Technical Services,Supplies and Services,304221,Equipment and Materials,06-Feb-15,2857914-17640,"1,116.80",WARD TIMBER LTD.
Neighbourhood Services,Direct Services,Transport,230005,Contract Hire,06-Feb-15,2857915-65464,"1,007.00",WARREN ACCESS LTD.
Neighbourhood Services,Technical Services,Stock,926900,Stock in hand-Inventory system,06-Feb-15,2857919-19526952,"2,322.66",WOLSELEY UK LTD.
Neighbourhood Services,Direct Services,Premises,106082,Centrally Controlled Rep and Maint,06-Feb-15,2857920-64214469,550,USE (112057) WSP ENVIRONMENTAL LTD.
Neighbourhood Services,Direct Services,Premises,106099,Centrally Controlled Rep and Maint,06-Feb-15,2857923-404508,"3,619.08",ZIP HEATERS (UK) LTD.
RED HRA,Housing Revenue Account,Premises,106082,Centrally Controlled Rep and Maint,06-Feb-15,2857620-23831,545,AQUAJET DRAIN CLEANING LTD.
RED HRA,Housing Revenue Account,Supplies and Services,384071,Miscellaneous Expenses,06-Feb-15,2857700-90800742,814,DURHAM MARRIOTT ROYAL COUNTY HOTEL.
Regeneration & Economic Development,Economic Development and Housing,Cap Exp on Grants & Other Financial Assistance (REFCUS),918401,Capital grants,06-Feb-15,2857606-RED-02-2015-057,"3,086.58",ACORN PLUMBING & HEATING SERVICES LTD.
Regeneration & Economic Development,Spatial Policy Planning Assets & Environment,Construction Work,908105,Construction work,06-Feb-15,2857608-28869237-61,"1,038.02",ADT FIRE & SECURITY PLC.
Regeneration & Economic Development,Transport and Contracted Services,Fees,901002,Professional fees,06-Feb-15,2857609-28210625,"15,998.31",AECOM LTD.
Regeneration & Economic Development,Economic Development and Housing,Supplies and Services,384199,Miscellaneous Expenses,06-Feb-15,2857721-A105984,"1,996.75",G4S ASSESSMENT SERVICES (UK) LTD T/A QUALITY IN TOURISM.
Regeneration & Economic Development,Spatial Policy Planning Assets & Environment,Vehicles Equipment Furniture and Fittings,912701,Computer equipment,06-Feb-15,2857745-7004476,"5,750.00",IDOX SOFTWARE LTD.
Regeneration & Economic Development,Economic Development and Housing,Cap Exp on Grants & Other Financial Assistance (REFCUS),918401,Capital grants,06-Feb-15,2857757-RED-02-2015-053,"2,755.00",JAMES KIRWIN PLUMBING & HEATING.
Regeneration & Economic Development,Transport and Contracted Services,Third Party Payments,430106,Rendered by Private Contractors,06-Feb-15,2857768-DCC1/15,"2,038.43",JOHN JAMES BRUNSKILL.
Regeneration & Economic Development,Economic Development and Housing,Cap Exp on Grants & Other Financial Assistance (REFCUS),918401,Capital grants,06-Feb-15,2857789-RED-02-2015-038,"2,575.00",M & R DEVELOPMENTS & CONTRACTORS LTD..
Regeneration & Economic Development,Economic Development and Housing,Cap Exp on Grants & Other Financial Assistance (REFCUS),918401,Capital grants,06-Feb-15,2857799-RED-02-2015-013,"5,630.00",REDACTED - PAYMENT TO INDIVIDUAL
Regeneration & Economic Development,Spatial Policy Planning Assets & Environment,Supplies and Services,384700,Miscellaneous Expenses,06-Feb-15,2857810-RED-02-2015-064,504,REDACTED - PAYMENT TO INDIVIDUAL
Regeneration & Economic Development,Economic Development and Housing,Supplies and Services,384700,Miscellaneous Expenses,06-Feb-15,2857827-RED-02-2015-018,"1,000.00",NEIL HERRON PLUMBING & HEATING.
Regeneration & Economic Development,Economic Development and Housing,Cap Exp on Grants & Other Financial Assistance (REFCUS),918401,Capital grants,06-Feb-15,2857854-RED-02-2015-044,700,REDGATE ARCHITECTURAL DESIGN.
Regeneration & Economic Development,Economic Development and Housing,Cap Exp on Grants & Other Financial Assistance (REFCUS),918401,Capital grants,06-Feb-15,2857854-RED-02-2015-047,550,REDGATE ARCHITECTURAL DESIGN.
Regeneration & Economic Development,Economic Development and Housing,Supplies and Services,368008,Incentives to Industrialists,06-Feb-15,2857864-1410,"4,691.00",SALLY ANN NORMAN PHOTOGRAPHY.
Regeneration & Economic Development,Economic Development and Housing,Supplies and Services,384700,Miscellaneous Expenses,06-Feb-15,2857865-RED-02-2015-017,"2,000.00",SAXON FABRICATIONS LTD.
Regeneration & Economic Development,Economic Development and Housing,Cap Exp on Grants & Other Financial Assistance (REFCUS),918401,Capital grants,06-Feb-15,2857900-RED-02-2015-056,"1,585.00",THYSSENKRUPP ENCASA A DIVISION OF THYSSENKRUPP ACCESS LTD.
Regeneration & Economic Development,Economic Development and Housing,Cap Exp on Grants & Other Financial Assistance (REFCUS),918401,Capital grants,06-Feb-15,2857900-RED-02-2015-058,"4,305.00",THYSSENKRUPP ENCASA A DIVISION OF THYSSENKRUPP ACCESS LTD.
Regeneration & Economic Development,Economic Development and Housing,Cap Exp on Grants & Other Financial Assistance (REFCUS),918401,Capital grants,06-Feb-15,2857902-RED-02-2015-052,"4,013.50",TOTAL HYGIENE LTD.
Regeneration & Economic Development,Economic Development and Housing,Premises,108099,Service Repairs and Maintenance,06-Feb-15,2857918-SEDGEFIELDNETPARK,"149,515.82",WILLMOTT DIXON CONSTRUCTION LTD.
Resources,Human Resources,Employees,40149,Recruitment Instruction and Training,06-Feb-15,2857659-52524,"4,045.00",CASTLE GROUP LTD.
Resources,I.C.T. Services,Supplies and Services,304040,Equipment and Materials,06-Feb-15,2857662-77069,"3,810.00",CENTRAL POWER SERVICES LTD.
Resources,Corporate Finance,Supplies and Services,342013,Computers and Communications,06-Feb-15,2857685-514056,"4,600.00",CREDITSAFE BUSINESS SOLUTIONS LTD.
Resources,I.C.T. Services,Supplies and Services,342033,Computers and Communications,06-Feb-15,2857697-7402178492,"2,566.40",DELL COMPUTER CORPORATION LTD.
Resources,I.C.T. Services,Supplies and Services,332029,Printing Stationery and Gen Off Exps,06-Feb-15,2857707-131420,"1,175.40",ENCORE ENVELOPES LTD.
Resources,Financial Services,Transport,235058,Public Transport,06-Feb-15,2857756-028,"1,150.00",JACKS DIRECT TAXI.
Resources,Legal & Democratic Services,Supplies and Services,338042,Services,06-Feb-15,2857798-181200,540,MISS ELIZABETH LUGG.
Resources,Legal & Democratic Services,Supplies and Services,338042,Services,06-Feb-15,2857813-308230/INVJB181,540,MR JAMES BROWN.
Resources,Legal & Democratic Services,Supplies and Services,338042,Services,06-Feb-15,2857817-311355/INVMT131,"2,220.00",MR MARTIN TODD.
Resources,I.C.T. Services,Supplies and Services,312009,Newspapers Books and Periodicals,06-Feb-15,2857831-002216,558.7,NEWSMARKET.
Resources,I.C.T. Services,Supplies and Services,332029,Printing Stationery and Gen Off Exps,06-Feb-15,2857852-12041,650,RADECAL SIGNS GRAPHICS & ADVERTISING.
Resources,Financial Services,Supplies and Services,340001,Postages,06-Feb-15,2857859-9048943762,"6,395.09",ROYAL MAIL GROUP PLC.
Resources,I.C.T. Services,Construction Work,908105,Construction work,06-Feb-15,2857890-121133,"4,900.00",SWITCHSHOP LTD.
Children and Adult Services,Childrens Services,Supplies and Services,384491,Miscellaneous Expenses,09-Feb-15,2857955-227,"1,070.00",USE (42818) AUCKLAND YOUTH & COMMUNITY CENTRE.
Children and Adult Services,Childrens Services,Premises,108099,Service Repairs and Maintenance,09-Feb-15,2857957-28926,714,AYCLIFFE FABRICATIONS LTD.
Children and Adult Services,Childrens Services,Supplies and Services,384409,Miscellaneous Expenses,09-Feb-15,2857967-SIN019279,528.67,BEAMISH MUSEUM LTD.
Children and Adult Services,Childrens Services,Supplies and Services,364352,Grants to Voluntary Organisations,09-Feb-15,2858091-5612,813.92,FOUNDATION.
Children and Adult Services,Childrens Services,Transport,230007,Contract Hire,09-Feb-15,2858127-F1284,"1,598.00",HUNTER BROTHERS (TANTOBIE) LTD.
Children and Adult Services,Childrens Services,Supplies and Services,342013,Computers and Communications,09-Feb-15,2858349-7230951,516.84,SUPPLIES TEAM LTD.
Dedicated Schools Grant,Dedicated Schools Grant,Transfer Payments,510034,School Children,09-Feb-15,2857939-RES-02-2015-026,710,ALVERTON COMMUNITY PRIMARY SCHOOL
Dedicated Schools Grant,Dedicated Schools Grant,Third Party Payments,440080,Other Third Party Payments,09-Feb-15,2857999-51270,"3,416.80",CATCH 22.
Dedicated Schools Grant,Dedicated Schools Grant,Transfer Payments,510034,School Children,09-Feb-15,2858013-RES-02-2015-025,"2,480.00",CHURCHILL COMMUNITY COLLEGE.
Dedicated Schools Grant,Dedicated Schools Grant,Transfer Payments,510032,School Children,09-Feb-15,2858051-CAS-02-2015-032,721.5,DAWN TILL DUSK CHILDCARE.
Dedicated Schools Grant,Dedicated Schools Grant,Supplies and Services,304259,Equipment and Materials,09-Feb-15,2858186-3908,"2,095.00",LYNCH HEALTHCARE LTD.
Dedicated Schools Grant,Dedicated Schools Grant,Third Party Payments,440080,Other Third Party Payments,09-Feb-15,2858341-SLINV/00001625,"3,712.39",SOUTH TYNESIDE COLLEGE.
Children and Adult Services,Education,Transport,230008,Contract Hire,09-Feb-15,2857969-10JANUARY15,"1,520.00",BEELINE PRIVATE HIRE.
Children and Adult Services,Education,Supplies and Services,384199,Miscellaneous Expenses,09-Feb-15,2858000-CFSI200,"17,911.94",CATCOTE ACADEMY.
Children and Adult Services,Education,Transport,230006,Contract Hire,09-Feb-15,2858039-5007,990,CROFT BUSINESS SERVICES (UK) LTD T/A CROFT TAXIS.
Children and Adult Services,Education,Transport,230008,Contract Hire,09-Feb-15,2858039-5014,"2,700.00",CROFT BUSINESS SERVICES (UK) LTD T/A CROFT TAXIS.
Children and Adult Services,Education,Transfer Payments,510028,School Children,09-Feb-15,2858052-CAS-02-2015-030,"15,000.00",DAYPARK LTD T/A YELLOW WELLIES.
Children and Adult Services,Education,Transport,230006,Contract Hire,09-Feb-15,2858124-INV57,672,HORNDALE AJ`S TAXIS.
Children and Adult Services,Education,Transport,230007,Contract Hire,09-Feb-15,2858127-F1285,"1,980.00",HUNTER BROTHERS (TANTOBIE) LTD.
Children and Adult Services,Education,Supplies and Services,338027,Services,09-Feb-15,2858237-10083,850,NORMA APPLEBY EARLY YEARS CONSULTANCY LTD.
Children and Adult Services,Education,Supplies and Services,338027,Services,09-Feb-15,2858237-10087,850,NORMA APPLEBY EARLY YEARS CONSULTANCY LTD.
Children and Adult Services,Education,Supplies and Services,338027,Services,09-Feb-15,2858237-10090,500,NORMA APPLEBY EARLY YEARS CONSULTANCY LTD.
Children and Adult Services,Education,Supplies and Services,338091,Services,09-Feb-15,2858393-12026977-003,"4,500.00",UNIVERSITY OF TEESSIDE.
Children and Adult Services,Head of Adults,Third Party Payments,479111,Purchase of Care,09-Feb-15,2857975-201422,"2,276.25",BLUE SKY TRUST.
Neighbourhood Services,Technical Services,Stock,926900,Stock in hand-Inventory system,09-Feb-15,2857925-153373,769.3,(PASS) PORTABLE APPLIANCE SAFETY SERVICES LTD.
Neighbourhood Services,Technical Services,Supplies and Services,304221,Equipment and Materials,09-Feb-15,2857935-20877449,"1,255.25",AGGREGATE INDUSTRIES UK LTD.
Neighbourhood Services,Technical Services,Supplies and Services,304221,Equipment and Materials,09-Feb-15,2857935-20890176,575.45,AGGREGATE INDUSTRIES UK LTD.
Neighbourhood Services,Technical Services,Supplies and Services,304221,Equipment and Materials,09-Feb-15,2857935-20900573,941.98,AGGREGATE INDUSTRIES UK LTD.
Neighbourhood Services,Technical Services,Supplies and Services,304221,Equipment and Materials,09-Feb-15,2857935-20906940,631.09,AGGREGATE INDUSTRIES UK LTD.
Neighbourhood Services,Technical Services,Supplies and Services,304221,Equipment and Materials,09-Feb-15,2857935-20919742,604.25,AGGREGATE INDUSTRIES UK LTD.
Neighbourhood Services,Technical Services,Supplies and Services,304221,Equipment and Materials,09-Feb-15,2857935-20919745,907.03,AGGREGATE INDUSTRIES UK LTD.
Neighbourhood Services,Technical Services,Supplies and Services,304221,Equipment and Materials,09-Feb-15,2857935-20926206,"1,882.05",AGGREGATE INDUSTRIES UK LTD.
Neighbourhood Services,Technical Services,Supplies and Services,304221,Equipment and Materials,09-Feb-15,2857935-20926207,648.76,AGGREGATE INDUSTRIES UK LTD.
Neighbourhood Services,Technical Services,Supplies and Services,304221,Equipment and Materials,09-Feb-15,2857935-20939159,885.21,AGGREGATE INDUSTRIES UK LTD.
Neighbourhood Services,Direct Services,Third Party Payments,430100,Rendered by Private Contractors,09-Feb-15,2857957-28984,"4,238.00",AYCLIFFE FABRICATIONS LTD.
Neighbourhood Services,Direct Services,Third Party Payments,430100,Rendered by Private Contractors,09-Feb-15,2857957-28985,"1,298.00",AYCLIFFE FABRICATIONS LTD.
Neighbourhood Services,Technical Services,Supplies and Services,304358,Equipment and Materials,09-Feb-15,2857960-MG04248,750,BAILEY CONCRETE PUMPING LTD.
Neighbourhood Services,Technical Services,Supplies and Services,304358,Equipment and Materials,09-Feb-15,2857960-MG04249,998.5,BAILEY CONCRETE PUMPING LTD.
Neighbourhood Services,Direct Services,Third Party Payments,430100,Rendered by Private Contractors,09-Feb-15,2857965-01205,"3,097.50",BBM LTD.
Neighbourhood Services,Technical Services,Third Party Payments,430100,Rendered by Private Contractors,09-Feb-15,2857966-201533,"45,136.30",BCE NORTHERN LTD.
Neighbourhood Services,Technical Services,Third Party Payments,430100,Rendered by Private Contractors,09-Feb-15,2857966-201534,"6,873.36",BCE NORTHERN LTD.
Neighbourhood Services,Technical Services,Third Party Payments,430100,Rendered by Private Contractors,09-Feb-15,2857966-201535,"29,008.74",BCE NORTHERN LTD.
Neighbourhood Services,Direct Services,Transport,210057,Repair and Maintenance of Vehicles,09-Feb-15,2857971-25151642,"1,201.32",BELL TRUCK SALES LTD.
Neighbourhood Services,Direct Services,Stock,926004,Stock,09-Feb-15,2857986-168852,"1,495.17",BUNCE (ASHBURY) LTD.
Neighbourhood Services,Culture & Sport,Supplies and Services,324001,Provisions,09-Feb-15,2857994-841108217,"1,146.69",CARLSBERG UK LTD.
Neighbourhood Services,Technical Services,Stock,926900,Stock in hand-Inventory system,09-Feb-15,2858006-9950/01629171,"1,042.36",CERAMIC TILE DISTRIBUTORS (CTD).
Neighbourhood Services,Technical Services,Stock,926900,Stock in hand-Inventory system,09-Feb-15,2858006-9950/01630020,736.5,CERAMIC TILE DISTRIBUTORS (CTD).
Neighbourhood Services,Technical Services,Third Party Payments,430100,Rendered by Private Contractors,09-Feb-15,2858017-3644,"5,289.66",CLASSIC MASONRY LTD.
Neighbourhood Services,Culture & Sport,Supplies and Services,324001,Provisions,09-Feb-15,2858022-9101999647,500.74,COCA COLA ENTERPRISES LTD.
Neighbourhood Services,Culture & Sport,Supplies and Services,384700,Miscellaneous Expenses,09-Feb-15,2858063-NEI-EXP-02-2015-009,752,DURHAM CITY CRICKET CLUB.
Neighbourhood Services,Technical Services,Employees,40149,Recruitment Instruction and Training,09-Feb-15,2858068-T0009010,"3,508.75",EASTWOOD PARK LTD.
Neighbourhood Services,Technical Services,Stock,926900,Stock in hand-Inventory system,09-Feb-15,2858076-18SI/185874,"1,603.00",ENCON INSULATION LTD.
Neighbourhood Services,Direct Services,Supplies and Services,304221,Equipment and Materials,09-Feb-15,2858079-6748757,"12,513.60",ESE WORLD LTD.
Neighbourhood Services,Direct Services,Supplies and Services,304221,Equipment and Materials,09-Feb-15,2858079-6748815,"12,513.60",ESE WORLD LTD.
Neighbourhood Services,Direct Services,Supplies and Services,304221,Equipment and Materials,09-Feb-15,2858079-6749125,"6,418.00",ESE WORLD LTD.
Neighbourhood Services,Direct Services,Supplies and Services,328041,Clothing Uniforms and Laundry,09-Feb-15,2858087-OP/I285983,"5,821.20",FLEMING & CO (MACHINERY) LTD.
Neighbourhood Services,Technical Services,Stock,926900,Stock in hand-Inventory system,09-Feb-15,2858087-OP/I286338,599.65,FLEMING & CO (MACHINERY) LTD.
Neighbourhood Services,Technical Services,Stock,926900,Stock in hand-Inventory system,09-Feb-15,2858087-OP/I286360,874.1,FLEMING & CO (MACHINERY) LTD.
Neighbourhood Services,Technical Services,Supplies and Services,338027,Services,09-Feb-15,2858100-107404605,708,GATESHEAD COUNCIL.
Neighbourhood Services,Technical Services,Supplies and Services,304221,Equipment and Materials,09-Feb-15,2858103-679306,620.36,GLASDON UK LTD.
Neighbourhood Services,Direct Services,Supplies and Services,304259,Equipment and Materials,09-Feb-15,2858107-INV052709,"4,061.00",GOTT TECHNICAL SERVICES LTD.
Neighbourhood Services,Technical Services,Stock,926900,Stock in hand-Inventory system,09-Feb-15,2858109-06/542064,"1,920.50",GREENHAM TRADING LTD.
Neighbourhood Services,Direct Services,Stock,926004,Stock,09-Feb-15,2858117-518635,"6,347.71",HARVEST ENERGY LTD.
Neighbourhood Services,Direct Services,Stock,926004,Stock,09-Feb-15,2858117-519542,"11,063.61",HARVEST ENERGY LTD.
Neighbourhood Services,Direct Services,Stock,926004,Stock,09-Feb-15,2858117-519870,"16,311.17",HARVEST ENERGY LTD.
Neighbourhood Services,Direct Services,Stock,926004,Stock,09-Feb-15,2858117-520291,"13,639.10",HARVEST ENERGY LTD.
Neighbourhood Services,Direct Services,Stock,926004,Stock,09-Feb-15,2858117-520292,"14,923.52",HARVEST ENERGY LTD.
Neighbourhood Services,Direct Services,Third Party Payments,430100,Rendered by Private Contractors,09-Feb-15,2858122-57262,"1,600.93",HOGARTH COACHWORKS LTD.
Neighbourhood Services,Direct Services,Third Party Payments,430100,Rendered by Private Contractors,09-Feb-15,2858142-B04642,604.3,JOHN HART COMMERCIALS LTD.
Neighbourhood Services,Direct Services,Supplies and Services,304221,Equipment and Materials,09-Feb-15,2858147-1077653,"1,740.08",JOHNSONS OF WHIXLEY LTD.
Neighbourhood Services,Direct Services,Supplies and Services,304221,Equipment and Materials,09-Feb-15,2858151-BII154769,"1,381.28",JT DOVE LTD.
Neighbourhood Services,Technical Services,Stock,926900,Stock in hand-Inventory system,09-Feb-15,2858151-STI414248,815.54,JT DOVE LTD.
Neighbourhood Services,Technical Services,Stock,926900,Stock in hand-Inventory system,09-Feb-15,2858151-STI414395,804.75,JT DOVE LTD.
Neighbourhood Services,Technical Services,Stock,926900,Stock in hand-Inventory system,09-Feb-15,2858151-STI414406,957.2,JT DOVE LTD.
Neighbourhood Services,Technical Services,Supplies and Services,304221,Equipment and Materials,09-Feb-15,2858158-6059,510.8,KEN THOMAS (SITE CLEARANCE LTD).
Neighbourhood Services,Technical Services,Stock,926900,Stock in hand-Inventory system,09-Feb-15,2858166-9032120303,880.22,LAFARGE TARMAC TRADING LTD.
Neighbourhood Services,Technical Services,Supplies and Services,304221,Equipment and Materials,09-Feb-15,2858166-9032170165,741.32,LAFARGE TARMAC TRADING LTD.
Neighbourhood Services,Technical Services,Supplies and Services,304221,Equipment and Materials,09-Feb-15,2858166-9032170166,"2,630.36",LAFARGE TARMAC TRADING LTD.
Neighbourhood Services,Technical Services,Stock,926900,Stock in hand-Inventory system,09-Feb-15,2858166-9032170174,614.77,LAFARGE TARMAC TRADING LTD.
Neighbourhood Services,Technical Services,Supplies and Services,304357,Equipment and Materials,09-Feb-15,2858167-INV00609052,"5,500.00",LANES GROUP PLC.
Neighbourhood Services,Culture & Sport,Supplies and Services,384237,Miscellaneous Expenses,09-Feb-15,2858173-NEI-EXP-02-2015-011,796,LEISUREWORKS.
Neighbourhood Services,Technical Services,Supplies and Services,304358,Equipment and Materials,09-Feb-15,2858193-1762,712.5,MARTIN JEWITT PLANT HIRE.
Neighbourhood Services,Culture & Sport,Supplies and Services,384700,Miscellaneous Expenses,09-Feb-15,2858200-NEI-EXP-02-2015-007,"1,416.00",REDACTED - PAYMENT TO INDIVIDUAL
Neighbourhood Services,Technical Services,Stock,926900,Stock in hand-Inventory system,09-Feb-15,2858201-001/122203,"1,836.00",MH SOUTHERN & CO LTD.
Neighbourhood Services,Direct Services,Supplies and Services,384194,Miscellaneous Expenses,09-Feb-15,2858235-8367,"2,125.00",NIRAMAX GROUP LTD.
Neighbourhood Services,Direct Services,Supplies and Services,304259,Equipment and Materials,09-Feb-15,2858248-1471633,"1,295.00",NORTHERN TOOLS & ACCESSORIES.
Neighbourhood Services,Culture & Sport,Supplies and Services,384700,Miscellaneous Expenses,09-Feb-15,2858251-NEI-EXP-02-2015-013,"1,458.25",NOUVEAU FITNESS CIC.
Neighbourhood Services,Culture & Sport,Supplies and Services,338099,Services,09-Feb-15,2858252-029631,"1,036.86",NSL LTD.
Neighbourhood Services,Culture & Sport,Supplies and Services,304221,Equipment and Materials,09-Feb-15,2858268-2305,640,PEAKBODY FITNESS.
Neighbourhood Services,Direct Services,Supplies and Services,304221,Equipment and Materials,09-Feb-15,2858277-214613,"3,736.08",PLUMBING TRADE SUPPLIES LTD.
Neighbourhood Services,Projects and Business services,Supplies and Services,340001,Postages,09-Feb-15,2858306-9048991842,"1,519.17",ROYAL MAIL GROUP PLC.
Neighbourhood Services,Direct Services,Transport,210057,Repair and Maintenance of Vehicles,09-Feb-15,2858339-INV277188,542.27,SNOWBALLS LTD.
Neighbourhood Services,Technical Services,Supplies and Services,304221,Equipment and Materials,09-Feb-15,2858347-069086,"1,168.80",STONEGRAVE AGGREGATES LTD.
Neighbourhood Services,Direct Services,Supplies and Services,338099,Services,09-Feb-15,2858348-SA075-14,562.79,STRAY AID LTD.
Neighbourhood Services,Culture & Sport,Supplies and Services,384700,Miscellaneous Expenses,09-Feb-15,2858351-NEI-EXP-02-2015-006,"1,220.00",SWIFT BADMINTON CLUB.
Neighbourhood Services,Direct Services,Supplies and Services,304221,Equipment and Materials,09-Feb-15,2858354-1464184,"1,056.45",T CROSSLING & CO LTD.
Neighbourhood Services,Direct Services,Stock,926004,Stock,09-Feb-15,2858363-4039756,"1,020.00",TENNANTS DISTRIBUTION LTD.
Neighbourhood Services,Direct Services,Supplies and Services,304221,Equipment and Materials,09-Feb-15,2858377-101857,"3,960.00",TOMMY WARDLE.
Neighbourhood Services,Direct Services,Supplies and Services,304221,Equipment and Materials,09-Feb-15,2858397-6890181909,610,VIESSMANN LTD.
Neighbourhood Services,Technical Services,Stock,926900,Stock in hand-Inventory system,09-Feb-15,2858416-19383869,704.85,WOLSELEY UK LTD.
Neighbourhood Services,Technical Services,Stock,926900,Stock in hand-Inventory system,09-Feb-15,2858416-19484082,632.04,WOLSELEY UK LTD.
Neighbourhood Services,Technical Services,Stock,926900,Stock in hand-Inventory system,09-Feb-15,2858416-19599464,"1,095.75",WOLSELEY UK LTD.
RED HRA,HRA Capital,Construction Work,908105,Construction work,09-Feb-15,2858080-122515,"3,507.68",ESH CONSTRUCTION LTD FORMERLY LUMSDEN & CARROLL CONSTRUCTION LTD.
RED HRA,HRA Capital,Construction Work,908105,Construction work,09-Feb-15,2858101,"453,802.68",GENTOO CONSTRUCTION LTD.
RED HRA,HRA Capital,Construction Work,908105,Construction work,09-Feb-15,2858407-50306-CERT9,"26,279.81",WATES CONSTRUCTION LTD.
Regeneration & Economic Development,Spatial Policy Planning Assets & Environment,Supplies and Services,384199,Miscellaneous Expenses,09-Feb-15,2857976-155826,823.5,BLUESKY INTERNATIONAL LTD.
Regeneration & Economic Development,Economic Development and Housing,Supplies and Services,384700,Miscellaneous Expenses,09-Feb-15,2858018-RED-02-2015-077,"1,000.00",CLEVER CLOGS DAY NURSERY (DURHAM) LTD.
Regeneration & Economic Development,Spatial Policy Planning Assets & Environment,Income,720190,Fees and Charges,09-Feb-15,2858098-RED-02-2015-037,770,GARRY HODGSON ARCHITECTURAL SERVICES.
Regeneration & Economic Development,Economic Development and Housing,Supplies and Services,384899,Miscellaneous Expenses,09-Feb-15,2858112-RED-02-2015-075,"4,968.60",GROUNDWORK NORTH EAST.
Regeneration & Economic Development,Economic Development and Housing,Construction Work,908113,Capital - Landscaping,09-Feb-15,2858203-249021,766.25,MIDDLETON FORGE LTD.
Regeneration & Economic Development,Economic Development and Housing,Premises,145050,Cleaning and Domestic Supplies,09-Feb-15,2858204-083,672,MIKE TINKLER T/A ABSOLUTELY CLEAN.
Regeneration & Economic Development,Economic Development and Housing,Construction Work,908105,Construction work,09-Feb-15,2858224-4273,"10,000.00",NAPPER ARCHITECTS LTD.
Regeneration & Economic Development,Economic Development and Housing,Supplies and Services,384700,Miscellaneous Expenses,09-Feb-15,2858245-RED-02-2015-070,"1,000.00",NORTH LEISURE PRODUCTS LTD T/A NORTH SPAS.
Regeneration & Economic Development,Economic Development and Housing,Supplies and Services,384700,Miscellaneous Expenses,09-Feb-15,2858263-RED-02-2015-069,"1,000.00",PASSFM LTD.
Regeneration & Economic Development,Economic Development and Housing,Supplies and Services,384871,Miscellaneous Expenses,09-Feb-15,2858384-150217,675,TRAINING SUPPORT FOR INDUSTRY LTD.
Regeneration & Economic Development,Transport and Contracted Services,Supplies and Services,304245,Equipment and Materials,09-Feb-15,2858387-3IN/10256030,"13,964.65",TUNSTALL HEALTHCARE (UK) LTD.
Regeneration & Economic Development,Transport and Contracted Services,Supplies and Services,384899,Miscellaneous Expenses,09-Feb-15,2858415-RED-02-2015-067,"1,967.00",WITTON LE WEAR PARISH COUNCIL.
Regeneration & Economic Development,Economic Development and Housing,Supplies and Services,384700,Miscellaneous Expenses,09-Feb-15,2858417-RED-02-2015-068,"1,000.00",WYLAM HOUSE CONSTRUCTION.
Resources,I.C.T. Services,Stock,926900,Stock in hand-Inventory system,09-Feb-15,2858057-146945408,"1,641.95",DIVERSEY LTD.
Resources,I.C.T. Services,Supplies and Services,304303,Equipment and Materials,09-Feb-15,2858113-INV0157156,"11,562.48",GV MULTI MEDIA LTD.
Resources,I.C.T. Services,Supplies and Services,304245,Equipment and Materials,09-Feb-15,2858125-221926N,654.84,HOWARD SMITH PAPER GROUP.
Resources,I.C.T. Services,Supplies and Services,304303,Equipment and Materials,09-Feb-15,2858154-36933,"4,495.00",KBR IT & NETWORKING SOLUTIONS.
Resources,I.C.T. Services,Supplies and Services,304303,Equipment and Materials,09-Feb-15,2858154-36944,"3,319.00",KBR IT & NETWORKING SOLUTIONS.
Resources,Legal & Democratic Services,Supplies and Services,384059,Miscellaneous Expenses,09-Feb-15,2858156-8018,600,KEITH TAYLOR PHOTOGRAPHER.
Resources,I.C.T. Services,Supplies and Services,304259,Equipment and Materials,09-Feb-15,2858265-73872,740,PAT TRAINING SERVICES LTD.
Resources,Human Resources,Supplies and Services,352001,Conference Expenses,09-Feb-15,2858289-ICE327347,658,QA LTD.
Resources,Human Resources,Supplies and Services,352001,Conference Expenses,09-Feb-15,2858289-ICE327348,650,QA LTD.
Resources,I.C.T. Services,Stock,926900,Stock in hand-Inventory system,09-Feb-15,2858398-2356496,"1,440.00",VIGLEN LTD.
Children and Adult Services,Childrens Services,Third Party Payments,440031,Other Third Party Payments,10-Feb-15,2859031-1006515,518.14,REDACTED - PAYMENT TO INDIVIDUAL
Children and Adult Services,Childrens Services,Supplies and Services,338099,Services,10-Feb-15,2859045-40213709,"3,600.00",(I&DEA) IMPROVEMENT & DEVELOPMENT AGENCY FOR LOCAL GOVERNMENT.
Children and Adult Services,Childrens Services,Supplies and Services,364999,Grants to Voluntary Organisations,10-Feb-15,2859076-SIN019250,"1,116.67",AWARD SCHEME LTD.
Children and Adult Services,Childrens Services,Employees,80025,Agency Staff,10-Feb-15,2859094-2300454,"1,230.00",CELSIAN.
Children and Adult Services,Childrens Services,Employees,80025,Agency Staff,10-Feb-15,2859094-2301018,"1,400.50",CELSIAN.
Children and Adult Services,Childrens Services,Supplies and Services,304252,Equipment and Materials,10-Feb-15,2859104-73849,529,CLEVELAND SECURITY LTD.
Children and Adult Services,Childrens Services,Supplies and Services,304259,Equipment and Materials,10-Feb-15,2859130-SI14544,706.55,ELECTROMASTER TELECOMMUNICATIONS LTD.
Children and Adult Services,Childrens Services,Transport,230005,Contract Hire,10-Feb-15,2859223-DH/01/15,627,MR M ALLISON T/A MACBETH TAXIS/COACHES.
Children and Adult Services,Childrens Services,Supplies and Services,384199,Miscellaneous Expenses,10-Feb-15,2859234-48355117,"1,059.10",NHS PROPERTY SERVICES LTD.
Children and Adult Services,Childrens Services,Supplies and Services,384199,Miscellaneous Expenses,10-Feb-15,2859243-SIN000293,"1,080.00",NORTH MUSIC TRUST.
Children and Adult Services,Childrens Services,Premises,120009,Energy Costs,10-Feb-15,2859246-79305943270,972.91,NPOWER.
Children and Adult Services,Childrens Services,Supplies and Services,304259,Equipment and Materials,10-Feb-15,2859263-61183463,"1,125.00",PHS GROUP PLC.
Children and Adult Services,Childrens Services,Supplies and Services,338078,Services,10-Feb-15,2859272-4711,"15,135.21",QW SECURITY LTD.
Children and Adult Services,Childrens Services,Supplies and Services,352001,Conference Expenses,10-Feb-15,2859286-867,650,SCHOOL & FAMILY NURTURING PROGRAMME.
Children and Adult Services,Childrens Services,Supplies and Services,338076,Services,10-Feb-15,2859311-802,"5,662.16",TEESDALE COMMUNITY RESOURCES (TCR) LTD.
Children and Adult Services,Childrens Services,Premises,115125,Repairs to Grounds,10-Feb-15,2859322-000550464,750,TURNER & TOWNSEND LLP.
Children and Adult Services,Commissioning inc Supporting People,Third Party Payments,479111,Purchase of Care,10-Feb-15,2859057-OP/I060211,"10,000.00",ACTION FOR BLIND PEOPLE.
Children and Adult Services,Commissioning inc Supporting People,Debtors,930138,Debtor ISIS Residential Care Voids - CCG,10-Feb-15,2859064-CAS-02-2015-019,"1,794.26",ALLIANCE CARE.
Children and Adult Services,Commissioning inc Supporting People,Debtors,930138,Debtor ISIS Residential Care Voids - CCG,10-Feb-15,2859132-CAS-02-2015-015,"2,691.39",EMBRACE ALL LTD.
Children and Adult Services,Commissioning inc Supporting People,Debtors,930138,Debtor ISIS Residential Care Voids - CCG,10-Feb-15,2859133-CAS-02-2015-016,"2,484.36",EMBRACE ALL LTD.
Children and Adult Services,Commissioning inc Supporting People,Debtors,930138,Debtor ISIS Residential Care Voids - CCG,10-Feb-15,2859258-CAS-02-2015-020,828.12,PERFECT CARE LTD T/A BELMONT GRANGE CARE HOME.
Children and Adult Services,Commissioning inc Supporting People,Debtors,930138,Debtor ISIS Residential Care Voids - CCG,10-Feb-15,2859299-CAS-02-2015-022,"2,760.40",ST MARYS NURSING HOME.
Children and Adult Services,Commissioning inc Supporting People,Debtors,930138,Debtor ISIS Residential Care Voids - CCG,10-Feb-15,2859309-CAS-02-2015-018,"3,243.47",TAMARIS HEALTHCARE LTD.
Dedicated Schools Grant,Dedicated Schools Grant,Supplies and Services,304259,Equipment and Materials,10-Feb-15,2859055-0324,"1,000.00",ACHIEVEMENT TV LTD.
Dedicated Schools Grant,Dedicated Schools Grant,Transport,230010,Contract Hire,10-Feb-15,2859188-00587,"1,530.00",KENNAS CABS.
Dedicated Schools Grant,Dedicated Schools Grant,Transport,230010,Contract Hire,10-Feb-15,2859191-1A-B128N-JAN2015,973,L & R PRIVATE HIRE.
Dedicated Schools Grant,Dedicated Schools Grant,Transport,230010,Contract Hire,10-Feb-15,2859191-3A,"1,520.00",L & R PRIVATE HIRE.
Dedicated Schools Grant,Dedicated Schools Grant,Transport,230010,Contract Hire,10-Feb-15,2859195-1034,"2,270.00",LD TAXIS.
Dedicated Schools Grant,Dedicated Schools Grant,Transport,230010,Contract Hire,10-Feb-15,2859201-3128,"1,560.00",LINCAB TAXIS.
Dedicated Schools Grant,Dedicated Schools Grant,Transport,230010,Contract Hire,10-Feb-15,2859222-05,740,MR KJB BOWERY T/A KJB TAXIS.
